﻿2CCN___Level_2_Cost_Centre_Name,,9CCN___Level_9_Cost_Centre_Name,9CCC___Level_9_Cost_Centre_Code,9AN___Level_9_Account_Name,9AC___Level_9_Account_Code,Slt_Description,Date_Paid,Transaction_Reference,Analysed_Amount,2AC___Level_2_Account_Codes,Supplier_Name
Gloucester City Council,23UE,Business Transformation & Tech,RT700,Basic Pay - Temporary Staff,2751,C WATKINS W/E 30/03/12,13/04/2012,340806,1125,NET,Ffox Software Ltd
REDACTED,REDACTED,REDACTED,REDACTED,REDACTED,REDACTED,REDACTED,REDACTED,REDACTED,500,REDACTED,REDACTED
REDACTED,REDACTED,REDACTED,REDACTED,REDACTED,REDACTED,REDACTED,REDACTED,REDACTED,-262.5,REDACTED,REDACTED
REDACTED,REDACTED,REDACTED,REDACTED,REDACTED,REDACTED,REDACTED,REDACTED,REDACTED,-485,REDACTED,REDACTED
Gloucester City Council,23UE,Human Resources,EH100,Advertising And Publicity,5702,JOBS GO PUBLIC MAR-MAY 12,02/04/2012,339232,1248,NET,Jgp Resourcing Ltd (Jobs Go Public)
Gloucester City Council,23UE,Utilities,PT502,Electricity Supply,3110,HKP ELECTRIC MAR 2012,26/04/2012,340883,9228.94,NET,West Mercia Energy
Gloucester City Council,23UE,Utilities,PT502,Gas Supply,3100,GUILDHALL MAR 2012,25/04/2012,341198,901.6,NET,West Mercia Energy
Gloucester City Council,23UE,Utilities,PT502,Electricity Supply,3110,96-98 MASEFIELD AVE INV 2340825,25/04/2012,340612,-198.52,NET,West Mercia Energy
Gloucester City Council,23UE,Utilities,PT502,Electricity Supply,3110,COOKS FISH & GAME INV 2378186,26/04/2012,341066,-70.73,NET,West Mercia Energy
Gloucester City Council,23UE,Utilities,PT502,Gas Supply,3100,CEMETERY REF INV 2395665,25/04/2012,341306,-5486.64,NET,West Mercia Energy
Gloucester City Council,23UE,Utilities,PT502,Electricity Supply,3110,75-81 EASTGATE ST,25/04/2012,341106,1364.07,NET,West Mercia Energy
Gloucester City Council,23UE,Utilities,PT502,Electricity Supply,3110,BUS STATION TOILETS,01/05/2012,341670,1259.89,NET,West Mercia Energy
Gloucester City Council,23UE,Utilities,PT502,Electricity Supply,3110,BUS STATION TOILETS,01/05/2012,341669,1943.28,NET,West Mercia Energy
REDACTED,REDACTED,REDACTED,REDACTED,REDACTED,REDACTED,REDACTED,REDACTED,REDACTED,500,REDACTED,REDACTED
Gloucester City Council,23UE,Procurement Management,RP100,Photocopying,5320,credit for invoice 3074102 - ref 340735,03/05/2012,340952,-13847.95,NET,Danwood Group Limited
REDACTED,REDACTED,REDACTED,REDACTED,REDACTED,REDACTED,REDACTED,04/04/2012,340373,576.92,REDACTED,REDACTED
Gloucester City Council,23UE,Kings Quarter Redevelopment,RB600,Fees For Services Received,5350,disposal of tesco's site,23/04/2012,341018,549,NET,Geldards Llp
REDACTED,REDACTED,REDACTED,REDACTED,REDACTED,REDACTED,REDACTED,26/04/2012,341547,500,REDACTED,REDACTED
Gloucester City Council,23UE,Business Transformation & Tech,RT700,Internet Service Provider Fees,5429,GSI CONVERGANCE,16/04/2012,340808,1762.04,NET,Vodafone
Gloucester City Council,23UE,Eastgate Viewing Chamber,LY100,Contract Payments,0020,hire 27/1/12-24/2/12,05/04/2012,338389,1512,CAP,Harsco Infrastructure Services Ltd
Gloucester City Council,23UE,Tic Coach Tickets,LT105,Sale Of Goods And Services,9230,TICKETS MAR 2012,17/04/2012,340877,-1705.68,NET,National Express Ltd
Gloucester City Council,23UE,Utilities,PT502,Gas Supply,3100,depot Jan12-Feb12 revised,13/03/2013,339432,1359.94,NET,Corona Energy
Gloucester City Council,23UE,Utilities,PT502,Gas Supply,3100,credit for Depot Feb-Mar 12,13/03/2013,341015,-1445.82,NET,Corona Energy
Gloucester City Council,23UE,General Drainage Works,PY241,Contract Payments,0020,145 BRISTOL RD,05/04/2012,340311,1185,CAP,Three Counties Drain Service
REDACTED,REDACTED,REDACTED,REDACTED,REDACTED,REDACTED,REDACTED,26/04/2012,12835,990,REDACTED,REDACTED
Gloucester City Council,23UE,Asbru - Other Funders,FP846,Fees For Services Received,5350,SALARY RECHARGE MAR 2012,13/04/2012,340734,3760.23,NET,Gloucester City Homes
REDACTED,REDACTED,REDACTED,REDACTED,REDACTED,REDACTED,REDACTED,24/04/2012,341052,1188.48,REDACTED,REDACTED
Gloucester City Council,23UE,Civil Parking Enforcement,PT741,Fees For Services Received,5350,PCNS,27/04/2012,341746,1252.8,NET,Patrol
Gloucester City Council,23UE,Civica Admin Charges,RT105,Postages,5400,ACCT 0870585007 REVENUES,13/04/2012,339258,15366.45,NET,Royal Mail S.Wales & South West
Gloucester City Council,23UE,Oxstalls Tc Court Refrubishmen,LY132,Contract Payments,0020,OTC VALUATION 2,10/04/2012,338886,76678.29,CAP,Midland Csb Ltd
REDACTED,REDACTED,REDACTED,REDACTED,REDACTED,REDACTED,REDACTED,30/04/2012,341381,1273.38,REDACTED,REDACTED
REDACTED,REDACTED,REDACTED,REDACTED,REDACTED,REDACTED,REDACTED,11/04/2012,12789,773.5,REDACTED,REDACTED
REDACTED,REDACTED,REDACTED,REDACTED,REDACTED,REDACTED,REDACTED,04/04/2012,12784,1404.4,REDACTED,REDACTED
Gloucester City Council,23UE,Homelessness Prevention,CH122,Fees For Services Received,5350,D & L LURQC,05/04/2012,340457,500,NET,Martin & Co
Gloucester City Council,23UE,Hkp Accomodation Review,RY163,Contract Payments,0020,5th floor kimberley flooring,04/04/2012,340380,1760,CAP,D&D Flooring
REDACTED,REDACTED,REDACTED,REDACTED,REDACTED,REDACTED,REDACTED,02/04/2012,340076,639,REDACTED,REDACTED
REDACTED,REDACTED,REDACTED,REDACTED,REDACTED,REDACTED,REDACTED,26/04/2012,341657,600,REDACTED,REDACTED
Gloucester City Council,23UE,Tic Rovercard Sales,LT101,Sale Of Goods And Services,9230,TICKET SALES PERIOD 12,20/04/2012,341188,-791.08,NET,Stagecoach Services Ltd*
REDACTED,REDACTED,REDACTED,REDACTED,REDACTED,REDACTED,REDACTED,10/04/2012,340582,-364.6,REDACTED,REDACTED
Gloucester City Council,23UE,Docks Complex - Castlemeads Cp,RB210,Contracted Services,6970,March 2012 services,10/04/2012,340462,3244.56,NET,Apcoa Parking (Uk) Ltd
Gloucester City Council,23UE,Perennial Planting Enterprise,LY133,Contract Payments,0020,various ad hoc orders,10/04/2012,337712,13539.06,CAP,Enterprise (Aol) Ltd
Gloucester City Council,23UE,Off Street Car Parks,PP110,Water Supply,3400,ACCT 4690096884,30/04/2012,340634,886.07,NET,Severn Trent Water
REDACTED,REDACTED,REDACTED,REDACTED,REDACTED,REDACTED,REDACTED,02/04/2012,339819,1464,REDACTED,REDACTED
REDACTED,REDACTED,REDACTED,REDACTED,REDACTED,REDACTED,REDACTED,02/04/2012,339881,1464,REDACTED,REDACTED
Gloucester City Council,23UE,Utilities,PT502,Gas Supply,3100,REF BANDSTAND GL1 1XR NOV11 CREDIT,18/06/2012,343398,-152.62,NET,West Mercia Energy
Gloucester City Council,23UE,Utilities,PT502,Gas Supply,3100,REF INV 2302131,18/06/2012,342832,-60.42,NET,West Mercia Energy
REDACTED,REDACTED,REDACTED,REDACTED,REDACTED,REDACTED,REDACTED,15/05/2012,342641,500,REDACTED,REDACTED
Gloucester City Council,23UE,Photocopying,RS130,Hire Of Equipment,5020,printroom Bizhub c550 machine,03/05/2012,341917,1637.81,NET,Danwood Group Limited
Gloucester City Council,23UE,General Drainage Works,PY241,Contract Payments,0020,HIGHFIELD ROAD UPSTREAM WORKS,31/05/2012,343352,550,CAP,Rj Contracting
Gloucester City Council,23UE,Armscroft Gdns Flood Alleviati,PY274,Contract Payments,0020,ARMSCROFT GARDENS WORKS,01/06/2012,343353,1625,CAP,Rj Contracting
Gloucester City Council,23UE,Gloucester Guildhall,LA100,General Repair/Maint Buildings,3000,FOLDING TABLE,16/05/2012,342731,1680,NET,Zoot Office Furniture Ltd
Gloucester City Council,23UE,Retail Market - Landlord,HM300,Trade Refuse Sacks,5040,Markets skips March 2012,25/05/2012,343019,792,NET,Barnwood Shopfitting Ltd
Gloucester City Council,23UE,Kings Quarter Redevelopment,RB600,Fees For Services Received,5350,6th stage Kings Qtr consultancy,21/05/2012,341385,4687.17,NET,Cb Richard Ellis Ltd
REDACTED,REDACTED,REDACTED,REDACTED,REDACTED,REDACTED,REDACTED,01/06/2012,343579,628.58,REDACTED,REDACTED
Gloucester City Council,23UE,Client Revs & Bens Contract,RT240,Fees For Services Received,5350,council tax payment cards,29/05/2012,343327,866.47,NET,Thames Card Technology Ltd
Gloucester City Council,23UE,Registration Of Electors,RS400,Fees For Services Received,5350,Created by invoice listener,17/05/2012,342810,550,NET,Hucclecote Community Association
Gloucester City Council,23UE,Jubilee Events,LT301,Maintenance Of Equipment,5030,120ft r/w/b bunting,30/05/2012,342947,524.33,NET,Artek Display Ltd
Gloucester City Council,23UE,Tic Coach Tickets,LT105,Sale Of Goods And Services,9230,APRIL 2012 SALES,11/05/2012,342387,-1663.92,NET,National Express Ltd
Gloucester City Council,23UE,Eastgate Viewing Chamber,LY100,Contract Payments,0020,disbursements re Eastgate Viewing Canopy,17/05/2012,341818,1035.83,CAP,Bere Architects
Gloucester City Council,23UE,Procurement Management,RP100,Photocopying,5320,L9074600171,28/05/2012,343126,604.73,NET,Ricoh Uk Ltd
Gloucester City Council,23UE,Registration Of Electors,RS400,Fees For Services Received,5350,2012 local ballot papers,25/05/2012,342167,2834,NET,Alpha Response Print & Mail Ltd
Gloucester City Council,23UE,Tourism Marketing,LT100,Exhibits And Collections,5038,Created by invoice listener,23/05/2012,343138,2100,NET,Countwise Europe
REDACTED,REDACTED,REDACTED,REDACTED,REDACTED,REDACTED,REDACTED,22/05/2012,342968,5201.96,REDACTED,REDACTED
Gloucester City Council,23UE,Docks Complex - Services,RB100,Service Charges,3020,HKP AIR FRESHNERS,17/05/2012,342568,1160,NET,Pyramid Hygiene Ltd
Gloucester City Council,23UE,Registration Of Electors,RS400,Postages,5400,ACCT 0870585036 28/04/12,17/05/2012,342482,2632.21,NET,Royal Mail S.Wales & South West
REDACTED,REDACTED,REDACTED,REDACTED,REDACTED,REDACTED,REDACTED,04/05/2012,342156,625,REDACTED,REDACTED
Gloucester City Council,23UE,Hempsted Market/Car Boot,HM234,Sewerage And Environ Charges,3402,Hempstead Meadows toilets Apr 12,15/05/2012,342556,505.4,NET,Abbey Loos Limited
Gloucester City Council,23UE,Parking Cctv,PT745,Fees For Services Received,5350,GLOS GO CASES,16/05/2012,342743,5000,NET,Traffic Enforcement Centre
Gloucester City Council,23UE,Guildhall Bar And Café,LA210,Catering Provisions -Liquor,5111,GUILDHALL 16/5/12,31/05/2012,343492,1083.99,NET,Cellar Supplies Cheltenham Ltd
Gloucester City Council,23UE,Guildhall Bar And Café,LA210,Catering Provisions -Liquor,5111,Guildhall 2/5/12,14/05/2012,342547,1122.32,NET,Cellar Supplies Cheltenham Ltd
REDACTED,REDACTED,REDACTED,REDACTED,REDACTED,REDACTED,REDACTED,25/05/2012,343186,540,REDACTED,REDACTED
Gloucester City Council,23UE,Tic Theatre Ticket Sales,LT107,Sale Of Goods And Services,9230,MAGNIFICAT 28/04/12,15/05/2012,342605,-1.67,NET,Saint Cecilia Singers
Gloucester City Council,23UE,Hempsted Market/Car Boot,HM234,Operational Equipment <£5000,5012,,11/05/2012,20701,-20.94,NET,Gloucester City Council
Gloucester City Council,23UE,Publications,RC450,Basic Pay -Admin /Prof Staff,2601,APRIL TO JULY 12 DESIGN COSTS,31/05/2012,343343,10024,NET,Gloucestershire County Council
REDACTED,REDACTED,REDACTED,REDACTED,REDACTED,REDACTED,REDACTED,03/05/2012,12852,957.76,REDACTED,REDACTED
Gloucester City Council,23UE,Neighbourhood Partnerships,FP104,Fees For Services Received,5350,GRANT 2011-12,18/05/2012,342723,2000,NET,Matson & Robinswood Community Partnership
Gloucester City Council,23UE,Asbru - Other Funders,FP846,Other Minor Supplies Services,5590,CREDIT FOR INVOICE 53832 - REF 340765,06/07/2012,343322,-120,NET,Alpha Colour Printers Ltd
Gloucester City Council,23UE,Eastgate Viewing Chamber,LY100,Contract Payments,0020,EASTGATE VIEWING CHAMBER,10/05/2012,340469,3000,CAP,Scs Installations Ltd
Gloucester City Council,23UE,St Oswalds Car Park 3,PJ140,Contracted Services,6970,april 2012 variable services,09/05/2012,342160,2802.12,NET,Apcoa Parking (Uk) Ltd
Gloucester City Council,23UE,Civil Parking Enforcement,PT741,Contracted Services,6970,april 2012 variable services,09/05/2012,342160,23970.67,NET,Apcoa Parking (Uk) Ltd
REDACTED,REDACTED,REDACTED,REDACTED,REDACTED,REDACTED,REDACTED,23/05/2012,342231,1830,NET,REDACTED
REDACTED,REDACTED,REDACTED,REDACTED,REDACTED,REDACTED,REDACTED,23/05/2012,342626,1830,NET,REDACTED
Gloucester City Council,23UE,Client Revs & Bens Contract,RT240,Fees For Services Received,5350,LAMAC FEES 2012/13,15/05/2012,340868,14892.4,NET,Gemini Consultants Ltd
Gloucester City Council,23UE,Tic Theatre Ticket Sales,LT107,Sale Of Goods And Services,9230,TICKET SALES,26/06/2012,344899,-4.67,NET,Lydbrook Silver Band - Jubilee
Gloucester City Council,23UE,Utilities,PT502,Electricity Supply,3110,FOLK MUSEUM APR 12,18/06/2012,343456,629.94,NET,West Mercia Energy
Gloucester City Council,23UE,Client Revs & Bens Contract,RT240,Fees For Services Received,5350,May/June 12 arrest warrants,19/06/2012,343666,594,NET,Assevarate Ltd
Gloucester City Council,23UE,Pest Control,HD400,Fees For Services Received,5350,EGG OILING 30-31/5/12,12/06/2012,343646,2000,NET,Falconry Services Bird & Pest Control
Gloucester City Council,23UE,Pest Control,HD400,Fees For Services Received,5350,Created by invoice listener,25/06/2012,344832,1552,NET,Falconry Services Bird & Pest Control
Gloucester City Council,23UE,Eastgate Viewing Chamber,LY100,Contract Payments,0020,Feb 12 Gritter lorry hire,25/06/2012,342561,2100,CAP,Ken Pink Plant Hire Ltd
Gloucester City Council,23UE,Youth Grant 2011/12,FP107,Funding Vol&Com Grps-Grants,7100C,youth grant 2012-13,29/06/2012,345174,1750,NET,Gloucestershire Bike Project Cic
Gloucester City Council,23UE,Off Street Car Parks,PP110,Rents,3200,RENTAL 24/6/12-28/9/12,12/06/2012,343747,600,NET,Boots The Chemist
Gloucester City Council,23UE,Refurb Of Crem Toilets,HY046,Contract Payments,0020,crem waiting room carpet,26/06/2012,344362,1363.33,CAP,Chlodel Carpets & Flooring Ltd
Gloucester City Council,23UE,Land Searches,RO300,Fees For Services Received,5350,LOCAL GOVERNMENT ASSOCIATION,27/06/2012,343489,850.3,NET,Local Government Association
Gloucester City Council,23UE,Tic Theatre Ticket Sales,LT107,Materials For Sale,5080,SEE HOW THEY RUN SALES,21/06/2012,344368,560,NET,Kings Theatre
Gloucester City Council,23UE,Tic Coach Tickets,LT105,Sale Of Goods And Services,9230,MAY 12 SALES,15/06/2012,344295,-1404.65,NET,National Express Ltd
Gloucester City Council,23UE,Photocopying,RS130,Hire Of Equipment,5020,J7040300429,07/06/2012,343073,952.65,NET,Ricoh Uk Ltd
Gloucester City Council,23UE,Docks Complex - Services,RB100,Service Charges,3020,WATER SYSTEM 06/12-06/13,12/06/2012,343674,1996.8,NET,Wessex Products (Leasing) Ltd
Gloucester City Council,23UE,Crem/Cem Garden,HY044,Contract Payments,0020,CREM RETENTION RELEASE,27/06/2012,344989,12680.13,CAP,Alun Griffiths (Contractors) Ltd
REDACTED,REDACTED,REDACTED,REDACTED,REDACTED,REDACTED,REDACTED,27/06/2012,345075,500,REDACTED,REDACTED
Gloucester City Council,23UE,Docks Complex - Catering Servs,RB110,Catering Provisions -Food,5110,REF INV GLO-8200,21/06/2012,344632,-1.6,NET,Total Produce Gloucester
Gloucester City Council,23UE,Tea & Wake Room Cem&Crem,HY043,Contract Payments,0020,crem retention release,27/06/2012,344992,3711.23,CAP,Ilec Ltd
Gloucester City Council,23UE,Docks Complex - Telephones,RB120,Mobile Phones,5409,ACCT 55561627 P DABBS,19/06/2012,343497,-0.26,NET,Orange Payment Processing
Gloucester City Council,23UE,Aspire Admin Charges,LC105,Contracted Services,6970,JUNE 2012 MANAGEMENT FEES,02/07/2012,345139,88342.46,NET,Aspire Sports & Cultural Trust
Gloucester City Council,23UE,Postal Services,RS120,Postages,5400,ACCT 0252446000 W/E 07/06/12,26/06/2012,344419,1366.91,NET,Royal Mail S.Wales & South West
Gloucester City Council,23UE,Gloucester Partnership,FP106,Fees For Services Received,5350,Glos Partnership web hosting Jun12-Jun13,19/06/2012,344099,995,NET,Icon.Net
Gloucester City Council,23UE,Crematorium,HC200,Repair/Maint Of Fixed Plant,3006,crem annual boiler clean,26/06/2012,345012,1675,NET,Facultatieve Technologies Ltd
Gloucester City Council,23UE,Crematorium,HC200,Repair/Maint Of Fixed Plant,3006,crem 6 monthly service parts,26/06/2012,345001,1395.56,NET,Facultatieve Technologies Ltd
Gloucester City Council,23UE,Green Transport Policy,PJ130,Management Fees,6001,Created by invoice listener,20/06/2012,344590,10000,NET,Commonwheels Cic
Gloucester City Council,23UE,Civica Contract Revs & Bens,RT250,Contracted Services,6970,JUNE 12 CORE BENEFITS PROVISION,11/06/2012,343919,132917,NET,Civica Uk Ltd
Gloucester City Council,23UE,Client Revs & Bens Contract,RT240,Contracted Services,6970,MAY 2012 PENSION EXCESS RECLAIM,08/06/2012,343652,11585.66,NET,Civica Uk Ltd
REDACTED,REDACTED,REDACTED,REDACTED,REDACTED,REDACTED,REDACTED,08/06/2012,343846,560,REDACTED,REDACTED
Gloucester City Council,23UE,Docks Complex - Catering Servs,RB110,Catering Provisions -Food,5110,credit re inv 527186,14/06/2012,344093,-42.42,NET,J & M Provisions Ltd
REDACTED,REDACTED,REDACTED,REDACTED,REDACTED,REDACTED,REDACTED,20/06/2012,344588,600,REDACTED,REDACTED
REDACTED,REDACTED,REDACTED,REDACTED,REDACTED,REDACTED,REDACTED,25/06/2012,12943,510,REDACTED,REDACTED
Gloucester City Council,23UE,Off Street Car Parks,PP110,General Repair/Maint Buildings,3000,My 12 Longsmith St car park drains work,16/07/2012,345460,863,NET,Cotswold Drain Services
Gloucester City Council,23UE,Business Transformation & Tech,RT700,Basic Pay - Temporary Staff,2751,w/e 22/6/12 Chris Watkins,03/07/2012,345196,1125,NET,Ffox Software Ltd
Gloucester City Council,23UE,Utilities,PT502,Gas Supply,3100,NORTH WAREHOUSE GAS MAY 12,13/07/2012,344562,805.16,NET,West Mercia Energy
Gloucester City Council,23UE,Utilities,PT502,Electricity Supply,3110,CREMATORIUM,13/07/2012,344514,1421.92,NET,West Mercia Energy
Gloucester City Council,23UE,Utilities,PT502,Electricity Supply,3110,75-81 EASTGATE ST,13/07/2012,344480,1637.62,NET,West Mercia Energy
Gloucester City Council,23UE,Pest Control,HD400,Fees For Services Received,5350,roof checks 20/6/12,17/07/2012,345976,600,NET,Falconry Services Bird & Pest Control
Gloucester City Council,23UE,Play Area Refurbishment,LY071,Contract Payments,0020,"titan lader, seat, miriage assy",25/07/2012,346740,4823.5,CAP,Hags-Smp Ltd
Gloucester City Council,23UE,Summer Festival,LT300,General Repair/Maint Buildings,3000,"2 shows The 30 minute Olympics, fun day",30/07/2012,346741,600,NET,What A Palaver
Gloucester City Council,23UE,Business Transformation & Tech,RT700,Computer Hardware <£5000,5420,LATTITUDE E6520 X 2,17/07/2012,346027,2312.29,NET,Dell Computers Corporation Ltd
Gloucester City Council,23UE,Tourism Marketing,LT100,Postages,5400,TIC franking machine charges,25/07/2012,346754,1354.5,NET,Neopost Finance Ltd
REDACTED,REDACTED,REDACTED,REDACTED,REDACTED,REDACTED,REDACTED,06/07/2012,345433,770.13,CAP,REDACTED
Gloucester City Council,23UE,Building Control,PT400,Other Minor Supplies Services,5590,Fire Risk Assessor,31/07/2012,346284,1000,NET,Labc Consult Ltd
REDACTED,REDACTED,REDACTED,REDACTED,REDACTED,REDACTED,REDACTED,04/07/2012,345466,670,REDACTED,REDACTED
Gloucester City Council,23UE,Youth Grant 2011/12,FP107,Funding Vol&Com Grps-Grants,7100C,youth grant 12-13,20/07/2012,346405,500,NET,Glos*Stars Badminton Club
Gloucester City Council,23UE,Grants To Voluntary Sector,FG100,Funding Vol&Com Grps-Grants,7100C,COMMUNTIY GRANT 2012-13,04/07/2012,345376,7622,NET,Play Gloucestershire
Gloucester City Council,23UE,Client Revs & Bens Contract,RT240,Court Fees,5358,,12/07/2012,345819,1611,NET,Co-Operative Bank
Gloucester City Council,23UE,Stationery Services,RS150,Stationery,5302,ENVELOPES,02/07/2012,344451,739.89,NET,Wessex Envelopes
REDACTED,REDACTED,REDACTED,REDACTED,REDACTED,REDACTED,REDACTED,06/07/2012,12960,607.75,REDACTED,REDACTED
Gloucester City Council,23UE,Civica Contract Revs & Bens,RT250,Contracted Services,6970,AUG 12 CORE REVS & BENS SERVICE,27/07/2012,346013,132917,NET,Civica Uk Ltd
Gloucester City Council,23UE,Gloucester Partnership,FP106,Fees For Services Received,5350,OLYMPIC LEGACY GRANT,05/07/2012,345307,1370,NET,The Venture: White City
REDACTED,REDACTED,REDACTED,REDACTED,REDACTED,REDACTED,REDACTED,04/07/2012,345394,-24.2,REDACTED,REDACTED
Gloucester City Council,23UE,Flood Defence Grants To Househ,CY011,Other Capital Grants,0089,safe at home 4th QTR mar-may 12,10/07/2012,344105,4934,CAP,Gloucestershire County Council
Gloucester City Council,23UE,Parking Cctv,PT745,On Street Parking Charges,6550,BUS LANE ENFORCEMENT INCOME MAY 12,03/07/2012,345189,25090.03,NET,Gloucestershire County Council
REDACTED,REDACTED,REDACTED,REDACTED,REDACTED,REDACTED,REDACTED,31/07/2012,347072,500,REDACTED,REDACTED
REDACTED,REDACTED,REDACTED,REDACTED,REDACTED,REDACTED,REDACTED,05/07/2012,345417,1830,REDACTED,REDACTED
Gloucester City Council,23UE,The Fleece,RB530,General Repair/Maint Buildings,3000,fleece hotel asbestos removal,19/07/2012,345295,3740,NET,Gloucester Asbestos Ltd
REDACTED,REDACTED,REDACTED,REDACTED,REDACTED,REDACTED,REDACTED,10/08/2012,347462,1125,REDACTED,REDACTED
Gloucester City Council,23UE,Homelessness Prevention,CH122,Fees For Services Received,5350,,24/08/2012,348621,500,NET,Movearound Ltd
Gloucester City Council,23UE,Oxstalls Soft Play Area,LY137,Contract Payments,0020,June application,08/08/2012,347529,34740.6,CAP,House Of Play (Europe) Ltd
Gloucester City Council,23UE,Utilities,PT502,Electricity Supply,3110,NORTH WAREHOUSE,23/08/2012,347922,1209.91,NET,West Mercia Energy
Gloucester City Council,23UE,Utilities,PT502,Electricity Supply,3110,OTC ELECTRICITY JUNE 2012,23/08/2012,347948,2139.38,NET,West Mercia Energy
Gloucester City Council,23UE,Utilities,PT502,Gas Supply,3100,OTC GAS JUNE 2012,23/08/2012,347938,520.71,NET,West Mercia Energy
REDACTED,REDACTED,REDACTED,REDACTED,REDACTED,REDACTED,REDACTED,21/08/2012,347963,599.68,REDACTED,REDACTED
REDACTED,REDACTED,REDACTED,REDACTED,REDACTED,REDACTED,REDACTED,22/08/2012,348420,5979.6,REDACTED,REDACTED
Gloucester City Council,23UE,Homelessness Prevention,CH122,Fees For Services Received,5350,,14/08/2012,347956,550,NET,2 Let Glos Ltd
Gloucester City Council,23UE,Hkp Accomodation Review,RY163,Contract Payments,0020,Fire door furniture,17/08/2012,346729,21048.99,CAP,Harrison Thompson & Co Ltd (Yeoman Shield)
REDACTED,REDACTED,REDACTED,REDACTED,REDACTED,REDACTED,REDACTED,03/08/2012,345934,3000,REDACTED,REDACTED
Gloucester City Council,23UE,Tic Coach Tickets,LT105,Sale Of Goods And Services,9230,NATIONAL EXPRESS 07/08,13/08/2012,347674,-1709.63,NET,National Express Ltd
REDACTED,REDACTED,REDACTED,REDACTED,REDACTED,REDACTED,REDACTED,28/08/2012,348680,500,REDACTED,REDACTED
REDACTED,REDACTED,REDACTED,REDACTED,REDACTED,REDACTED,REDACTED,03/08/2012,346730,756,REDACTED,REDACTED
REDACTED,REDACTED,REDACTED,REDACTED,REDACTED,REDACTED,REDACTED,10/08/2012,347721,1378,REDACTED,REDACTED
REDACTED,REDACTED,REDACTED,REDACTED,REDACTED,REDACTED,REDACTED,03/09/2012,348966,10472.56,REDACTED,REDACTED
Gloucester City Council,23UE,Investment Property,RB500,General Repair/Maint Buildings,3000,credit for invoice 21012337-15,19/09/2012,348770,-48.41,NET,Adt Fire & Security Plc
Gloucester City Council,23UE,Council Streetcare Team,HI101,Electricity Supply,3110,PAVILION KING GEORGE JULY-AUGUST 12,30/08/2012,348342,1012.64,NET,Npower
Gloucester City Council,23UE,Homelessness,CH120,Fees For Services Received,5350,Emergency Duty Service for Homeless,03/08/2012,346713,1100,NET,Gloucestershire County Council
Gloucester City Council,23UE,Land Searches,RO300,Fees For Services Received,5350,Land search charges Q1 2012/13,16/08/2012,347743,6779.5,NET,Gloucestershire County Council
Gloucester City Council,23UE,Utilities,PT502,Electricity Supply,3110,Blackfriars July 12 acct 18424995,24/08/2012,347466,609.69,NET,Edf Energy 1 Ltd
Gloucester City Council,23UE,Council Streetcare Team,HI101,Contracted Services,6970,WASTE SACKS,31/08/2012,348747,903,NET,Polystar Plastics Ltd
Gloucester City Council,23UE,Utilities,PT502,Electricity Supply,3110,BRITISH GAS,29/08/2012,348602,-34.79,NET,British Gas
Gloucester City Council,23UE,Homelessness,CH120,Rent In Advance,5516,,24/08/2012,348634,576.94,NET,Woodfield Lettings Ltd
Gloucester City Council,23UE,Homelessness Prevention,CH122,Fees For Services Received,5350,,24/08/2012,348331,576.92,NET,Woodfield Lettings Ltd
Gloucester City Council,23UE,Forest Of Dean Cpe,PT744,Contracted Services,6970,July 2012 variable services,14/08/2012,347821,2855.84,NET,Apcoa Parking (Uk) Ltd
Gloucester City Council,23UE,Allotments,HI104,Fees For Services Received,5350,REF INV 252103138,31/08/2012,348769,-366.88,NET,Severn Trent Water
Gloucester City Council,23UE,Cctv Revenue Budget,FP501,Security Equipment Serv/Repair,3038,CCTV 1250 Police Stn to Quay St,02/08/2012,347137,1688.4,NET,Bt Redcare
REDACTED,REDACTED,REDACTED,REDACTED,REDACTED,REDACTED,REDACTED,23/08/2012,348347,2175,REDACTED,REDACTED
Gloucester City Council,23UE,Summer Festival,LT300,Operational Equipment <£5000,5012,RADIO STRUCTURES,07/09/2012,349267,2239,NET,2cl Communications Ltd
Gloucester City Council,23UE,Utilities,PT502,Electricity Supply,3110,NORTH WAREHOUSE,20/09/2012,350021,1144.14,NET,West Mercia Energy
Gloucester City Council,23UE,Gis Development Work,RY555,Software Licences >£5000,0054,LVF implementation work,19/09/2012,349821,2500,CAP,Esri (Uk) Ltd
Gloucester City Council,23UE,Council Streetcare Team,HI101,Maint Of Grounds - General,3030,QUEDGELEY 3 BRIDGES ANTISLIP BOARDING,14/09/2012,349560,2574,NET,Greenfields Garden Services Ltd
REDACTED,REDACTED,REDACTED,REDACTED,REDACTED,REDACTED,REDACTED,04/09/2012,348718,531.04,REDACTED,REDACTED
Gloucester City Council,23UE,"Cricket,3 Choirs,Cathedral",LA612,Sports Grants,7114,GLOUCESTER CITY AFC GRANT12-13,13/09/2012,347475,7000,NET,Gloucester City Afc (1980) Ltd
REDACTED,REDACTED,REDACTED,REDACTED,REDACTED,REDACTED,REDACTED,06/09/2012,349002,814,REDACTED,REDACTED
Gloucester City Council,23UE,Improvement Grants,CY013,Disabled Facility Grants,0074,GRANT REF MDF4868,07/09/2012,349301,4310,CAP,Stroud Stairlifts
Gloucester City Council,23UE,The Fleece,RB530,General Repair/Maint Buildings,3000,Fleece Hotel critical repairs,24/09/2012,350304,12001.35,NET,B & M Babbage & Co.Ltd
Gloucester City Council,23UE,Folk Museum Works,RY164,Contract Payments,0020,103 WESTGATE ST,07/09/2012,349296,685.3,CAP,B & M Babbage & Co.Ltd
Gloucester City Council,23UE,Folk Museum,LM210,Cleaning Materials,3600,credit for soap picked in error,17/09/2012,349416,-11.26,NET,Gpp Hygiene
Gloucester City Council,23UE,Tic Coach Tickets,LT105,Sale Of Goods And Services,9230,august 12 agent ticket sales,18/09/2012,349436,-2022.25,NET,National Express Ltd
Gloucester City Council,23UE,Tic Coach Tickets,LT105,Materials For Sale,5080,august 12 agent ticket sales,18/09/2012,349436,17683.65,NET,National Express Ltd
Gloucester City Council,23UE,Business Transformation & Tech,RT700,Computer Hardware <£5000,5420,LATITUDE XT3,13/09/2012,349365,768,NET,Dell Computers Corporation Ltd
Gloucester City Council,23UE,Client Revs & Bens Contract,RT240,Computer Software Maintenance,5427,credit re M/RB006324,18/09/2012,343044,-621.27,NET,Civica Uk Ltd
Gloucester City Council,23UE,Registration Of Electors,RS400,Printing,5300,CANVASS FULFILMENT,07/09/2012,349275,877.82,NET,Print.Uk.Com
Gloucester City Council,23UE,Tic Coach Tickets,LT105,Sale Of Goods And Services,9230,REF INV 963563 COMMISSION,25/09/2012,350029,-1.62,NET,Superbreak Mini Holidays
Gloucester City Council,23UE,Homelessness,CH120,Board And Lodging,5515,credit for invoice 1800240080,25/09/2012,350093,-122.92,NET,Gloucestershire County Council
REDACTED,REDACTED,REDACTED,REDACTED,REDACTED,REDACTED,REDACTED,26/09/2012,350287,1234.5,REDACTED,REDACTED
REDACTED,REDACTED,REDACTED,REDACTED,REDACTED,REDACTED,REDACTED,10/09/2012,349287,987.6,REDACTED,REDACTED
Gloucester City Council,23UE,Homelessness Prevention,CH122,Fees For Services Received,5350,,19/09/2012,349689,600,NET,Pro-Services Property Management
Gloucester City Council,23UE,Tic Rovercard Sales,LT101,Materials For Sale,5080,ticket sales period 4 12/113,25/09/2012,349424,4938,NET,Stagecoach Services Ltd*
Gloucester City Council,23UE,Tic Rovercard Sales,LT101,Materials For Sale,5080,TICKET SALES PERIOD 5,01/10/2012,350626,12301.3,NET,Stagecoach Services Ltd*
Gloucester City Council,23UE,Off Street Car Parks,PP110,Electricity Supply,3110,EASTGATE CAR PARK A/C A3496654,28/09/2012,350565,2241.64,NET,British Gas
REDACTED,REDACTED,REDACTED,REDACTED,REDACTED,REDACTED,REDACTED,13/09/2012,349430,1260,REDACTED,REDACTED
Gloucester City Council,23UE,Forest Of Dean Cpe,PT744,Contracted Services,6970,AUG 2012,10/09/2012,349295,2855.84,NET,Apcoa Parking (Uk) Ltd
Gloucester City Council,23UE,Tic Theatre Ticket Sales,LT107,Sale Of Goods And Services,9230,HIGHNAM COURT SPRING FAIR,15/06/2012,344294,-22.92,NET,Pied Piper Appeal
Gloucester City Council,23UE,Herbert Reception Upgrade,RY201,Contract Payments,0020,hkp basement flooring,08/06/2012,343445,1984,CAP,D&D Flooring
Gloucester City Council,23UE,Docks Complex - Services,RB100,Service Charges,3020,HKP SERVICE CHARGE JUL-SEPT 12,12/06/2012,343650,13024.75,NET,Jones Lang Lasalle
Gloucester City Council,23UE,Kings Sq Paving Emerg Reps,RY161,Contract Payments,0020,KINGS SQ WORKS,13/06/2012,344135,1759.58,CAP,Anderson Civil Engineering Uk Ltd
Gloucester City Council,23UE,Civil Parking Enforcement,PT741,On Street Parking Charges,6550,April 2012 parking income,29/06/2012,344841,57008.97,NET,Gloucestershire County Council
Gloucester City Council,23UE,General Drainage Works,PY241,Contract Payments,0020,temp path closure at Barn Close 2-6/4/12,25/06/2012,344596,517.53,CAP,Gloucestershire County Council
Gloucester City Council,23UE,Postal Services,RS120,Postages,5400,JUN 12-MAY13 DE SUBSCRIPTION,15/06/2012,343909,2122.47,NET,Dx Network Services Ltd
Gloucester City Council,23UE,Off Street Car Parks,PP110,Service Charges,3020,CAR PARK EASTGATE SHOPPING CTR,29/06/2012,344429,511.35,NET,Workman Llp Insurance Account
Gloucester City Council,23UE,Tic Rovercard Sales,LT101,Sale Of Goods And Services,9230,PERIOD 1 2012/13,20/06/2012,344580,-671.03,NET,Stagecoach Services Ltd*
Gloucester City Council,23UE,Off Street Car Parks,PP110,Electricity Supply,3110,Longsmith St car park electric,29/06/2012,344863,1158.49,NET,British Gas
REDACTED,REDACTED,REDACTED,REDACTED,REDACTED,REDACTED,REDACTED,14/06/2012,343759,500,REDACTED,REDACTED
Gloucester City Council,23UE,Docks Complex - Castlemeads Cp,RB210,Contracted Services,6970,MAY 12 PARKING SERVICES,12/06/2012,343745,3256.85,NET,Apcoa Parking (Uk) Ltd
REDACTED,REDACTED,REDACTED,REDACTED,REDACTED,REDACTED,REDACTED,16/07/2012,345445,520,REDACTED,REDACTED
REDACTED,REDACTED,REDACTED,REDACTED,REDACTED,REDACTED,REDACTED,06/07/2012,345744,1206.5,REDACTED,REDACTED
Gloucester City Council,23UE,Blackfriars Priory,RY207,Contract Payments,0020,Blackfriars fire escape impact assessmnt,18/07/2012,343592,1800,CAP,Oxford Archaeology South
Gloucester City Council,23UE,Kings Quarter Redevelopment,RB600,Fees For Services Received,5350,Kings Qtr retail consultancy Apr-Jun12,05/07/2012,345569,3705,NET,Cb Richard Ellis Ltd
Gloucester City Council,23UE,Allotments,HI104,Fees For Services Received,5350,WHITE CITY ALLOTMENTS FENCING,18/07/2012,345998,2078,NET,Greenfields Garden Services Ltd
Gloucester City Council,23UE,Commuted Funds- Social Housing,CY047,Contract Payments,0020,FRAMPTON RD,06/07/2012,345730,220000,CAP,Rooftop Housing Group Ltd
Gloucester City Council,23UE,Improvement Grants,CY013,Disabled Facility Grants,0074,,06/07/2012,345595,4618.76,CAP,Care & Repair
Gloucester City Council,23UE,Investment Property,RB500,Gas Supply,3100,depot flat credit Jul10-Aug10,17/07/2012,345935,-12.69,NET,Corona Energy
Gloucester City Council,23UE,Xmas Festivities,HM231,Exhibits And Collections,5038,Christmas Light Procession,18/07/2012,346280,10000,NET,Marketing Gloucester Ltd
Gloucester City Council,23UE,Marketing Gloucester Charges,RC433,Contracted Services,6970,,18/07/2012,346383,166650,NET,Marketing Gloucester Ltd
Gloucester City Council,23UE,Xmas Festivities,HM231,Exhibits And Collections,5038,credit against invoice no 3,15/10/2012,346966,-10000,NET,Marketing Gloucester Ltd
Gloucester City Council,23UE,Group Mgr Cult Ser & Tourism,GR102,Events,5952,credit against invoice 2,15/10/2012,346965,-2000,NET,Marketing Gloucester Ltd
REDACTED,REDACTED,REDACTED,REDACTED,REDACTED,REDACTED,REDACTED,26/07/2012,346635,2124.65,REDACTED,REDACTED
Gloucester City Council,23UE,Grants To Voluntary Sector,FG100,Funding Vol&Com Grps-Grants,7100C,community grant 12-13,05/07/2012,345455,500,NET,Apna Ghar Court Residents Associtaion
Gloucester City Council,23UE,Improvement Grants,CY013,Disabled Facility Grants,0074,23 Redwell Road Gloucester,23/07/2012,345916,4015,CAP,Nks Contracts (Central) Ltd
REDACTED,REDACTED,REDACTED,REDACTED,REDACTED,REDACTED,REDACTED,05/07/2012,345484,1405,REDACTED,REDACTED
Gloucester City Council,23UE,Food Safety,HE100,Fees For Services Received,5350,level 2 food safety awards,09/07/2012,345444,584.8,NET,Chartered Institute Enviromental Health
Gloucester City Council,23UE,Tic Theatre Ticket Sales,LT107,Sale Of Goods And Services,9230,,13/07/2012,345914,-22.5,NET,Linton Festival C/C
Gloucester City Council,23UE,Human Resources,EH100,Basic Pay -Admin /Prof Staff,2601,May 12 mgmt of apprentice scheme,20/07/2012,346423,3250,NET,Hr Consulting Ltd
Gloucester City Council,23UE,Council Streetcare Team,HI101,Maint Of Grounds - General,3030,HORSBERE MEADOWS,23/07/2012,345486,520,NET,Doug Salisbury Building Services
Gloucester City Council,23UE,Grants To Voluntary Sector,FG100,Funding Vol&Com Grps-Grants,7100C,COMMUNITY GRANT 2012-13,04/07/2012,345379,8680,NET,Young Gloucestershire
Gloucester City Council,23UE,Youth Grant 2011/12,FP107,Funding Vol&Com Grps-Grants,7100C,YOUTH GRANT 2012-13,05/07/2012,345491,918,NET,Quedgeley Wanderers Football Club
Gloucester City Council,23UE,Gloucester Partnership,FP106,Sports Grants,7114,Saturday Basketball Club grant,24/07/2012,346271,2400,NET,Gloucestershire College
Gloucester City Council,23UE,Utilities,PT502,Electricity Supply,3110,OTC ELECTRICITY MAY 2012,23/08/2012,347947,2396.83,NET,West Mercia Energy
Gloucester City Council,23UE,Utilities,PT502,Gas Supply,3100,"GAS, CEMETERY",28/08/2012,348542,4196.02,NET,West Mercia Energy
Gloucester City Council,23UE,Pest Control,HD400,Fees For Services Received,5350,HKP pest control to 31/7/12,14/08/2012,347878,988.3,NET,Falconry Services Bird & Pest Control
REDACTED,REDACTED,REDACTED,REDACTED,REDACTED,REDACTED,REDACTED,REDACTED,REDACTED,3004.7,REDACTED,REDACTED
Gloucester City Council,23UE,Off Street Car Parks,PP110,Service Charges,3020,9A EASTGATE SHOPPING CTR,30/08/2012,348759,1154.92,NET,Workman Llp Service Charge Account
REDACTED,REDACTED,REDACTED,REDACTED,REDACTED,REDACTED,REDACTED,29/08/2012,348735,800.08,REDACTED,REDACTED
Gloucester City Council,23UE,Business Transformation & Tech,RT700,Security Testing - Govt Connec,5446,FIXED EXPENCES,29/08/2012,348665,514.52,NET,Sec-1 Ltd
Gloucester City Council,23UE,Business Transformation & Tech,RT700,Security Testing - Govt Connec,5446,IT HEALTH CHECK,29/08/2012,348664,9900,NET,Sec-1 Ltd
REDACTED,REDACTED,REDACTED,REDACTED,REDACTED,REDACTED,REDACTED,17/08/2012,348194,600,REDACTED,REDACTED
REDACTED,REDACTED,REDACTED,REDACTED,REDACTED,REDACTED,REDACTED,17/08/2012,348194,576.92,REDACTED,REDACTED
Gloucester City Council,23UE,Play Area Refurbishment,LY071,Contract Payments,0020,RANDWICK PARK PLAY AREA,03/08/2012,347151,22780.85,CAP,Kompan Ltd
REDACTED,REDACTED,REDACTED,REDACTED,REDACTED,REDACTED,REDACTED,09/08/2012,347449,534.65,REDACTED,REDACTED
REDACTED,REDACTED,REDACTED,REDACTED,REDACTED,REDACTED,REDACTED,03/08/2012,347099,520.2,REDACTED,REDACTED
Gloucester City Council,23UE,Improvement Grants,CY013,Disabled Facility Grants,0074,39 KESTREL GARDENS,28/08/2012,348669,15185,CAP,L Coward & Son Ltd
Gloucester City Council,23UE,Youth Grant 2011/12,FP107,Grants To Voluntary Orgs-Rents,7100,,16/08/2012,348148,2350,NET,Spring Centre
REDACTED,REDACTED,REDACTED,REDACTED,REDACTED,REDACTED,REDACTED,14/08/2012,348067,-576.92,REDACTED,REDACTED
REDACTED,REDACTED,REDACTED,REDACTED,REDACTED,REDACTED,REDACTED,31/08/2012,348907,500,REDACTED,REDACTED
Gloucester City Council,23UE,Parking Cctv,PT745,Fees For Services Received,5350,PATROL bus lane,04/09/2012,347799,946.85,NET,Patrol
Gloucester City Council,23UE,Crematorium,HC200,Memorial Plaques,5053,Bronze plaques,30/08/2012,348785,762.5,NET,Arkell & Hurcombe
REDACTED,REDACTED,REDACTED,REDACTED,REDACTED,REDACTED,REDACTED,02/08/2012,347158,501.83,REDACTED,REDACTED
Gloucester City Council,23UE,Civic Admin And Hospitality,RC210,Events,5952,DONATION FROM MAYORS CHARITY,01/10/2012,347820,500,NET,Barnwood Medical Practice
REDACTED,REDACTED,REDACTED,REDACTED,REDACTED,REDACTED,REDACTED,22/08/2012,348311,1500,REDACTED,REDACTED
Gloucester City Council,23UE,Gloucester Partnership,FP106,Sports Grants,7114,Make Lunch project - Olympic Legacy,10/08/2012,347636,2500,NET,Btcv T/A The Conservation Volunteers
Gloucester City Council,23UE,Cemeteries,HC300,Sewerage And Environ Charges,3402,3850363587/JULY-12,03/08/2012,347207,560,NET,Severn Trent Water Ltd
Gloucester City Council,23UE,Treasury Management,VR110,Brokerage Fees,5951,MARTIN BROKERS UK PLC,06/08/2012,347389,3808.22,NET,Martin Brokers (Uk) Plc
Gloucester City Council,23UE,Summer Festival,LT300,Fees For Services Received,5350,Carnival workshops,10/08/2012,347316,3268,NET,Global Arts Inc Ltd
Gloucester City Council,23UE,Utilities,PT502,Electricity Supply,3110,DEPOT,20/09/2012,349969,1533.73,NET,West Mercia Energy
Gloucester City Council,23UE,Utilities,PT502,Electricity Supply,3110,UNIT 2 SOUTHGATE ST REF INV 2267818,20/09/2012,350004,-385.9,NET,West Mercia Energy
Gloucester City Council,23UE,Utilities,PT502,Electricity Supply,3110,UNIT 2 SOUTHGATE ST REF INV 2311145,20/09/2012,350096,-308.79,NET,West Mercia Energy
Gloucester City Council,23UE,Utilities,PT502,Electricity Supply,3110,17 THE FORUM REF INV 1006540,20/09/2012,349973,-21.43,NET,West Mercia Energy
Gloucester City Council,23UE,Procurement Management,RP100,Photocopying,5320,apr-jul12 copy costs,02/11/2012,347212,1353.95,NET,Danwood Group Limited
Gloucester City Council,23UE,Airport Land,RO400,Fees For Services Received,5350,GLOS AIRPORT,07/09/2012,349258,958.1,NET,Geldards Llp
Gloucester City Council,23UE,Tic Theatre Ticket Sales,LT107,Materials For Sale,5080,KEMBLE AIR SERVICES LTD,25/09/2012,349429,1385,NET,Kemble Air Services Ltd
Gloucester City Council,23UE,Tea & Wake Room Cem&Crem,HY043,Contract Payments,0020,CREM,14/09/2012,349076,550,CAP,The Fountain Company Ltd
REDACTED,REDACTED,REDACTED,REDACTED,REDACTED,REDACTED,REDACTED,REDACTED,REDACTED,2845.85,REDACTED,REDACTED
Gloucester City Council,23UE,Retail Market - Landlord,HM300,Service Charges,3020,MARKET HALL EASTGATE SHOPPING CTR,17/09/2012,348754,13999,NET,Workman Llp Service Charge Account
Gloucester City Council,23UE,The Fleece,RB530,Consultants Fees,5349,FLEECE HOTEL ARCHAEOLOGICAL SERVICES,01/10/2012,349532,3550,NET,Oxford Archaeology South
Gloucester City Council,23UE,Council Streetcare Team,HI101,General Repair/Maint Buildings,3000,SUDS ADOPTION PROCEDURES,21/09/2012,349155,700,NET,Bwb Consulting Ltd
Gloucester City Council,23UE,Homelessness,CH120,Board And Lodging,5515,VOID LOSS,11/09/2012,344290,766.44,NET,Riverside Group Ltd
Gloucester City Council,23UE,Dwelling Improvements,BY008,Contract Payments,0020,July 12 Capital,13/09/2012,348082,272897.68,CAP,Gloucester City Homes
REDACTED,REDACTED,REDACTED,REDACTED,REDACTED,REDACTED,REDACTED,24/09/2012,350082,756,REDACTED,REDACTED
Gloucester City Council,23UE,Business Transformation & Tech,RT700,Computer Software Maintenance,5427,LANDESK 07/12-07/13,25/09/2012,350348,4095.81,NET,Landesk International Ltd
Gloucester City Council,23UE,Investment Property,RB500,General Repair/Maint Buildings,3000,HKP ALARM MAINTENANCE 7/12-7/13,21/09/2012,346029,1011.11,NET,Adt Fire & Security Plc
Gloucester City Council,23UE,Investment Property,RB500,General Repair/Maint Buildings,3000,credit for invoice 21681989-15,21/09/2012,350129,-1011.11,NET,Adt Fire & Security Plc
Gloucester City Council,23UE,Investment Property,RB500,General Repair/Maint Buildings,3000,CREDIT FOR INVOICE 21466791-15,21/09/2012,350134,-534.62,NET,Adt Fire & Security Plc
REDACTED,REDACTED,REDACTED,REDACTED,REDACTED,REDACTED,REDACTED,28/09/2012,350654,500,REDACTED,REDACTED
Gloucester City Council,23UE,Tourism Marketing,LT100,Materials For Sale,5080,CREDIT FOR 2040652622,12/02/2013,350536,-126,NET,Adidas (Uk) Ltd
Gloucester City Council,23UE,General Drainage Works,PY241,Contract Payments,0020,"WORKS REF DOMINOES, GLOS",28/09/2012,350615,1890,CAP,Js Builders & Landscaping Services
Gloucester City Council,23UE,Hkp Accomodation Review,RY163,Contract Payments,0020,GROUND FLOOR REFURB HERBERT W/H,24/09/2012,349531,7255,CAP,Hills Construction South West Ltd
REDACTED,REDACTED,REDACTED,REDACTED,REDACTED,REDACTED,REDACTED,21/09/2012,350201,511.98,REDACTED,REDACTED
Gloucester City Council,23UE,St Oswalds Car Park 3,PJ140,Contracted Services,6970,AUG 2012,10/09/2012,349295,3244.56,NET,Apcoa Parking (Uk) Ltd
Gloucester City Council,23UE,Hempsted Market/Car Boot,HM234,Trade Refuse Sacks,5040,tradewaste enterprise,11/09/2012,349162,1904.74,NET,Enterprise (Aol) Ltd
Gloucester City Council,23UE,Cemeteries,HC300,Trade Refuse Tipping Fees,6297,tradewaste enterprise,11/09/2012,349162,5661.97,NET,Enterprise (Aol) Ltd
Gloucester City Council,23UE,Senior Management Restructurin,RO200,Fees For Services Received,5350,consultancy services July 2012,11/09/2012,349439,4977.6,NET,Alexander Beaver Associates
Gloucester City Council,23UE,Senior Management Restructurin,RO200,Fees For Services Received,5350,AUG 2012,07/09/2012,349257,9955.2,NET,Alexander Beaver Associates
REDACTED,REDACTED,REDACTED,REDACTED,REDACTED,REDACTED,REDACTED,31/10/2012,352527,4796,REDACTED,REDACTED
Gloucester City Council,23UE,Utilities,PT502,Gas Supply,3100,GL1 ELECTRIC SEPT 2012,23/10/2012,351793,7048.53,NET,West Mercia Energy
Gloucester City Council,23UE,Utilities,PT502,Electricity Supply,3110,REF INV 2396258 KIOSK 1 KINGS WALK,19/10/2012,351808,-9.41,NET,West Mercia Energy
Gloucester City Council,23UE,Utilities,PT502,Electricity Supply,3110,NORTH WAREHOUSE,19/10/2012,351820,1107.69,NET,West Mercia Energy
Gloucester City Council,23UE,Utilities,PT502,Electricity Supply,3110,CREM,19/10/2012,351785,1376.13,NET,West Mercia Energy
Gloucester City Council,23UE,Docks Complex - Telephones,RB120,Lease Lines,5411,call charges to 30/6/12,23/10/2012,346539,3948.11,NET,Gamma Business Communications
REDACTED,REDACTED,REDACTED,REDACTED,REDACTED,REDACTED,REDACTED,11/10/2012,351293,500,REDACTED,REDACTED
REDACTED,REDACTED,REDACTED,REDACTED,REDACTED,REDACTED,REDACTED,18/10/2012,351777,2531,REDACTED,REDACTED
REDACTED,REDACTED,REDACTED,REDACTED,REDACTED,REDACTED,REDACTED,03/10/2012,350852,750,REDACTED,REDACTED
Gloucester City Council,23UE,Members Support,RC300,Members Training,5535,RIPA training 26/9/12 Steve Morris,15/10/2012,350857,1367.2,NET,Act Now Training Ltd
Gloucester City Council,23UE,Homelessness Prevention,CH122,Fees For Services Received,5350,RIA & deposit 61 High St,30/10/2012,352430,500,NET,Chosen Properties Ltd
Gloucester City Council,23UE,Homelessness,CH120,Board And Lodging,5515,VARIOUS TENANTS,18/10/2012,351779,1312.95,NET,Carbrey Housing Ltd
Gloucester City Council,23UE,Investment Property,RB500,General Repair/Maint Buildings,3000,July12 service visits,23/10/2012,351560,4902,NET,Hewer Facilities Mgt Ltd
REDACTED,REDACTED,REDACTED,REDACTED,REDACTED,REDACTED,REDACTED,11/10/2012,351338,555,REDACTED,REDACTED
REDACTED,REDACTED,REDACTED,REDACTED,REDACTED,REDACTED,REDACTED,12/10/2012,351406,500,REDACTED,REDACTED
Gloucester City Council,23UE,Business Transformation & Tech,RT700,Computer Software Maintenance,5427,SEP12-AUG13 HOSTING PRONOTICE ETC,01/11/2012,352541,1875,NET,Due North Ltd
Gloucester City Council,23UE,Docks Office Works,RY165,Contract Payments,0020,4 X RECYCLING COLLECTIONS,09/10/2012,350775,720,CAP,Archer Recycling
REDACTED,REDACTED,REDACTED,REDACTED,REDACTED,REDACTED,REDACTED,REDACTED,REDACTED,1359.6,REDACTED,REDACTED
Gloucester City Council,23UE,Tic Theatre Ticket Sales,LT107,Sale Of Goods And Services,9230,THE HAUNTED CABIN TICKET SALES,11/10/2012,351253,-14.33,NET,Kings Theatre
Gloucester City Council,23UE,Council Streetcare Team,HI101,General Repair/Maint Buildings,3000,STAFF W/E 21/10/12,29/10/2012,352303,1468.36,NET,One To One Recruitment
Gloucester City Council,23UE,Civica Admin Charges,RT105,Postages,5400,ACCT 0870585007 REVENUES,02/10/2012,350397,1424.93,NET,Royal Mail S.Wales & South West
Gloucester City Council,23UE,Postal Services,RS120,Postages,5400,ACCT 0252446000 W/E 27/09/12,01/11/2012,350897,1730.79,NET,Royal Mail S.Wales & South West
Gloucester City Council,23UE,Tic Coach Tickets,LT105,Materials For Sale,5080,TICKETS SEPT 2012,23/10/2012,351997,4508,NET,Marchants Coaches Ltd
Gloucester City Council,23UE,Civic Admin And Hospitality,RC210,Events,5952,DONATION FROM MAYORS CHARITY,01/10/2012,350769,-500,NET,Barnwood Medical Practice
Gloucester City Council,23UE,Celebratory Lights,LT302,Christmas Lights,5024,LIGHTS,08/10/2012,350685,564.4,NET,Mk Illumination Uk Ltd
Gloucester City Council,23UE,Aspire Admin Charges,LC105,Computer Hardware <£5000,5420,KYOCERA,25/10/2012,351991,1899,NET,Qual Technology
Gloucester City Council,23UE,Guildhall Bar And Café,LA210,Hire Of Equipment,5020,Created by invoice listener,12/10/2012,351416,504.95,NET,Gerry Dance Disposables Ltd
REDACTED,REDACTED,REDACTED,REDACTED,REDACTED,REDACTED,REDACTED,30/10/2012,13220,500,REDACTED,REDACTED
REDACTED,REDACTED,REDACTED,REDACTED,REDACTED,REDACTED,REDACTED,15/10/2012,351478,4777,REDACTED,REDACTED
Gloucester City Council,23UE,Folk Museum Works,RY164,Contract Payments,0020,REF INV 90420757,12/02/2013,352085,-23.33,CAP,Mitie Pest Control Limited
Gloucester City Council,23UE,Improvement Grants,CY013,Disabled Facility Grants,0074,GRANT REF MDF4878,10/10/2012,351249,5187,CAP,Tpg Disableaids
REDACTED,REDACTED,REDACTED,REDACTED,REDACTED,REDACTED,REDACTED,19/10/2012,351652,3975,NET,REDACTED
REDACTED,REDACTED,REDACTED,REDACTED,Basic Pay - Temporary Staff,2751,REDACTED,09/11/2012,352868,1125,NET,REDACTED
REDACTED,REDACTED,REDACTED,REDACTED,Basic Pay - Temporary Staff,2751,REDACTED,14/11/2012,353505,1125,NET,REDACTED
Gloucester City Council,23UE,Historic Buildings,PH100,Conservation Grants,7101,facelift grant payment,27/11/2012,354203,2217.6,NET,Furniture Exhibition Centres Ltd
Gloucester City Council,23UE,Utilities,PT502,Gas Supply,3100,GUILDHALL GAS AUG/SEPT 2012,13/11/2012,353049,517.25,NET,West Mercia Energy
Gloucester City Council,23UE,Utilities,PT502,Electricity Supply,3110,OTC ELECTRIC OCT 2012,22/11/2012,353944,3906.09,NET,West Mercia Energy
Gloucester City Council,23UE,Utilities,PT502,Electricity Supply,3110,WINDFALL WAY C/ROOMS,22/11/2012,353938,1487.85,NET,West Mercia Energy
Gloucester City Council,23UE,City Museum And Art Gallery,LM200,Publications For Sale,5064,FOLK MUSEUM GOODS,27/11/2012,354223,810.86,NET,Rex International
Gloucester City Council,23UE,Pest Control,HD400,Fees For Services Received,5350,Oct12 pest control,08/11/2012,353027,1459.12,NET,Falconry Services Bird & Pest Control
Gloucester City Council,23UE,Business Transformation & Tech,RT700,Lease Lines,5411,LEASED LINE CREDIT A/C 915265,04/12/2012,353773,-31.64,NET,Virgin Media Payments Ltd
Gloucester City Council,23UE,Development Management,PT200,Consultants Fees,5349,re 12/00423/FUL retail impact study,26/11/2012,353691,1750,NET,Dpds Ltd
REDACTED,REDACTED,REDACTED,REDACTED,REDACTED,REDACTED,REDACTED,27/11/2012,354126,1895,REDACTED,REDACTED
Gloucester City Council,23UE,Docks Office Works,RY165,Contract Payments,0020,DOOR LOCKS,22/11/2012,353335,1390,CAP,Severnside Security
Gloucester City Council,23UE,Registration Of Electors,RS400,Postages,5400,ACCT 0870585031,12/11/2012,353186,7458.2,NET,Royal Mail S.Wales & South West
Gloucester City Council,23UE,Registration Of Electors,RS400,Postages,5400,ELECTIONS POST,03/12/2012,354460,1222.56,NET,Royal Mail S.Wales & South West
Gloucester City Council,23UE,Aspire Admin Charges,LC105,Computer Hardware <£5000,5420,OITC FIRBER LINK & DATA POINTS,26/11/2012,354104,1660.11,NET,Cablecom Networking Ltd
Gloucester City Council,23UE,Legal Services,RS200,Basic Pay - Temporary Staff,2751,Created by invoice listener,22/11/2012,354015,640.26,NET,Sellick Partnership Group Ltd
Gloucester City Council,23UE,Homelessness,CH120,Board And Lodging,5515,,16/11/2012,353678,2259.65,NET,Dorchester House Trust
Gloucester City Council,23UE,Tic Coach Tickets,LT105,Sale Of Goods And Services,9230,OCT 2012 SALES,07/11/2012,352859,-2.5,NET,Wetm Ltd
Gloucester City Council,23UE,Grants To Voluntary Sector,FG100,Funding Vol&Com Grps-Sla'S,7100B,Community Grant 12-13 2 of 3,14/11/2012,352991,25755,NET,Gloucester Law Centre
Gloucester City Council,23UE,Cemeteries,HC300,Maint Of Grounds - General,3030,REF INV 21805,08/11/2012,352985,-6.04,NET,Millington & Ramstedt Ltd
Gloucester City Council,23UE,Business Transformation & Tech,RT700,Computer Software Maintenance,5427,HOM hosting & support,08/11/2012,352875,4318,NET,Abritas Ltd
Gloucester City Council,23UE,Postal Services,RS120,Postages,5400,credit for collection invoiced in error,27/11/2012,354131,-17.35,NET,Interlink Express Parcels Ltd
Gloucester City Council,23UE,Parking Cctv,PT745,On Street Parking Charges,6550,Oct 12 bus lane enforcement income,26/11/2012,353742,5958.69,NET,Gloucestershire County Council
Gloucester City Council,23UE,Off Street Car Parks,PP110,Service Charges,3020,SERVICE CHARGE JAN-MAR 2013,05/12/2012,354592,2449.83,NET,Workman Llp Service Charge Account
REDACTED,REDACTED,REDACTED,REDACTED,REDACTED,REDACTED,REDACTED,17/12/2012,353619,940.5,REDACTED,REDACTED
Gloucester City Council,23UE,Hillfield Gardens Sensory Gard,LY146,Contract Payments,0020,BRICKS,05/12/2012,354666,1237.5,CAP,Wye Valley Reclamation Ltd
Gloucester City Council,23UE,Asset Management,RS300,Basic Pay -Admin /Prof Staff,2601,Nov12 consultancy,11/12/2012,355028,5525,NET,Ardley Associates
Gloucester City Council,23UE,Planning Policy,PT300,Fees For Services Received,5350,Joint Core Strategy services,02/01/2013,348104,30000,NET,Cheltenham Borough Council
Gloucester City Council,23UE,Tic Theatre Ticket Sales,LT107,Sale Of Goods And Services,9230,,21/12/2012,355937,-11.09,NET,Kings Theatre
REDACTED,REDACTED,REDACTED,REDACTED,REDACTED,REDACTED,REDACTED,02/01/2013,356022,9488.23,REDACTED,REDACTED
Gloucester City Council,23UE,Improvement Grants,CY013,Disabled Facility Grants,0074,,05/12/2012,354659,4999,CAP,Dolphin Lifts (Western) Ltd
Gloucester City Council,23UE,Off Street Car Parks,PP110,General Repair/Maint Buildings,3000,castlemeads car park works,21/12/2012,355877,1068,NET,Davey'S Building Maintenance
Gloucester City Council,23UE,Improvement Grants,CY013,Disabled Facility Grants,0074,69 GREENWAYS WORKS,17/12/2012,355523,818.72,CAP,Davey'S Building Maintenance
Gloucester City Council,23UE,Investment Property,RB500,General Repair/Maint Buildings,3000,credit re invoice 22337946,20/12/2012,355440,-561.43,NET,Adt Fire & Security Plc
Gloucester City Council,23UE,Investment Property,RB500,General Repair/Maint Buildings,3000,part credit re invoice 22598768,20/12/2012,355441,-57.5,NET,Adt Fire & Security Plc
Gloucester City Council,23UE,Blackfriars Inn,RY191,Contract Payments,0020,BLACKFRIARS PRIORY MEANS OF ESCAPE,13/12/2012,354673,19383.97,CAP,E G Carter & Co Ltd
Gloucester City Council,23UE,Tea & Wake Room Cem&Crem,HY043,Contract Payments,0020,CREM,11/12/2012,352618,569.41,CAP,Neptune Building Services Ltd
Gloucester City Council,23UE,Safer Stronger Communities,FP841,Other Minor Supplies Services,5590,garden shed alarms,02/01/2013,355879,1000,NET,J N E Marketing
Gloucester City Council,23UE,3rd Floor North Warehouse,RY210,Contract Payments,0020,North W/h works application 2,12/12/2012,355006,25859.13,CAP,The Design Works Group Ltd
REDACTED,REDACTED,REDACTED,REDACTED,REDACTED,REDACTED,REDACTED,11/12/2012,355076,600,REDACTED,REDACTED
REDACTED,REDACTED,REDACTED,REDACTED,REDACTED,REDACTED,REDACTED,04/12/2012,354141,1234.5,REDACTED,REDACTED
REDACTED,REDACTED,REDACTED,REDACTED,REDACTED,REDACTED,REDACTED,11/12/2012,355032,1250,REDACTED,REDACTED
REDACTED,REDACTED,REDACTED,REDACTED,REDACTED,REDACTED,REDACTED,20/12/2012,355443,1234.5,REDACTED,REDACTED
Gloucester City Council,23UE,Hackney Carriages,HL100,Fees For Services Received,5350,OCT12 CRB CHECKS,10/12/2012,352644,572,NET,Disclosure And Barring Service
REDACTED,REDACTED,REDACTED,REDACTED,REDACTED,REDACTED,REDACTED,11/12/2012,355061,650,REDACTED,REDACTED
REDACTED,REDACTED,REDACTED,REDACTED,REDACTED,REDACTED,REDACTED,07/12/2012,354918,650,REDACTED,REDACTED
REDACTED,REDACTED,REDACTED,REDACTED,REDACTED,REDACTED,REDACTED,11/12/2012,354997,1061.75,REDACTED,REDACTED
Gloucester City Council,23UE,Civic Admin And Hospitality,RC210,Muniments And Regalia,5033,CLOTHING,23/01/2013,356710,2035,NET,Michaels Civic Robes
Gloucester City Council,23UE,Improvement Grants,CY013,Disabled Facility Grants,0074,GRANT REF MDF4944,24/01/2013,357467,1239,CAP,Stroud Stairlifts
Gloucester City Council,23UE,Investment Property,RB500,General Repair/Maint Buildings,3000,MAINT COVER 02/13-05/13,10/01/2013,356090,609.04,NET,Schindler Ltd
Gloucester City Council,23UE,Decent Homes Loans,CY042,Housing Loans,0064,193 BRISTOL RD,07/01/2013,356100,577,CAP,Valuation Office Agency Administration
Gloucester City Council,23UE,Crematorium,HC200,Repair/Maint Of Fixed Plant,3006,ANNUAL MAINT,31/01/2013,357531,550,NET,Crowcon Detection Instruments Limited
Gloucester City Council,23UE,Business Transformation & Tech,RT700,Computer Software Maintenance,5427,NETVAULT,03/01/2013,356018,4936.48,NET,Cristie Data Ltd
Gloucester City Council,23UE,Investment Property,RB500,General Repair/Maint Buildings,3000,THE PARK,10/01/2013,356107,560.65,NET,Snape Construction Ltd
Gloucester City Council,23UE,Mortgage Rescue,CH128,Fees For Services Received,5350,STAFF W/E 29/12/12,15/01/2013,356668,1059.36,NET,One To One Recruitment
Gloucester City Council,23UE,Off Street Car Parks,PP110,General Repair/Maint Buildings,3000,Car park surfacing works,22/01/2013,357329,1865,NET,Abbey Surfacing
Gloucester City Council,23UE,Postal Services,RS120,Postages,5400,ACCT 0252446000 W/E 10/01/13,21/01/2013,357129,1606.36,NET,Royal Mail S.Wales & South West
Gloucester City Council,23UE,Postal Services,RS120,Postages,5400,ACCT 0870585006,08/01/2013,355092,750,NET,Royal Mail S.Wales & South West
Gloucester City Council,23UE,Economic Development,FP300,Other Minor Supplies Services,5590,PROSPECTUS,01/02/2013,357834,1202,NET,Severnprint Ltd
Gloucester City Council,23UE,Tic Trading,LT110,Trade Refuse Sacks,5040,TRADE WASTE,29/01/2013,357628,1848.8,NET,Enterprise (Aol) Ltd
Gloucester City Council,23UE,Client Revs & Bens Contract,RT240,Fees For Services Received,5350,JUDICIAL REVIEW,25/01/2013,356709,1487.5,NET,Bevan Brittan
Gloucester City Council,23UE,Legal Services,RS200,Fees For Services Received,5350,PROFESSIONAL SERVICES,17/01/2013,356548,12490.08,NET,Bevan Brittan
REDACTED,REDACTED,REDACTED,REDACTED,REDACTED,REDACTED,REDACTED,18/01/2013,357136,800,REDACTED,REDACTED
Gloucester City Council,23UE,Gloucester Guildhall,LA100,Water Supply,3400,ACCT 8310161420,23/01/2013,357385,570.72,NET,Severn Trent Water
REDACTED,REDACTED,REDACTED,REDACTED,REDACTED,REDACTED,REDACTED,30/01/2013,357682,679.5,REDACTED,REDACTED
REDACTED,REDACTED,REDACTED,REDACTED,REDACTED,REDACTED,REDACTED,21/01/2013,356861,2385,REDACTED,REDACTED
REDACTED,REDACTED,REDACTED,REDACTED,REDACTED,REDACTED,REDACTED,09/01/2013,356243,3975,REDACTED,REDACTED
REDACTED,REDACTED,REDACTED,REDACTED,REDACTED,REDACTED,REDACTED,12/02/2013,358382,1125,REDACTED,REDACTED
Gloucester City Council,23UE,Utilities,PT502,Electricity Supply,3110,REF INV 2276770 ST JOHNS LANE TOILETS,20/03/2013,358869,-21.04,NET,West Mercia Energy
REDACTED,REDACTED,REDACTED,REDACTED,REDACTED,REDACTED,REDACTED,05/02/2013,358056,500,REDACTED,REDACTED
REDACTED,REDACTED,REDACTED,REDACTED,REDACTED,REDACTED,REDACTED,22/02/2013,13496,-1,REDACTED,REDACTED
Gloucester City Council,23UE,Historic Buildings,PH100,Conservation Grants,7101,CONSERVATION GRANT,12/10/2012,351347,582,NET,Southgate Evangelical Church
Gloucester City Council,23UE,Tic Coach Tickets,LT105,Materials For Sale,5080,REF INV AREXT/00131350,07/11/2012,350894,-50.16,NET,National Express Ltd
Gloucester City Council,23UE,Business Transformation & Tech,RT700,Operational Equipment <£5000,5012,NOV12-JAN13 air cond maintenance,01/11/2012,352397,524.29,NET,Gea Denco Ltd
Gloucester City Council,23UE,Dwelling Improvements,BY008,Contract Payments,0020,GCH Capital Sept12,15/10/2012,351516,809186.87,CAP,Gloucester City Homes
REDACTED,REDACTED,REDACTED,REDACTED,REDACTED,REDACTED,REDACTED,01/11/2012,352130,999,REDACTED,REDACTED
Gloucester City Council,23UE,Grants To Voluntary Sector,FG100,Funding Vol&Com Grps-Grants,7100C,COMMUNITY GRANT 2012-13 1 OF 2,25/10/2012,352013,10000,NET,Friendship Cafe
Gloucester City Council,23UE,Council Streetcare Team,HI101,Maint Of Grounds - General,3030,LITTER COLLECTION 2012/13,17/10/2012,350631,6000,NET,Quedgeley Parish Council
Gloucester City Council,23UE,Investment Property,RB500,General Repair/Maint Buildings,3000,Credit for overpayment made in 2010,15/10/2012,351268,-93.49,NET,Adt Fire & Security Plc
Gloucester City Council,23UE,Improvement Grants,CY013,Disabled Facility Grants,0074,5 GLENCAIRN AVE,17/10/2012,351706,4920,CAP,L Coward & Son Ltd
REDACTED,REDACTED,REDACTED,REDACTED,REDACTED,REDACTED,REDACTED,12/10/2012,13171,-26,REDACTED,REDACTED
REDACTED,REDACTED,REDACTED,REDACTED,REDACTED,REDACTED,REDACTED,30/10/2012,352475,576.92,REDACTED,REDACTED
Gloucester City Council,23UE,Folk Museum,LM210,Publications For Sale,5064,Created by invoice listener,12/10/2012,351412,527.81,NET,Ashwood & Company
REDACTED,REDACTED,REDACTED,REDACTED,REDACTED,REDACTED,REDACTED,05/10/2012,350970,1250,REDACTED,REDACTED
REDACTED,REDACTED,REDACTED,REDACTED,REDACTED,REDACTED,REDACTED,16/10/2012,351634,944.38,REDACTED,REDACTED
Gloucester City Council,23UE,Photocopying,RS130,Printing,5300,PRINT ROOM SALES,17/10/2012,351715,3871.92,NET,Alpha Colour Printers Ltd
REDACTED,REDACTED,REDACTED,REDACTED,REDACTED,REDACTED,REDACTED,24/10/2012,352086,1260,REDACTED,REDACTED
REDACTED,REDACTED,REDACTED,REDACTED,REDACTED,REDACTED,REDACTED,02/10/2012,350753,1295,REDACTED,REDACTED
REDACTED,REDACTED,REDACTED,REDACTED,REDACTED,REDACTED,REDACTED,02/10/2012,350245,2590,REDACTED,REDACTED
REDACTED,REDACTED,REDACTED,REDACTED,REDACTED,REDACTED,REDACTED,01/11/2012,352456,1260,REDACTED,REDACTED
Gloucester City Council,23UE,Financial Services,RT200,Basic Pay - Temporary Staff,2751,Finance team support to 24/9/12,02/10/2012,350481,4000,NET,Cpfa Consultancy Ltd
Gloucester City Council,23UE,Council Streetcare Team,HI101,General Repair/Maint Buildings,3000,ENTERPRISE AOL LTD,15/10/2012,350943,1475,NET,Enterprise (Aol) Ltd
Gloucester City Council,23UE,Employers Pension Contribs,ZR355,Pension Contribs Incl Backf,2901,PENSION ENTERPRISE CONTRIUBTION,23/10/2012,350942,10207.77,NET,Enterprise (Aol) Ltd
REDACTED,REDACTED,REDACTED,REDACTED,REDACTED,REDACTED,REDACTED,05/10/2012,350750,1740,REDACTED,REDACTED
REDACTED,REDACTED,REDACTED,REDACTED,REDACTED,REDACTED,REDACTED,30/10/2012,352449,3975,REDACTED,REDACTED
REDACTED,REDACTED,REDACTED,REDACTED,REDACTED,REDACTED,REDACTED,REDACTED,REDACTED,700,REDACTED,REDACTED
Gloucester City Council,23UE,Homelessness,CH120,Board And Lodging,5515,,16/11/2012,353675,1939.85,NET,Carbrey Housing Ltd
Gloucester City Council,23UE,North Warehouse Works,RY154,Contract Payments,0020,credit for invoice 58193,19/12/2012,354235,-591.36,CAP,Hewer Facilities Mgt Ltd
Gloucester City Council,23UE,Asset Management,RS300,Basic Pay -Admin /Prof Staff,2601,Oct12 Asset Management services,08/11/2012,352995,6700,NET,Ardley Associates
Gloucester City Council,23UE,Waterwells Play Equipt S106,LY127,Contract Payments,0020,,14/11/2012,353511,1073.31,CAP,Landscape To Play Ltd
Gloucester City Council,23UE,Tic Coach Tickets,LT105,Materials For Sale,5080,REF INV AREXT/00128527,05/12/2012,352943,-246.08,NET,National Express Ltd
Gloucester City Council,23UE,Procurement Management,RP100,Photocopying,5320,feb-apr12 copy charges,30/11/2012,354147,552.61,NET,Ricoh Uk Ltd
Gloucester City Council,23UE,Grants To Voluntary Sector,FG100,Funding Vol&Com Grps-Grants,7100C,community grant 2012-13,27/11/2012,353970,3711.25,NET,Linking Communities
Gloucester City Council,23UE,Docks Complex - Catering Servs,RB110,Catering Provisions -Food,5110,3663,13/11/2012,350384,-5.34,NET,3663
Gloucester City Council,23UE,Investment Property,RB500,General Repair/Maint Buildings,3000,GL1 GUTTER CLEANING,30/11/2012,354101,915,NET,Snape Construction Ltd
Gloucester City Council,23UE,Registration Of Electors,RS400,Fees For Services Received,5350,2012 Canvass tel/sms/internet service,07/11/2012,352574,2246.44,NET,Idox Group
Gloucester City Council,23UE,Investment Property,RB500,Consultants Fees,5349,2010 rating list assessments,14/11/2012,353520,4650,NET,Gva Grimley
Gloucester City Council,23UE,Hkp Accomodation Review,RY163,Contract Payments,0020,KITCHENWARE,14/11/2012,352624,699.29,CAP,Nisbets
Gloucester City Council,23UE,Legal Services,RS200,Charges For Services,9300,land charges July-Sept12,03/12/2012,354402,9476.22,NET,Gloucestershire County Council
REDACTED,REDACTED,REDACTED,REDACTED,REDACTED,REDACTED,REDACTED,09/11/2012,353145,1250,REDACTED,REDACTED
REDACTED,REDACTED,REDACTED,REDACTED,REDACTED,REDACTED,REDACTED,02/11/2012,352629,847,REDACTED,REDACTED
Gloucester City Council,23UE,Senior Management Restructurin,RO200,Pension Contribs Incl Backf,2901,Oct & Nov 12 pension payments,21/11/2012,353280,25213.44,NET,Gloucestershire County Council
Gloucester City Council,23UE,3rd Floor North Warehouse,RY210,Contract Payments,0020,HKP DOOR ENTRY,28/11/2012,354225,3956.3,CAP,Scs Installations Ltd
Gloucester City Council,23UE,Housing Works In Default,HD500,Clearance And Cleansing Fees,5384,15 SLANEY STREET WORKS,30/11/2012,354382,1345,NET,Glevum Heating And Plumbing
Gloucester City Council,23UE,Tic Theatre Ticket Sales,LT107,Sale Of Goods And Services,9230,Docks Fireworks tickets 3/11/12,14/11/2012,353373,-123.13,NET,Gloucester Round Table
Gloucester City Council,23UE,Business Transformation & Tech,RT700,Basic Pay - Temporary Staff,2751,C WATKINS W/E 14/12/12,02/01/2013,355782,1125,NET,Ffox Software Ltd
REDACTED,REDACTED,REDACTED,REDACTED,REDACTED,REDACTED,REDACTED,14/12/2012,355482,550,REDACTED,REDACTED
Gloucester City Council,23UE,Northwarehouse,RB150,General Repair/Maint Buildings,3000,NORTH WAREHOUSE,12/12/2012,354994,935,NET,Traditional Leadwork And Roofing Services Ltd
Gloucester City Council,23UE,Utilities,PT502,Electricity Supply,3110,OTC GAS OCT 2012,11/12/2012,354840,1250.27,NET,West Mercia Energy
Gloucester City Council,23UE,Parking Cctv,PT745,Fees For Services Received,5350,PCNS 2012/13,05/12/2012,354582,1422.6,NET,Patrol (Mcc-Patrol Bus)
Gloucester City Council,23UE,Off Street Car Parks,PP110,Rents,3200,Kings Walk car park rent Dec12-Mar13,11/12/2012,355014,46250,NET,Dtz
Gloucester City Council,23UE,Summer Festival,LT300,Fees For Services Received,5350,hire of Glevum Hall 21/7/12,13/12/2012,347641,500,NET,Aspire Sports & Cultural Trust
Gloucester City Council,23UE,Utilities,PT502,Electricity Supply,3110,CANCEL O/S CREDIT NOTES,05/12/2012,354704,4791.86,NET,Southern Electric
Gloucester City Council,23UE,Aspire Admin Charges,LC105,Computer Hardware <£5000,5420,SECURE SITE PRO,12/12/2012,355095,1295,NET,Symantec Limited
Gloucester City Council,23UE,Business Support,PT250,Basic Pay -Admin /Prof Staff,2601,STAFF W/E 02/12/12,07/12/2012,354762,626.4,NET,One To One Recruitment
Gloucester City Council,23UE,Training Schemes,ET100,Vocational Training,2970,NVQ PROJECT MGMT OCT12,04/12/2012,354535,2400,NET,The Gold Standard
REDACTED,REDACTED,REDACTED,REDACTED,REDACTED,REDACTED,REDACTED,06/12/2012,354679,1197.13,REDACTED,REDACTED
REDACTED,REDACTED,REDACTED,REDACTED,REDACTED,REDACTED,REDACTED,04/12/2012,13319,552.5,REDACTED,REDACTED
REDACTED,REDACTED,REDACTED,REDACTED,REDACTED,REDACTED,REDACTED,04/12/2012,13325,623.33,REDACTED,REDACTED
Gloucester City Council,23UE,Civica Contract Revs & Bens,RT250,Contracted Services,6970,Created by invoice listener,05/12/2012,354694,132917,NET,Civica Uk Ltd
Gloucester City Council,23UE,City Museum Catering,LM202,Catering Provisions -Food,5110,REF INV 9227038647,08/01/2013,355802,-4.08,NET,Woodward Foodservice
Gloucester City Council,23UE,Hempsted Market/Car Boot,HM234,Sewerage And Environ Charges,3402,Markets toilets Nov12,13/12/2012,355328,557.8,NET,Abbey Loos Limited
REDACTED,REDACTED,REDACTED,REDACTED,REDACTED,REDACTED,REDACTED,20/12/2012,355108,2054.6,REDACTED,REDACTED
REDACTED,REDACTED,REDACTED,REDACTED,REDACTED,REDACTED,REDACTED,21/12/2012,355864,620,REDACTED,REDACTED
REDACTED,REDACTED,REDACTED,REDACTED,REDACTED,REDACTED,REDACTED,12/12/2012,355194,1500,REDACTED,REDACTED
Gloucester City Council,23UE,Guildhall Draught Proofing,LY129,Remedial Works,0022,GUILDHALL,31/01/2013,357474,590,CAP,Wessex Restoration Ltd T/A Ventrolla
Gloucester City Council,23UE,Utilities,PT502,Electricity Supply,3110,REF INV 1033322 CREM,22/01/2013,357087,-1516.34,NET,West Mercia Energy
Gloucester City Council,23UE,Utilities,PT502,Gas Supply,3100,CITY MUSEUM,22/01/2013,357065,1711.28,NET,West Mercia Energy
Gloucester City Council,23UE,Utilities,PT502,Electricity Supply,3110,REF INV 1033183 BUS STATION,25/01/2013,357452,-1904.19,NET,West Mercia Energy
REDACTED,REDACTED,REDACTED,REDACTED,REDACTED,REDACTED,REDACTED,24/01/2013,357504,500,REDACTED,REDACTED
Gloucester City Council,23UE,Crematorium,HC200,Fees For Services Received,5350,December 2012 Doctors fees,04/01/2013,356248,988.32,NET,Dr D J Conaty & Partners
Gloucester City Council,23UE,Development Management,PT200,Consultants Fees,5349,Kingsway supermarket works,28/01/2013,357470,750,NET,Dpds Ltd
Gloucester City Council,23UE,Retail Market - Landlord,HM300,Trade Refuse Sacks,5040,markets skip charges Jun-Aug 2012,24/01/2013,357322,2772,NET,Barnwood Shopfitting Ltd
REDACTED,REDACTED,REDACTED,REDACTED,REDACTED,REDACTED,REDACTED,22/01/2013,357402,-500,REDACTED,REDACTED
Gloucester City Council,23UE,Investment Property,RB500,General Repair/Maint Buildings,3000,Eastgate mkt smoke vent service 11/1/13,24/01/2013,357332,657,NET,Airvent Systems Limited
REDACTED,REDACTED,REDACTED,REDACTED,REDACTED,REDACTED,REDACTED,01/02/2013,13453,-17.99,REDACTED,REDACTED
Gloucester City Council,23UE,Business Transformation & Tech,RT700,Computer Hardware <£5000,5420,supply & install firewall & configure,04/01/2013,356064,2369.89,NET,Cablecom Networking Ltd
REDACTED,REDACTED,REDACTED,REDACTED,REDACTED,REDACTED,REDACTED,18/01/2013,357141,1128.5,REDACTED,REDACTED
Gloucester City Council,23UE,Investment Property,RB500,General Repair/Maint Buildings,3000,92-96 WESTGATE ST,17/01/2013,355672,1169.86,NET,Rf Gardiner Limited
Gloucester City Council,23UE,City Museum Catering,LM202,Catering Provisions -Food,5110,REF INV 9227169757,01/02/2013,357712,-76.95,NET,Woodward Foodservice
Gloucester City Council,23UE,Client Revs & Bens Contract,RT240,Fees For Services Received,5350,ADVERT,08/01/2013,356225,865,NET,Smile Publishing Ltd
REDACTED,REDACTED,REDACTED,REDACTED,REDACTED,REDACTED,REDACTED,16/01/2013,356936,2529,REDACTED,REDACTED
Gloucester City Council,23UE,Crematorium,HC200,Repair/Maint Of Fixed Plant,3006,AMP,04/02/2013,355670,510.71,NET,Revolution Multimedia
REDACTED,REDACTED,REDACTED,REDACTED,REDACTED,REDACTED,REDACTED,30/01/2013,357705,7796.15,REDACTED,REDACTED
REDACTED,REDACTED,REDACTED,REDACTED,REDACTED,REDACTED,REDACTED,22/01/2013,357130,1234.5,REDACTED,REDACTED
REDACTED,REDACTED,REDACTED,REDACTED,REDACTED,REDACTED,REDACTED,16/01/2013,356666,1000,REDACTED,REDACTED
Gloucester City Council,23UE,Nms Contract,HI102,Operational Equipment <£5000,5012,SACKS,11/01/2013,356633,953,NET,Polystar Plastics Ltd
Gloucester City Council,23UE,Development Management,PT200,Fees For Services Received,5350,PLANNING APP,13/02/2013,358194,12500,NET,Threadneedle Property Unit Trust
Gloucester City Council,23UE,Homelessness,CH120,Board And Lodging,5515,,08/02/2013,358353,1568.55,NET,Carbrey Housing Ltd
Gloucester City Council,23UE,Docks Complex - Telephones,RB120,Lease Lines,5411,ACCOUNT 915265,12/02/2013,344002,-1693.76,NET,Virgin Media Business
Gloucester City Council,23UE,Docks Complex - Telephones,RB120,Lease Lines,5411,ACCT 915265 LEASED LINE RENTAL,12/02/2013,340532,13485.25,NET,Virgin Media Business
Gloucester City Council,23UE,Docks Office Works,RY165,Contract Payments,0020,HERBERT WAREHOUSE,05/02/2013,357717,1552,CAP,Hewer Facilities Mgt Ltd
Gloucester City Council,23UE,Docks Complex - Catering Servs,RB110,Catering Provisions -Food,5110,credit for undelivered goods,12/02/2013,358374,-5.85,NET,Janes Pantry
REDACTED,REDACTED,REDACTED,REDACTED,REDACTED,REDACTED,REDACTED,12/02/2013,13483,1815,REDACTED,REDACTED
REDACTED,REDACTED,REDACTED,REDACTED,REDACTED,REDACTED,REDACTED,08/02/2013,358357,1406.1,REDACTED,REDACTED
REDACTED,REDACTED,REDACTED,REDACTED,REDACTED,REDACTED,REDACTED,20/02/2013,357943,11625,REDACTED,REDACTED
Gloucester City Council,23UE,Tic Coach Tickets,LT105,Materials For Sale,5080,REF INV AREXT/00135325,07/02/2013,358004,-136.93,NET,National Express Ltd
Gloucester City Council,23UE,Utilities,PT502,Gas Supply,3100,REF INV 07159364 DEPOT,13/03/2013,359415,-915.97,NET,Corona Energy
Gloucester City Council,23UE,Utilities,PT502,Gas Supply,3100,REF INV 07275746 DEPOT,13/03/2013,359414,-618.01,NET,Corona Energy
Gloucester City Council,23UE,Utilities,PT502,Gas Supply,3100,REF INV 07747219 DEPOT,13/03/2013,359409,-823.9,NET,Corona Energy
Gloucester City Council,23UE,Utilities,PT502,Gas Supply,3100,REF INV 07434154 DEPOT,13/03/2013,359412,-341.87,NET,Corona Energy
Gloucester City Council,23UE,Utilities,PT502,Gas Supply,3100,REF INV 07848022 DEPOT,13/03/2013,359406,-1173.78,NET,Corona Energy
Gloucester City Council,23UE,Tourism Marketing,LT100,Postages,5400,REF INV 91562262,12/02/2013,358477,-75,NET,Neopost Ltd
Gloucester City Council,23UE,Solace Project,FP843,Other Minor Supplies Services,5590,ASBO STAFF JAN 2013,04/02/2013,357904,3250,NET,Gloucester City Homes
REDACTED,REDACTED,REDACTED,REDACTED,REDACTED,REDACTED,REDACTED,REDACTED,REDACTED,576.92,REDACTED,REDACTED
Gloucester City Council,23UE,Docks Complex - Catering Servs,RB110,Catering Provisions -Food,5110,RETURNS,05/02/2013,345401,-1.2,NET,Total Produce Gloucester
Gloucester City Council,23UE,Aspire Admin Charges,LC105,Contracted Services,6970,Feb13 management fees,08/02/2013,358283,88342.46,NET,Aspire Sports & Cultural Trust
Gloucester City Council,23UE,Bus Station,RB400,General Repair/Maint Buildings,3000,Gloucester Bus Station works,12/02/2013,357778,680,NET,Abbey Surfacing
Gloucester City Council,23UE,Tic Coach Tickets,LT105,Materials For Sale,5080,JAN 2013 SALES,19/02/2013,358874,1979.5,NET,Marchants Coaches Ltd
Gloucester City Council,23UE,City Museum And Art Gallery,LM200,Advertising And Publicity,5702,WHATS ON GUIDE,22/02/2013,358960,670.5,NET,Severnprint Ltd
REDACTED,REDACTED,REDACTED,REDACTED,REDACTED,REDACTED,REDACTED,21/02/2013,358965,609,REDACTED,REDACTED
REDACTED,REDACTED,REDACTED,REDACTED,REDACTED,REDACTED,REDACTED,25/02/2013,359205,1199.32,REDACTED,REDACTED
REDACTED,REDACTED,REDACTED,REDACTED,REDACTED,REDACTED,REDACTED,15/02/2013,358795,580,REDACTED,REDACTED
REDACTED,REDACTED,REDACTED,REDACTED,REDACTED,REDACTED,REDACTED,22/02/2013,359130,1250,REDACTED,REDACTED
REDACTED,REDACTED,REDACTED,REDACTED,REDACTED,REDACTED,REDACTED,05/02/2013,357944,1234.5,REDACTED,REDACTED
Gloucester City Council,23UE,Forest Of Dean Cpe,PT744,Contracted Services,6970,January 2013 services,11/02/2013,358387,2926.56,NET,Apcoa Parking (Uk) Ltd
Gloucester City Council,23UE,Hempsted Market/Car Boot,HM234,Trade Refuse Sacks,5040,TRADE WASTE JAN-MAR 13,05/02/2013,355069,1824.7,NET,Enterprise (Aol) Ltd
Gloucester City Council,23UE,Investment Property,RB500,Water Supply,3400,ACCT 7890105225,20/02/2013,355000,1737.9,NET,Severn Trent Water
Gloucester City Council,23UE,Council Streetcare Team,HI101,Water Supply,3400,ACCT 7890105225,20/02/2013,356512,927.58,NET,Severn Trent Water
REDACTED,REDACTED,REDACTED,REDACTED,REDACTED,REDACTED,REDACTED,11/02/2013,356875,1740,REDACTED,REDACTED
REDACTED,REDACTED,REDACTED,REDACTED,REDACTED,REDACTED,REDACTED,27/02/2013,359329,3180,REDACTED,REDACTED
Gloucester City Council,23UE,Docks Complex - Telephones,RB120,Mobile Phones,5409,CALLS FEB 2013,08/03/2013,359723,1921.64,NET,Everything Everywhere Ltd (T-Mobile)
Gloucester City Council,23UE,Business Transformation & Tech,RT700,Computer Hardware Maintenance,5426,service charge 16/1/13 - 31/12/13,27/03/2013,360367,3445.82,NET,G4s Technology Ltd
Gloucester City Council,23UE,City Museum And Art Gallery,LM200,Operational Equipment <£5000,5012,DIGITAL RADIOS,27/03/2013,360694,1853.88,NET,2cl Communications Ltd
REDACTED,REDACTED,REDACTED,REDACTED,REDACTED,REDACTED,REDACTED,06/03/2013,359678,500,REDACTED,REDACTED
Gloucester City Council,23UE,Investment Property,RB500,Consultants Fees,5349,NETHERIDGE FARM,04/03/2013,359495,750,NET,Alder King*
REDACTED,REDACTED,REDACTED,REDACTED,REDACTED,REDACTED,REDACTED,06/03/2013,359680,500,REDACTED,REDACTED
Gloucester City Council,23UE,Director Resources,MR102,Fees For Services Received,5350,EMPLOYMENT ADVICE,20/03/2013,360624,3202.5,NET,Wragge & Co Llp
Gloucester City Council,23UE,Parking Cctv,PT745,On Street Parking Charges,6550,January 2013 bus lane enforcement,14/03/2013,360129,4605.91,NET,Gloucestershire County Council
Gloucester City Council,23UE,Business Support,PT250,Oper. Leases -Vehs/M. Plant,4054,Vehicle & equipment rental 2013/14,12/03/2013,360002,1863.82,NET,Chrystal Consulting
Gloucester City Council,23UE,Photocopying,RS130,Printing,5300,various printing Jan13,14/03/2013,360213,692,NET,Alpha Colour Printers Ltd
REDACTED,REDACTED,REDACTED,REDACTED,REDACTED,REDACTED,REDACTED,25/03/2013,13558,-15,REDACTED,REDACTED
Gloucester City Council,23UE,Tic Rovercard Sales,LT101,Materials For Sale,5080,PERIOD 10 SALES,13/03/2013,360193,6792.3,NET,Stagecoach Services Ltd*
REDACTED,REDACTED,REDACTED,REDACTED,REDACTED,REDACTED,REDACTED,28/03/2013,361284,-484.6,REDACTED,REDACTED
Gloucester City Council,23UE,Financial Services,RT200,Basic Pay - Temporary Staff,2751,S SHARMA FEB 2013,04/03/2013,359281,3000,NET,Cpfa Consultancy Ltd
Gloucester City Council,23UE,Corporate Reporting /Financing,RC504,Fees For Services Received,5350,Pension scheme compensation,20/03/2013,358704,2595,NET,Gloucestershire County Council
Gloucester City Council,23UE,Investment Property,RB500,General Repair/Maint Buildings,3000,KINGS WALK,14/03/2013,359901,585.08,NET,Scs Installations Ltd
Gloucester City Council,23UE,Utilities,PT502,Electricity Supply,3110,REF INV 2327133,23/04/2012,340071,-158.08,NET,West Mercia Energy
Gloucester City Council,23UE,Lt Consulting/Lean Work,RC120,Consultants Fees,5349,3RD INSTALMENT,18/04/2012,340585,17500,NET,Lt Consulting Ltd
Gloucester City Council,23UE,Crematorium,HC200,General Repair/Maint Buildings,3000,FLORAL DISPLAYS,20/04/2012,341191,707.37,NET,Zagota Creations
Gloucester City Council,23UE,Improvement Grants,CY013,Disabled Facility Grants,0074,,01/05/2012,341801,5915,CAP,T & P Franklin & Sons Ltd
Gloucester City Council,23UE,Client Revs & Bens Contract,RT240,Computer Software Maintenance,5427,maint of payment mgmt systems 4/12-31/13,25/04/2012,338976,19515.98,NET,Capita Business Services Limited*
REDACTED,REDACTED,REDACTED,REDACTED,REDACTED,REDACTED,REDACTED,26/04/2012,341744,-500,REDACTED,REDACTED
Gloucester City Council,23UE,Off Street Car Parks,PP110,General Repair/Maint Buildings,3000,LONGSMITH ST CAR PARK SIGNING,04/04/2012,334520,7804.68,NET,Hanman Split Ltd
Gloucester City Council,23UE,Shopmobility,PE200,Office Equipment <£5000,5010,credit for invoice - our ref 339865,12/02/2013,340322,-83.8,NET,Hentland Group
Gloucester City Council,23UE,Off Street Car Parks,PP110,Rents,3200,BOOTS THE CHEMIST,16/04/2012,338806,600,NET,Boots The Chemist
Gloucester City Council,23UE,Concessionary Fares,RG300,Fees For Services Received,5350,CONCESSIONARY TRAVEL REVIEW,03/04/2012,338897,555.49,NET,Tewkesbury Borough Council
REDACTED,REDACTED,REDACTED,REDACTED,REDACTED,REDACTED,REDACTED,04/04/2012,340447,-484.6,REDACTED,REDACTED
REDACTED,REDACTED,REDACTED,REDACTED,REDACTED,REDACTED,REDACTED,19/04/2012,12823,700,REDACTED,REDACTED
REDACTED,REDACTED,REDACTED,REDACTED,REDACTED,REDACTED,REDACTED,16/04/2012,340885,5022,REDACTED,REDACTED
REDACTED,REDACTED,REDACTED,REDACTED,REDACTED,REDACTED,REDACTED,20/04/2012,341189,-4.17,REDACTED,REDACTED
Gloucester City Council,23UE,Land Searches,RO300,Fees For Services Received,5350,Q4 11/12 land charges,27/04/2012,341454,1980,NET,Gloucestershire County Council
Gloucester City Council,23UE,Members Support,RC300,Printing,5300,council diary,26/04/2012,341637,533,NET,Alpha Colour Printers Ltd
Gloucester City Council,23UE,Business Planning & Performanc,RL500,Fees For Services Received,5350,CWAG MEMBERSHIP,05/04/2012,339812,750,NET,Leeds City Council
Gloucester City Council,23UE,Off Street Car Parks,PP110,Electricity Supply,3110,Longsmith St Electricity March-Apr 12,27/04/2012,341388,1273.44,NET,British Gas
REDACTED,REDACTED,REDACTED,REDACTED,REDACTED,REDACTED,REDACTED,12/04/2012,340676,500,REDACTED,REDACTED
Gloucester City Council,23UE,Council Streetcare Team,HI101,Fees For Services Received,5350,walk behind vacs,16/04/2012,339649,563.33,NET,Enterprise (Aol) Ltd
Gloucester City Council,23UE,Parking Cctv,PT745,Fees For Services Received,5350,project implementation,10/04/2012,340386,500,NET,Chipside Ltd
Gloucester City Council,23UE,Off Street Car Parks,PP110,Water Supply,3400,ACCT 9010025644 THE MALL CAR PARK,30/04/2012,341722,1711.56,NET,Severn Trent Water
Gloucester City Council,23UE,Off Street Car Parks,PP110,Water Supply,3400,ACCT 1790056623,30/04/2012,340625,1772.14,NET,Severn Trent Water
Gloucester City Council,23UE,Retail Market - Landlord,HM300,Sewerage And Environ Charges,3402,ACCT 6500437006 EASTGATE MARKET,10/04/2012,338270,17732.42,NET,Severn Trent Water
Gloucester City Council,23UE,Business Transformation & Tech,RT700,Internet Service Provider Fees,5429,service credit re UK10/042012/7847,19/06/2012,341925,-106.07,NET,Vodafone
Gloucester City Council,23UE,Director Resources,MR102,Conference/Meeting Expenses,5510,CIPFA CONFERENCE,02/05/2012,341871,695,NET,Redactive Events Ltd
Gloucester City Council,23UE,Civic Admin And Hospitality,RC210,Events,5952,SHERIFF'S CHARITY,18/05/2012,342897,500,NET,Ts Gloucester Sea Cadets
REDACTED,REDACTED,REDACTED,REDACTED,REDACTED,REDACTED,REDACTED,17/05/2012,342385,534.65,REDACTED,REDACTED
REDACTED,REDACTED,REDACTED,REDACTED,REDACTED,REDACTED,REDACTED,17/05/2012,342627,567.16,REDACTED,REDACTED
Gloucester City Council,23UE,Grange Infants S106,LY124,Contract Payments,0020,HOLMLEIGH PARK PLAY AREA,16/05/2012,342740,6768.8,CAP,Landscape To Play Ltd
Gloucester City Council,23UE,Corporate Expenses,RC110,Subscriptions,5600,J WAIN 04/12-03/13,04/05/2012,341248,5520,NET,South West Councils
Gloucester City Council,23UE,Civic Admin And Hospitality,RC210,Events,5952,SHERIFF'S CHARITY,18/05/2012,342898,1000,NET,City Of Gloucester Shrievalty Association
Gloucester City Council,23UE,Tic Coach Tickets,LT105,Materials For Sale,5080,APRIL DUPLICATE TKTS,15/06/2012,342610,-1489.36,NET,National Express Ltd
Gloucester City Council,23UE,Tic Coach Tickets,LT105,Materials For Sale,5080,REF INV AREXT/00122877,15/06/2012,342607,-205.6,NET,National Express Ltd
Gloucester City Council,23UE,Tic Coach Tickets,LT105,Materials For Sale,5080,REF INV AREXT/00122877,15/06/2012,342609,-17,NET,National Express Ltd
Gloucester City Council,23UE,Procurement Management,RP100,Photocopying,5320,REF INV 86674336 L3783700248,31/05/2012,342631,-379.9,NET,Ricoh Uk Ltd
Gloucester City Council,23UE,Homelessness,CH120,Board And Lodging,5515,,30/05/2012,343509,1736.52,NET,James Legge Property (Ltd)
Gloucester City Council,23UE,Homelessness,CH120,Board And Lodging,5515,VARIOUS TENANTS,04/05/2012,342072,4452.98,NET,James Legge Property (Ltd)
Gloucester City Council,23UE,Director Resources,MR102,Fees For Services Received,5350,ET CLAIM,24/05/2012,343184,11466.34,NET,Wragge & Co Llp
Gloucester City Council,23UE,Eastgate Viewing Chamber,LY100,Contract Payments,0020,ROAD CLOSURE EASTGATE ST,23/05/2012,340783,590.54,CAP,Gloucestershire County Council
REDACTED,REDACTED,REDACTED,REDACTED,REDACTED,REDACTED,REDACTED,28/05/2012,343277,1193.35,REDACTED,REDACTED
REDACTED,REDACTED,REDACTED,REDACTED,REDACTED,REDACTED,REDACTED,23/05/2012,340901,933.33,REDACTED,REDACTED
Gloucester City Council,23UE,Retail Market - Landlord,HM300,Telephones And Fax,5410,01452 528796,21/05/2012,340752,-177.04,NET,British Telecommunications Plc
Gloucester City Council,23UE,Docks Complex - Telephones,RB120,Mobile Phones,5409,ACCT 78441964/6,19/06/2012,344010,3158.93,NET,Everything Everywhere Ltd (T-Mobile)
Gloucester City Council,23UE,Business Transformation & Tech,RT700,Basic Pay - Temporary Staff,2751,w/e 15/6/12 consultancy,25/06/2012,344602,1125,NET,Ffox Software Ltd
Gloucester City Council,23UE,Business Transformation & Tech,RT700,Basic Pay - Temporary Staff,2751,w/e 1/6/12 consultancy services,11/06/2012,343854,1125,NET,Ffox Software Ltd
REDACTED,REDACTED,REDACTED,REDACTED,REDACTED,REDACTED,REDACTED,REDACTED,REDACTED,1977.29,REDACTED,REDACTED
Gloucester City Council,23UE,Business Support,PT250,Reimbursements,9100,SUPPORT TO MAY 2013,15/06/2012,344008,1451.58,NET,Oracle Corportation Uk Ltd
Gloucester City Council,23UE,Photocopying,RS130,Hire Of Equipment,5020,J7040200255,07/06/2012,343072,1299.19,NET,Ricoh Uk Ltd
Gloucester City Council,23UE,Contact Centre,RB300,Subscriptions,5600,corporate member renewal 2nd installment,21/06/2012,340866,5000,NET,Institute Of Customer Service
Gloucester City Council,23UE,Improvement Grants,CY013,Disabled Facility Grants,0074,MEDICAL ADAPTATION 49 THE COURTYARD,06/06/2012,343612,5104.95,CAP,Davey'S Building Maintenance
Gloucester City Council,23UE,Retail Market - Landlord,HM300,General Repair/Maint Buildings,3000,Markets Tattoo Shop works,25/06/2012,344820,1630.43,NET,Davey'S Building Maintenance
Gloucester City Council,23UE,Improvement Grants,CY013,Disabled Facility Grants,0074,GRANT REF MDF4826,22/06/2012,344781,1050,CAP,P&S Installations
Gloucester City Council,23UE,Cctv Revenue Budget,FP501,Security Equipment Serv/Repair,3038,CCTV,22/06/2012,344616,6799.99,NET,Wireless Cctv Ltd
Gloucester City Council,23UE,Crematorium,HC200,Memorial Plaques,5053,bronze cast plaques,27/06/2012,344584,562,NET,Arkell & Hurcombe
Gloucester City Council,23UE,Gloucester Partnership,FP106,Sports Grants,7114,olympic legacy grant,02/07/2012,345182,2000,NET,Gymnation
Gloucester City Council,23UE,Civica Admin Charges,RT105,Postages,5400,ACCT 0870585007 REVENUES W/E 20/5/12,15/06/2012,343349,2714.17,NET,Royal Mail S.Wales & South West
REDACTED,REDACTED,REDACTED,REDACTED,REDACTED,REDACTED,REDACTED,12/06/2012,343825,885.24,REDACTED,REDACTED
REDACTED,REDACTED,REDACTED,REDACTED,REDACTED,REDACTED,REDACTED,11/06/2012,343829,1281,REDACTED,REDACTED
Gloucester City Council,23UE,75/81 Eastgate Street,RB501,General Repair/Maint Buildings,3000,75-81 Eastgate St plumbing repairs,11/06/2012,343017,677,NET,Rf Gardiner Limited
REDACTED,REDACTED,REDACTED,REDACTED,REDACTED,REDACTED,REDACTED,19/02/2013,358883,1272,REDACTED,REDACTED
Gloucester City Council,23UE,Investment Property,RB500,General Repair/Maint Buildings,3000,Herbert W/h 3rd flr ladies toilet repair,13/02/2013,358384,555.3,NET,Rf Gardiner Limited
Gloucester City Council,23UE,Homelessness,CH120,Board And Lodging,5515,,08/02/2013,358360,1867.9,NET,Kalmwood Ltd (Mandy & Karen Woodhouse)
Gloucester City Council,23UE,Cedar Upgrade 2011/12,RY250,Contract Payments,0020,Interface specification work,08/02/2013,358138,850,CAP,Advanced Business Solutions
Gloucester City Council,23UE,Treasury Management,VR110,Brokerage Fees,5951,MARTIN BROKERS (UK) PLC,21/02/2013,359058,2531.51,NET,Martin Brokers (Uk) Plc
REDACTED,REDACTED,REDACTED,REDACTED,REDACTED,REDACTED,REDACTED,14/02/2013,358684,1500,REDACTED,REDACTED
Gloucester City Council,23UE,Ghurc Contribution,PT210,Fees For Services Received,5350,Car parking income Q4 2012/13,21/02/2013,359037,25000,NET,Gloucester Heritage Urc
REDACTED,REDACTED,REDACTED,REDACTED,REDACTED,REDACTED,REDACTED,26/02/2013,359253,500,REDACTED,REDACTED
REDACTED,REDACTED,REDACTED,REDACTED,REDACTED,REDACTED,REDACTED,11/02/2013,358077,4949.5,REDACTED,REDACTED
Gloucester City Council,23UE,Business Transformation & Tech,RT700,Computer Software Maintenance,5427,GF1 EMAIL PROTECTION,08/02/2013,358317,9729.95,NET,Pnltools Ltd
Gloucester City Council,23UE,Tic Coach Tickets,LT105,Sale Of Goods And Services,9230,BALFOUR 11/03/13,28/02/2013,359403,-4.25,NET,Superbreak Mini Holidays
REDACTED,REDACTED,REDACTED,REDACTED,REDACTED,REDACTED,REDACTED,18/02/2013,358783,1250,REDACTED,REDACTED
Gloucester City Council,23UE,Homelessness,CH120,Board And Lodging,5515,,08/03/2013,359867,739.8,NET,Carbrey Housing Ltd
REDACTED,REDACTED,REDACTED,REDACTED,REDACTED,REDACTED,REDACTED,22/03/2013,360590,550,REDACTED,REDACTED
Gloucester City Council,23UE,Council Streetcare Team,HI101,Maint Of Grounds - General,3030,Willow Way works,08/03/2013,359827,1248.61,NET,Greenfields Garden Services Ltd
Gloucester City Council,23UE,Legal Services,RS200,Fees For Services Received,5350,HR INVESTIGATION,15/03/2013,360345,6972.54,NET,South West Councils
Gloucester City Council,23UE,Procurement Management,RP100,Photocopying,5320,REF INV 87186167 L8974300206,13/03/2013,359920,-1888.09,NET,Ricoh Uk Ltd
Gloucester City Council,23UE,Dwelling Improvements,BY008,Contract Payments,0020,CAPITAL JAN 2013,20/03/2013,359454,478748.15,CAP,Gloucester City Homes
Gloucester City Council,23UE,Investment Property,RB500,General Repair/Maint Buildings,3000,Herbert W/h emergency lights jan12-Jan14,13/03/2013,356317,1602.93,NET,Adt Fire & Security Plc
Gloucester City Council,23UE,Utilities,PT502,Electricity Supply,3110,33 LONDON ROAD,13/03/2013,359783,-13.67,NET,Southern Electric
Gloucester City Council,23UE,Business Support,PT250,Basic Pay - Temporary Staff,2751,STAFF W/E 08/03/13,14/03/2013,360270,910,NET,One To One Recruitment
Gloucester City Council,23UE,Mortgage Rescue,CH128,Fees For Services Received,5350,STAFF W/E 16/03/13,22/03/2013,360626,692.16,NET,One To One Recruitment
REDACTED,REDACTED,REDACTED,REDACTED,REDACTED,REDACTED,REDACTED,12/03/2013,360127,1159.01,REDACTED,REDACTED
REDACTED,REDACTED,REDACTED,REDACTED,REDACTED,REDACTED,REDACTED,14/03/2013,360278,600,REDACTED,REDACTED
Gloucester City Council,23UE,Eastgate Viewing Chamber,LY100,Contract Payments,0020,EASTGATE CHAMBER,14/03/2013,359902,725.84,CAP,Scs Installations Ltd
Gloucester City Council,23UE,Forest Of Dean Off Street,PT742,Contracted Services,6970,Feb13 variable services,11/03/2013,359830,2469.65,NET,Apcoa Parking (Uk) Ltd
Gloucester City Council,23UE,St Oswalds Car Park 3,PJ140,Contracted Services,6970,Feb13 variable services,11/03/2013,359830,3021.6,NET,Apcoa Parking (Uk) Ltd
Gloucester City Council,23UE,Parking Cctv,PT745,Contracted Services,6970,Notice processing services Jan/Feb13,28/03/2013,361010,2090.88,NET,Chipside Ltd
REDACTED,REDACTED,REDACTED,REDACTED,REDACTED,REDACTED,REDACTED,12/03/2013,360148,805,REDACTED,REDACTED
Gloucester City Council,23UE,Nms Contract,HI102,General Repair/Maint Buildings,3000,COLLECTION ELECTRICAL ITEMS,05/03/2013,359315,550,NET,The Furniture Recycling Project
REDACTED,REDACTED,REDACTED,REDACTED,REDACTED,REDACTED,REDACTED,07/03/2013,358971,2175,REDACTED,REDACTED
REDACTED,REDACTED,REDACTED,REDACTED,REDACTED,REDACTED,REDACTED,28/03/2013,13568,2165,REDACTED,REDACTED
Gloucester City Council,23UE,Severnside Project,LP210,Devolved Funds,6360,Alney Island ecological survey 2012,08/03/2013,359589,500,NET,Gloucestershire Wildlife Trust
REDACTED,REDACTED,REDACTED,REDACTED,REDACTED,REDACTED,REDACTED,03/04/2012,340296,500,REDACTED,REDACTED
Gloucester City Council,23UE,Utilities,PT502,Electricity Supply,3110,CITY MUSEUM MAR 2012,25/04/2012,341143,790.91,NET,West Mercia Energy
Gloucester City Council,23UE,Utilities,PT502,Electricity Supply,3110,NORTH WAREHOUSE MAR 2012,23/04/2012,341083,1362.01,NET,West Mercia Energy
Gloucester City Council,23UE,Stroud Shared Audit Services,RT301,Subscriptions,5600,BETTER GOVERNANCE FORUM,18/04/2012,340744,659.25,NET,Cipfa Business Limited
Gloucester City Council,23UE,Housing Strategy & Enabling,CH110,Survey Fees,5381,Interim Fee 3 Private Sector house surv,03/04/2012,340266,4672.5,NET,David Adamson & Partners
Gloucester City Council,23UE,Homelessness,CH120,Removal And Storage Fees,5513,N Thompson Feb-Mar 12 storage,23/04/2012,341380,648.57,NET,Advanced Removals & Storage Ltd
Gloucester City Council,23UE,Investment Property,RB500,General Repair/Maint Buildings,3000,HKP SURVEY & SERVICE OF AIR HANDLING,26/04/2012,341644,585,NET,Eaton-Wiiliams Group Ltd
Gloucester City Council,23UE,Development Management,PT200,Basic Pay -Admin /Prof Staff,2601,ANY-PLGR UPGRADE CLIENT MARCH 12,13/04/2012,339310,3375,NET,Haymarket Publishing Services Ltd
Gloucester City Council,23UE,Financial Services,RT200,Fees For Services Received,5350,Creditsafe std package mar12-mar13,02/04/2012,339871,975.11,NET,Creditsafe
Gloucester City Council,23UE,City Museum And Art Gallery,LM200,Sale Of Goods And Services,9230,Folk Museum order Feb 12,25/04/2012,340865,923.42,NET,Ashwood & Company
Gloucester City Council,23UE,Postal Services,RS120,Postages,5400,ACCT 0252446000 W/E 12/04/12,23/04/2012,341257,1229.07,NET,Royal Mail S.Wales & South West
Gloucester City Council,23UE,Civica Admin Charges,RT105,Postages,5400,ACCT 0870585007 REVENUES,13/04/2012,338895,865.25,NET,Royal Mail S.Wales & South West
REDACTED,REDACTED,REDACTED,REDACTED,REDACTED,REDACTED,REDACTED,27/04/2012,341376,1395.39,REDACTED,REDACTED
REDACTED,REDACTED,REDACTED,REDACTED,REDACTED,REDACTED,REDACTED,16/04/2012,340639,6184.5,REDACTED,REDACTED
Gloucester City Council,23UE,Cctv Revenue Budget,FP501,Security Equipment Serv/Repair,3038,CCTV 1250 APR 12 - MAR 13,16/04/2012,340762,10075.69,NET,Bt Redcare
Gloucester City Council,23UE,Tourism Marketing,LT100,Materials For Sale,5080,TIC postcards Apr 12,25/04/2012,341583,574.56,NET,Judges Postcards Ltd
Gloucester City Council,23UE,Utilities,PT502,Gas Supply,3100,REF INV 2346252,18/06/2012,342834,-180.17,NET,West Mercia Energy
Gloucester City Council,23UE,Parking Cctv,PT745,Fees For Services Received,5350,BUS LANE PCNS,03/05/2012,341745,1808.95,NET,Patrol (Mcc-Patrol Bus)
Gloucester City Council,23UE,Pest Control,HD400,Fees For Services Received,5350,egg oiling 11/05/12,25/05/2012,343273,800,NET,Falconry Services Bird & Pest Control
Gloucester City Council,23UE,Pest Control,HD400,Fees For Services Received,5350,City Centre egg oiling May 12,16/05/2012,342712,2000,NET,Falconry Services Bird & Pest Control
Gloucester City Council,23UE,Procurement Management,RP100,Photocopying,5320,copy costs 1/3/12 - 31/5/12,16/05/2012,342143,31348,NET,Danwood Group Limited
Gloucester City Council,23UE,Docks Complex - Telephones,RB120,Telephones And Fax,5410,ACCT 501517701 MCLELLAN,07/06/2012,342179,-41.8,NET,Virgin Media Payments Ltd
REDACTED,REDACTED,REDACTED,REDACTED,REDACTED,REDACTED,REDACTED,REDACTED,REDACTED,500,REDACTED,REDACTED
Gloucester City Council,23UE,Homelessness Prevention,CH122,Fees For Services Received,5350,,25/05/2012,343170,500,NET,Andrews Lettings
Gloucester City Council,23UE,Retail Market - Landlord,HM300,Trade Refuse Sacks,5040,MARKETS SKIPS DEC11-FEB12,18/05/2012,341991,2178,NET,Barnwood Shopfitting Ltd
Gloucester City Council,23UE,Improvement Grants,CY013,Disabled Facility Grants,0074,13 CLEGRAM RD,08/05/2012,342151,10000,CAP,T & P Franklin & Sons Ltd
Gloucester City Council,23UE,Procurement Management,RP100,Photocopying,5320,L3783700248,31/05/2012,332858,664.25,NET,Ricoh Uk Ltd
Gloucester City Council,23UE,Business Planning & Performanc,RL500,Fees For Services Received,5350,tenancy fraud project contribution,04/05/2012,341755,4000,NET,Gloucester City Homes
Gloucester City Council,23UE,Ranger Centre/Netheridge Wks,RY167,Contract Payments,0020,ROBINSWOOD HILL FARM SURVEY,11/05/2012,340329,1621.28,CAP,Cgms Consulting
Gloucester City Council,23UE,Corporate Expenses,RC110,Subscriptions,5600,,31/05/2012,343537,500,NET,Information Commissioner
REDACTED,REDACTED,REDACTED,REDACTED,REDACTED,REDACTED,REDACTED,21/05/2012,343052,-576.92,REDACTED,REDACTED
Gloucester City Council,23UE,Memorial Garden,HC400,Memorial Seats,5056,granite bench,16/07/2012,343204,562.4,NET,Burlingham Memorial Solutions
REDACTED,REDACTED,REDACTED,REDACTED,REDACTED,REDACTED,REDACTED,04/05/2012,342008,1143.76,REDACTED,REDACTED
Gloucester City Council,23UE,Development Management,PT200,Employee Related Advertising,2920,Planning Jobsite April 2012,17/05/2012,342701,1648,NET,Haymarket Business Media
Gloucester City Council,23UE,Guildhall Bar And Café,LA210,Catering Provisions -Liquor,5111,Guildhall 23/4/12,14/05/2012,342553,623.21,NET,Cellar Supplies Cheltenham Ltd
Gloucester City Council,23UE,Mortgage Rescue,CH128,Fees For Services Received,5350,,22/05/2012,342640,600,NET,Acenden Ltd
Gloucester City Council,23UE,Retail Market - Landlord,HM300,Operational Equipment <£5000,5012,,11/05/2012,20701,-28.44,NET,Gloucester City Council
REDACTED,REDACTED,REDACTED,REDACTED,REDACTED,REDACTED,REDACTED,11/05/2012,342229,3401,REDACTED,REDACTED
Gloucester City Council,23UE,Members Support,RC300,Subscriptions,5600,36X COUNCILLOR DPA REGISTRATIONS,18/06/2012,344355,1260,NET,Information Commissioner'S Office
Gloucester City Council,23UE,Jubilee Events,LT301,Maintenance Of Equipment,5030,FIREBIRDS PERFORMANCE 4/6/12,18/06/2012,344353,900,NET,The Firebirds
Gloucester City Council,23UE,Youth Grant 2011/12,FP107,Funding Vol&Com Grps-Grants,7100C,youth grant 2012-13,29/06/2012,345176,3200,NET,Glo-Active
Gloucester City Council,23UE,Jubilee Events,LT301,General Repair/Maint Buildings,3000,JUBILEE BANNERS & FLAGS,14/06/2012,344101,1269,NET,Hanman Split Ltd
REDACTED,REDACTED,REDACTED,REDACTED,REDACTED,REDACTED,REDACTED,08/06/2012,343812,534.65,REDACTED,REDACTED
Gloucester City Council,23UE,Youth Grant 2011/12,FP107,Funding Vol&Com Grps-Grants,7100C,youth grant 2012-13,29/06/2012,345172,500,NET,Gloucester City Swimming Club
Gloucester City Council,23UE,Ranger Centre/Netheridge Wks,RY167,Contract Payments,0020,RANGER CENTRE,25/06/2012,344274,500,CAP,Wakemans
Gloucester City Council,23UE,Oxstalls Biomass Boiler,LY128,Contract Payments,0020,OITC BIOMASS BOILER 2ND INTERIM FEE,07/06/2012,342538,2175,CAP,King Cathery Partnership Ltd
Gloucester City Council,23UE,Tea & Wake Room Cem&Crem,HY043,Contract Payments,0020,CREM NEW WINDOWS,27/06/2012,344988,768.92,CAP,Aluminium Sashes Ltd
REDACTED,REDACTED,REDACTED,REDACTED,REDACTED,REDACTED,REDACTED,21/06/2012,344721,600,REDACTED,REDACTED
Gloucester City Council,23UE,Corporate Reporting /Financing,RC504,Fees For Services Received,5350,credit for invoice 511768,12/02/2013,344847,-380.78,NET,Applied Products
Gloucester City Council,23UE,Improvement Grants,CY013,Disabled Facility Grants,0074,,26/06/2012,344972,4650,CAP,Dolphin Lifts (Western) Ltd
Gloucester City Council,23UE,Hempsted Market/Car Boot,HM234,Sewerage And Environ Charges,3402,HEMPSTED MEADOWS TOILETS,18/06/2012,344356,540.2,NET,Abbey Loos Limited
Gloucester City Council,23UE,Youth Grant 2011/12,FP107,Funding Vol&Com Grps-Grants,7100C,YOUTH GRANT 2012-13,26/06/2012,344902,600,NET,38th Longlevens Scout Troop
Gloucester City Council,23UE,The Weighbridge,RB548,General Repair/Maint Buildings,3000,rebuild Docks wall,11/06/2012,343591,6977,NET,E G Carter & Co Ltd
Gloucester City Council,23UE,Youth Grant 2011/12,FP107,Funding Vol&Com Grps-Grants,7100C,youth grant 2012-13,29/06/2012,344993,2310,NET,Gloucestershire Dance
Gloucester City Council,23UE,Off Street Car Parks,PP110,Rents,3200,EASTGATE CAR PARK RENT JUN-SEPT12,07/06/2012,343420,50000,NET,Workman Llp Rent Account
Gloucester City Council,23UE,Tic Theatre Ticket Sales,LT107,Materials For Sale,5080,HIGHNAM COURT SPRING FAIR,15/06/2012,344294,550,NET,Pied Piper Appeal
REDACTED,REDACTED,REDACTED,REDACTED,REDACTED,REDACTED,REDACTED,19/06/2012,344464,5620,REDACTED,REDACTED
REDACTED,REDACTED,REDACTED,REDACTED,REDACTED,REDACTED,REDACTED,19/06/2012,344466,4628,REDACTED,REDACTED
Gloucester City Council,23UE,Homelessness,CH120,Board And Lodging,5515,,27/06/2012,345049,514.54,NET,Kimbrose Ltd
REDACTED,REDACTED,REDACTED,REDACTED,REDACTED,REDACTED,REDACTED,27/06/2012,344861,1250,REDACTED,REDACTED
REDACTED,REDACTED,REDACTED,REDACTED,REDACTED,REDACTED,REDACTED,18/06/2012,344239,716.01,REDACTED,REDACTED
REDACTED,REDACTED,REDACTED,REDACTED,REDACTED,REDACTED,REDACTED,11/06/2012,343933,1193.35,REDACTED,REDACTED
Gloucester City Council,23UE,Off Street Car Parks,PP110,Electricity Supply,3110,Eastgate Car park electric May 12,29/06/2012,344977,1078.35,NET,British Gas
Gloucester City Council,23UE,Tic Theatre Ticket Sales,LT107,Materials For Sale,5080,TIC sales 25-27 May 12 Highnam,26/06/2012,344772,2123,NET,Carducci Music Trust
REDACTED,REDACTED,REDACTED,REDACTED,REDACTED,REDACTED,REDACTED,15/06/2012,344300,600,REDACTED,REDACTED
REDACTED,REDACTED,REDACTED,REDACTED,REDACTED,REDACTED,REDACTED,15/06/2012,344300,576.92,REDACTED,REDACTED
REDACTED,REDACTED,REDACTED,REDACTED,REDACTED,REDACTED,REDACTED,11/06/2012,343494,1830,REDACTED,REDACTED
Gloucester City Council,23UE,Off Street Car Parks,PP110,General Repair/Maint Buildings,3000,Eastgate car park May 12 drainage works,16/07/2012,345437,1203,NET,Cotswold Drain Services
Gloucester City Council,23UE,Youth Grant 2011/12,FP107,Funding Vol&Com Grps-Grants,7100C,youth grant 2012-13,20/07/2012,346406,1250,NET,Brunswick Baptist Church
Gloucester City Council,23UE,Utilities,PT502,Electricity Supply,3110,DEPOT MAR 2012,13/07/2012,344576,2784.99,NET,West Mercia Energy
Gloucester City Council,23UE,Utilities,PT502,Gas Supply,3100,CEMETERY GAS MAY 2012,13/07/2012,344700,4918.69,NET,West Mercia Energy
Gloucester City Council,23UE,Utilities,PT502,Gas Supply,3100,REF INV 1010165 TIC GAS,13/07/2012,344708,-58.36,NET,West Mercia Energy
Gloucester City Council,23UE,Docks Complex - Telephones,RB120,Telephones And Fax,5410,call charges to 30/6/12,24/07/2012,346533,2348.04,NET,Gamma Business Communications
Gloucester City Council,23UE,Investment Property,RB500,General Repair/Maint Buildings,3000,platform height truck mount,27/07/2012,346753,862.5,NET,Speedy Power Ltd
Gloucester City Council,23UE,General Drainage Works,PY241,Contract Payments,0020,CORONATION GROVE,23/07/2012,345365,817,CAP,Three Counties Drain Service
REDACTED,REDACTED,REDACTED,REDACTED,REDACTED,REDACTED,REDACTED,23/07/2012,346211,3062.5,REDACTED,REDACTED
Gloucester City Council,23UE,Housing Works In Default,HD500,Clearance And Cleansing Fees,5384,30 Chatsworth Ave works,27/07/2012,346922,16958.64,NET,Davey'S Building Maintenance
Gloucester City Council,23UE,Gloucester Partnership,FP106,Sports Grants,7114,Legacy Grant Play Sessions,13/07/2012,345855,3480,NET,Play Gloucestershire
Gloucester City Council,23UE,Postal Services,RS120,Postages,5400,ACCT 0252446000 W/E 28/06/12,18/07/2012,345728,1105,NET,Royal Mail S.Wales & South West
REDACTED,REDACTED,REDACTED,REDACTED,REDACTED,REDACTED,REDACTED,REDACTED,REDACTED,662.64,REDACTED,REDACTED
Gloucester City Council,23UE,Guildhall Bar And Café,LA210,Catering Provisions -Liquor,5111,GUILDHALL 18/7/12,26/07/2012,346829,752.09,NET,Cellar Supplies Cheltenham Ltd
Gloucester City Council,23UE,Business Transformation & Tech,RT700,Basic Pay - Temporary Staff,2751,A SMITH W/E 17/06/12,05/07/2012,345483,648,NET,Roc Search
Gloucester City Council,23UE,Business Transformation & Tech,RT700,Basic Pay - Temporary Staff,2751,R ASHLEY W/E 17/06/12,06/07/2012,345407,680,NET,Roc Search
REDACTED,REDACTED,REDACTED,REDACTED,REDACTED,REDACTED,REDACTED,20/07/2012,345941,740,REDACTED,REDACTED
Gloucester City Council,23UE,Registration Of Electors,RS400,Postages,5400,2012 canvass fulfillment,27/07/2012,346952,5764.72,NET,Print.Uk.Com
Gloucester City Council,23UE,Registration Of Electors,RS400,Printing,5300,2012 CANVAS FULFILLMENT,27/07/2012,346951,1228.14,NET,Print.Uk.Com
REDACTED,REDACTED,REDACTED,REDACTED,REDACTED,REDACTED,REDACTED,30/07/2012,13017,1535,REDACTED,REDACTED
Gloucester City Council,23UE,75/81 Eastgate Street,RB501,Fixed Wire Electrical Insp,3005,75-81 EASTGATE ST,25/07/2012,344455,2453.76,NET,Scs Installations Ltd
Gloucester City Council,23UE,Contingency Repair Fund,RY156,Contract Payments,0020,WINDFALL WAY PAVILION,23/07/2012,346216,1895.19,CAP,Scs Installations Ltd
Gloucester City Council,23UE,Parking Cctv,PT745,Contracted Services,6970,June 2012 variable services,09/07/2012,345814,1029.75,NET,Apcoa Parking (Uk) Ltd
Gloucester City Council,23UE,Perennial Planting Enterprise,LY133,Contract Payments,0020,AD HOC ORDERS,23/07/2012,342330,9854.65,CAP,Enterprise (Aol) Ltd
Gloucester City Council,23UE,Senior Management Restructurin,RO200,Fees For Services Received,5350,April-June 12 consultancy services,23/07/2012,346424,29747.2,NET,Alexander Beaver Associates
REDACTED,REDACTED,REDACTED,REDACTED,REDACTED,REDACTED,REDACTED,20/07/2012,346410,590,REDACTED,REDACTED
Gloucester City Council,23UE,Docks Complex - Telephones,RB120,Mobile Phones,5409,EVERYTHING EVERYWHERE LTD T-MO,10/08/2012,347734,1924.64,NET,Everything Everywhere Ltd (T-Mobile)
Gloucester City Council,23UE,Business Transformation & Tech,RT700,Basic Pay - Temporary Staff,2751,C Watkins  w/e 10/8/12,16/08/2012,347996,1125,NET,Ffox Software Ltd
Gloucester City Council,23UE,Business Transformation & Tech,RT700,Computer Software Maintenance,5427,VMware support/subscription,28/08/2012,348608,12686.09,NET,Ans Group Plc
Gloucester City Council,23UE,Utilities,PT502,Electricity Supply,3110,GUILDHALL,23/08/2012,347906,1503.71,NET,West Mercia Energy
Gloucester City Council,23UE,Utilities,PT502,Electricity Supply,3110,REF INV 2267150 CITY FARM,23/08/2012,348060,-189.28,NET,West Mercia Energy
Gloucester City Council,23UE,Off Street Car Parks,PP110,Service Charges,3020,CAR PARK OFFICE BALANCE,29/08/2012,348190,-5.66,NET,Workman Llp Service Charge Account
Gloucester City Council,23UE,Homelessness Prevention,CH122,Basic Pay -Admin /Prof Staff,2601,J Burnett-Pitt w/e 5/8/12,15/08/2012,347813,685.91,NET,Building Recruitment Company Ltd
Gloucester City Council,23UE,Improvement Grants,CY013,Disabled Facility Grants,0074,release of retention re 17 Arthur St,02/08/2012,345258,893.9,CAP,Beard & Tandy
Gloucester City Council,23UE,Contact Centre,RY553,It Hardware >£5000,0042,Apollo point of info kiosk,13/08/2012,347168,3948,CAP,Dicoll Ltd
Gloucester City Council,23UE,Youth Grant 2011/12,FP107,Funding Vol&Com Grps-Grants,7100C,Youth Grant 2012-13,08/08/2012,347163,1600,NET,Increase The Peace Project
Gloucester City Council,23UE,Off Street Car Parks,PP110,General Repair/Maint Buildings,3000,Longsmith St car park kiosk windows,28/08/2012,348183,745,NET,Hanman Split Ltd
Gloucester City Council,23UE,Improvement Grants,CY013,Disabled Facility Grants,0074,15 KINGSTONE AVE LEVEL ACCESS,03/08/2012,347208,4826.8,CAP,Seddon Property Services Ltd
Gloucester City Council,23UE,Public Reception Team,RB302,Basic Pay -Admin /Prof Staff,2601,R Efedua w/e 12/8/12,28/08/2012,348597,814,NET,Hbhc Synergy Ltd
REDACTED,REDACTED,REDACTED,REDACTED,REDACTED,REDACTED,REDACTED,08/08/2012,347565,500,REDACTED,REDACTED
Gloucester City Council,23UE,Decent Homes Loans,CY042,Housing Loans,0064,,24/08/2012,348539,11641,CAP,R C Martin Building Contractors
REDACTED,REDACTED,REDACTED,REDACTED,REDACTED,REDACTED,REDACTED,14/08/2012,348069,700,REDACTED,REDACTED
Gloucester City Council,23UE,Youth Grant 2011/12,FP107,Funding Vol&Com Grps-Grants,7100C,youth grant 2012-13,08/08/2012,347058,2000,NET,Angling For Youth Development
Gloucester City Council,23UE,23-25 Commercial Road,RB541,General Repair/Maint Buildings,3000,Yacht Club drainage,21/08/2012,348004,745,NET,Drainaway Gloucester
Gloucester City Council,23UE,Financial Services,RT200,Fees For Services Received,5350,V Merredy/M Ellicott Chris21 training,13/08/2012,347469,1861.1,NET,Frontier Software Plc
Gloucester City Council,23UE,Hempsted Market/Car Boot,HM234,Sewerage And Environ Charges,3402,ABBEY LOOS LIMITED,18/09/2012,348586,-70,NET,Abbey Loos Limited
REDACTED,REDACTED,REDACTED,REDACTED,REDACTED,REDACTED,REDACTED,29/08/2012,344911,900,REDACTED,REDACTED
Gloucester City Council,23UE,Homelessness,CH120,Rent In Advance,5516,,06/08/2012,347398,-377.4,NET,Martin & Co
REDACTED,REDACTED,REDACTED,REDACTED,REDACTED,REDACTED,REDACTED,10/08/2012,347455,4360.5,REDACTED,REDACTED
REDACTED,REDACTED,REDACTED,REDACTED,REDACTED,REDACTED,REDACTED,16/08/2012,347975,5776,REDACTED,REDACTED
Gloucester City Council,23UE,Financial Services,RT200,Vocational Training,2970,AAT L4 I Purcell,03/08/2012,347147,1030,NET,Gloucestershire College
Gloucester City Council,23UE,Council Streetcare Team,HI101,Operational Equipment <£5000,5012,2012/13 RECYCLE FOR GLOS WEBSITE,29/08/2012,342700,715,NET,Gloucestershire County Council
REDACTED,REDACTED,REDACTED,REDACTED,REDACTED,REDACTED,REDACTED,17/08/2012,348174,1234.5,REDACTED,REDACTED
REDACTED,REDACTED,REDACTED,REDACTED,REDACTED,REDACTED,REDACTED,17/08/2012,348175,1000,REDACTED,REDACTED
Gloucester City Council,23UE,Grants To Voluntary Sector,FG100,Funding Vol&Com Grps-Grants,7100C,2012/13 community grant 1 of 2,13/08/2012,347871,6000,NET,Glosrec (Race Equality Council For Glos)
Gloucester City Council,23UE,Parking Cctv,PT745,Fees For Services Received,5350,BUS LANE PCN,05/09/2012,349119,946.85,NET,Patrol (Mcc-Patrol Bus)
Gloucester City Council,23UE,Pest Control,HD400,Fees For Services Received,5350,HKP pest treatment to August 2012,19/09/2012,349958,1292.04,NET,Falconry Services Bird & Pest Control
Gloucester City Council,23UE,Investment Property,RB500,General Repair/Maint Buildings,3000,BADMINTON RD CLEAR UP,25/09/2012,349501,2325,NET,Rj Contracting
Gloucester City Council,23UE,Tic Theatre Ticket Sales,LT107,Sale Of Goods And Services,9230,KEMBLE AIR SERVICES LTD,25/09/2012,349429,-138.5,NET,Kemble Air Services Ltd
REDACTED,REDACTED,REDACTED,REDACTED,REDACTED,REDACTED,REDACTED,17/09/2012,349743,1141,REDACTED,REDACTED
Gloucester City Council,23UE,Countryside Unit,LP201,Maint Of Grounds - General,3030,TOPOGRAPH DISC,25/09/2012,350352,570,NET,Pedrette Engineering Ltd
Gloucester City Council,23UE,Tourism Marketing,LT100,Materials For Sale,5080,GOODS FOR RESALE,28/09/2012,350622,702.8,NET,Severn Bore Surfing
Gloucester City Council,23UE,Youth Grant 2011/12,FP107,Grants To Voluntary Orgs-Rents,7100,youth grant 2012-13,20/09/2012,349790,2000,NET,Barnwood Residents Association
Gloucester City Council,23UE,Folk Museum Works,RY164,Contract Payments,0020,FOLK MUSEUM,07/09/2012,349260,2297.92,CAP,B & M Babbage & Co.Ltd
REDACTED,REDACTED,REDACTED,REDACTED,REDACTED,REDACTED,REDACTED,04/09/2012,349041,500,REDACTED,REDACTED
Gloucester City Council,23UE,Gf Lifelinks,CH180,Fees For Services Received,5350,August 2012 manangement fees,13/09/2012,347532,5270.83,NET,Gloucester City Homes
Gloucester City Council,23UE,Solace Project,FP843,Other Minor Supplies Services,5590,ASBO STAFF AUG 12,05/09/2012,349077,3250,NET,Gloucester City Homes
Gloucester City Council,23UE,Council Streetcare Team,HI101,General Repair/Maint Buildings,3000,STAFF W/E 07/09/12,25/09/2012,349932,848.38,NET,One To One Recruitment
Gloucester City Council,23UE,Civica Admin Charges,RT105,Postages,5400,ACCT 0870585007 REVENUES,10/09/2012,348660,1409.92,NET,Royal Mail S.Wales & South West
Gloucester City Council,23UE,Postal Services,RS120,Postages,5400,ACCT 0252446000 W/E 30/08/12,10/09/2012,349292,1616.35,NET,Royal Mail S.Wales & South West
REDACTED,REDACTED,REDACTED,REDACTED,REDACTED,REDACTED,REDACTED,12/09/2012,349467,576.92,REDACTED,REDACTED
REDACTED,REDACTED,REDACTED,REDACTED,REDACTED,REDACTED,REDACTED,17/09/2012,349481,1152.75,REDACTED,REDACTED
REDACTED,REDACTED,REDACTED,REDACTED,REDACTED,REDACTED,REDACTED,20/09/2012,349797,739.63,REDACTED,REDACTED
REDACTED,REDACTED,REDACTED,REDACTED,REDACTED,REDACTED,REDACTED,26/09/2012,348394,509.22,REDACTED,REDACTED
Gloucester City Council,23UE,City Museum And Art Gallery,LM200,Catering Provisions -Food,5110,REF ORDER CMX0033,20/09/2012,349281,-28.71,NET,Delice De France
Gloucester City Council,23UE,Civica Contract Revs & Bens,RT250,Contracted Services,6970,core revs & bens service Oct-Dec12,18/09/2012,349540,398751,NET,Civica Uk Ltd
Gloucester City Council,23UE,Client Revs & Bens Contract,RT240,Computer Software Maintenance,5427,credit re M/RB007045,18/09/2012,343043,-462.95,NET,Civica Uk Ltd
Gloucester City Council,23UE,Client Revs & Bens Contract,RT240,Computer Software Maintenance,5427,credit re M/RB005765,18/09/2012,343042,-271.07,NET,Civica Uk Ltd
Gloucester City Council,23UE,Client Revs & Bens Contract,RT240,Computer Hardware <£5000,5420,credit re M/RB003963,18/09/2012,343040,-13895.8,NET,Civica Uk Ltd
REDACTED,REDACTED,REDACTED,REDACTED,REDACTED,REDACTED,REDACTED,18/09/2012,349727,1234.5,REDACTED,REDACTED
Gloucester City Council,23UE,Treasury Management,VR110,Consultants Fees,5349,TECHNICAL ACCOUNTING,06/09/2012,348894,5000,NET,Sector Treasury Services Ltd
Gloucester City Council,23UE,Tic Rovercard Sales,LT101,Sale Of Goods And Services,9230,ticket sales period 4 12/113,25/09/2012,349424,-411.5,NET,Stagecoach Services Ltd*
Gloucester City Council,23UE,Off Street Car Parks,PP110,Electricity Supply,3110,Eastgate complex A3496753 - final bill,19/09/2012,349808,884.42,NET,British Gas
REDACTED,REDACTED,REDACTED,REDACTED,REDACTED,REDACTED,REDACTED,13/09/2012,349156,3010,REDACTED,REDACTED
Gloucester City Council,23UE,Forest Of Dean Off Street,PT742,Contracted Services,6970,AUG 2012,10/09/2012,349295,2661.25,NET,Apcoa Parking (Uk) Ltd
Gloucester City Council,23UE,Council Streetcare Team,HI101,Contracted Services,6970,monthly management fee,17/09/2012,349402,524603.59,NET,Enterprise (Aol) Ltd
Gloucester City Council,23UE,Council Streetcare Team,HI101,Fees For Services Received,5350,credit note tradewaste,11/09/2012,347388,-164.84,NET,Enterprise (Aol) Ltd
REDACTED,REDACTED,REDACTED,REDACTED,REDACTED,REDACTED,REDACTED,25/09/2012,350400,3975,REDACTED,REDACTED
Gloucester City Council,23UE,North Warehouse Works,RY154,Contract Payments,0020,NORTH WAREHOUSE,20/09/2012,350033,7504,CAP,Langley Wellington Solicitors
Gloucester City Council,23UE,Business Transformation & Tech,RT700,Basic Pay - Temporary Staff,2751,C Watkins services w/e 26/10/12,01/11/2012,352568,1125,NET,Ffox Software Ltd
REDACTED,REDACTED,REDACTED,REDACTED,REDACTED,REDACTED,REDACTED,REDACTED,REDACTED,1236.58,REDACTED,REDACTED
Gloucester City Council,23UE,Retail Market - Landlord,HM300,Trade Refuse Sacks,5040,APR-May 12 markets skip charge,06/07/2012,345422,1584,NET,Barnwood Shopfitting Ltd
REDACTED,REDACTED,REDACTED,REDACTED,REDACTED,REDACTED,REDACTED,25/07/2012,346728,1141,REDACTED,REDACTED
Gloucester City Council,23UE,Improvement Grants,CY013,Disabled Facility Grants,0074,"14 Brook St, Gloucester",16/07/2012,345917,1845,CAP,T & P Franklin & Sons Ltd
Gloucester City Council,23UE,Summer Festival,LT300,Maintenance Of Equipment,5030,hire of units for Gloucester Festival,30/07/2012,346855,632,NET,Konstructa Hire Ltd
Gloucester City Council,23UE,Council Streetcare Team,HI101,General Repair/Maint Buildings,3000,CONTAINER,26/07/2012,342630,3800,NET,Uk Container Maintenance Ltd
REDACTED,REDACTED,REDACTED,REDACTED,REDACTED,REDACTED,REDACTED,18/07/2012,346202,576.92,REDACTED,REDACTED
Gloucester City Council,23UE,Summer Festival,LT300,Artists Fees,5355,performance,25/07/2012,346744,5000,NET,X-Ray Touring
Gloucester City Council,23UE,Asset Management,RS300,Basic Pay -Admin /Prof Staff,2601,June 2012 consultancy services,06/07/2012,345590,5511.57,NET,Ardley Associates
Gloucester City Council,23UE,Council Streetcare Team,HI101,General Repair/Maint Buildings,3000,WASHER HIRE,18/07/2012,345707,2000,NET,Sweeping Solutions Ltd
Gloucester City Council,23UE,Youth Grant 2011/12,FP107,Funding Vol&Com Grps-Grants,7100C,YOUTH GRANT 2012-13,20/07/2012,346222,1930,NET,Together In Matson
Gloucester City Council,23UE,Group Mgr Cult Ser & Tourism,GR102,Events,5952,Gloucseter Blues Festival,18/07/2012,346279,20000,NET,Marketing Gloucester Ltd
Gloucester City Council,23UE,Photocopying,RS130,Hire Of Equipment,5020,REF INV 86420827,29/10/2012,342632,-438.35,NET,Ricoh Uk Ltd
Gloucester City Council,23UE,General Drainage Works,PY241,Contract Payments,0020,Nene Close footpath works,23/07/2012,346263,1936,CAP,Anderson Civil Engineering Uk Ltd
Gloucester City Council,23UE,Council Streetcare Team,HI101,General Repair/Maint Buildings,3000,Nene Close footpath works,23/07/2012,346263,1400,NET,Anderson Civil Engineering Uk Ltd
Gloucester City Council,23UE,Tic Coach Tickets,LT105,Sale Of Goods And Services,9230,J HUDSON,20/07/2012,346220,-3.25,NET,Superbreak Mini Holidays
REDACTED,REDACTED,REDACTED,REDACTED,REDACTED,REDACTED,REDACTED,06/07/2012,345666,1250,REDACTED,REDACTED
REDACTED,REDACTED,REDACTED,REDACTED,REDACTED,REDACTED,REDACTED,03/07/2012,345219,1250,REDACTED,REDACTED
Gloucester City Council,23UE,Investment Property,RB500,General Repair/Maint Buildings,3000,8/6/12 city museum low level lift works,05/07/2012,345203,845.37,NET,Pickerings Europe Ltd*
REDACTED,REDACTED,REDACTED,REDACTED,REDACTED,REDACTED,REDACTED,24/07/2012,346416,851,REDACTED,REDACTED
Gloucester City Council,23UE,Council Streetcare Team,HI101,Contracted Services,6970,PURPLE BAGS,06/07/2012,345349,953,NET,Polystar Plastics Ltd
Gloucester City Council,23UE,Retail Market - Landlord,HM300,Service Charges,3020,EASTGATE SHOPPING CTR,16/07/2012,344431,676.22,NET,Workman Llp Insurance Account
Gloucester City Council,23UE,Tic Rovercard Sales,LT101,Sale Of Goods And Services,9230,Ticket Sales Period 2,18/07/2012,345853,-642.88,NET,Stagecoach Services Ltd*
REDACTED,REDACTED,REDACTED,REDACTED,REDACTED,REDACTED,REDACTED,31/07/2012,346835,2476.25,REDACTED,REDACTED
Gloucester City Council,23UE,Hkp Accomodation Review,RY163,Contract Payments,0020,2 Draw Cabinet,24/07/2012,345854,2847,CAP,Simply Safes Ltd
Gloucester City Council,23UE,Utilities,PT502,Electricity Supply,3110,GUILDHALL,23/08/2012,347902,1614.74,NET,West Mercia Energy
Gloucester City Council,23UE,Utilities,PT502,Electricity Supply,3110,HKP WAREHOUSE,23/08/2012,347925,8570.4,NET,West Mercia Energy
Gloucester City Council,23UE,Utilities,PT502,Electricity Supply,3110,CREM,23/08/2012,347916,1272,NET,West Mercia Energy
Gloucester City Council,23UE,Utilities,PT502,Gas Supply,3100,"GAS, LEISURE CENTRE",28/08/2012,348544,12385.32,NET,West Mercia Energy
Gloucester City Council,23UE,Utilities,PT502,Electricity Supply,3110,EASTERN AVE DEPOT,28/08/2012,347892,2623.79,NET,West Mercia Energy
Gloucester City Council,23UE,Docks Complex - Telephones,RB120,Telephones And Fax,5410,Call charges to 31/7/12,23/08/2012,348249,2484.72,NET,Gamma Business Communications
REDACTED,REDACTED,REDACTED,REDACTED,REDACTED,REDACTED,REDACTED,07/08/2012,347503,750,REDACTED,REDACTED
REDACTED,REDACTED,REDACTED,REDACTED,REDACTED,REDACTED,REDACTED,23/08/2012,348527,3203.96,REDACTED,REDACTED
Gloucester City Council,23UE,Tic Theatre Ticket Sales,LT107,Sale Of Goods And Services,9230,AS YOU LIKE IT,14/08/2012,347735,-16.17,NET,Rain Or Shine Theatre Co Ltd
Gloucester City Council,23UE,Homelessness Prevention,CH122,Fees For Services Received,5350,,07/08/2012,347460,500,NET,Cgt Lettings
Gloucester City Council,23UE,Grants To Voluntary Sector,FG100,Funding Vol&Com Grps-Grants,7100C,,29/08/2012,348762,2000,NET,St Hilda Luncheon Club
Gloucester City Council,23UE,Business Transformation & Tech,RT700,Computer Software Maintenance,5427,"ASH INFORMATION SYSTEMS, ANNUAL FEE",17/08/2012,348139,600,NET,Ncc Services Ltd
REDACTED,REDACTED,REDACTED,REDACTED,REDACTED,REDACTED,REDACTED,16/08/2012,348094,1141,REDACTED,REDACTED
Gloucester City Council,23UE,Improvement Grants,CY013,Disabled Facility Grants,0074,,14/08/2012,347887,4836.6,CAP,Care & Repair
Gloucester City Council,23UE,General Drainage Works,PY241,Contract Payments,0020,"ATTND SITE, REMOVE SILT DEPOSIT FROM CUL",02/08/2012,347100,7779.88,CAP,Three Counties Drain Service
Gloucester City Council,23UE,Business Transformation & Tech,RT700,Computer Hardware <£5000,5420,LATITUDE E5520,15/08/2012,347818,724.76,NET,Dell Computers Corporation Ltd
REDACTED,REDACTED,REDACTED,REDACTED,REDACTED,REDACTED,REDACTED,10/08/2012,347731,4908.75,REDACTED,REDACTED
REDACTED,REDACTED,REDACTED,REDACTED,REDACTED,REDACTED,REDACTED,10/08/2012,347463,756,REDACTED,REDACTED
REDACTED,REDACTED,REDACTED,REDACTED,REDACTED,REDACTED,REDACTED,07/08/2012,347296,1006.51,REDACTED,REDACTED
Gloucester City Council,23UE,Housing Works In Default,HD500,Clearance And Cleansing Fees,5384,80 Painswick Road works,17/08/2012,348182,4680.28,NET,Davey'S Building Maintenance
Gloucester City Council,23UE,Investment Property,RB500,General Repair/Maint Buildings,3000,4 Wellington Street,10/08/2012,346136,919.86,NET,Snape Construction Ltd
Gloucester City Council,23UE,Investment Property,RB500,General Repair/Maint Buildings,3000,credit for invoice 20854047,19/09/2012,348242,-56.3,NET,Adt Fire & Security Plc
Gloucester City Council,23UE,Cctv Revenue Budget,FP501,Security Equipment Serv/Repair,3038,"CCTV, 07/12",06/08/2012,347406,1726.67,NET,Quadrant Security Group Ltd
REDACTED,REDACTED,REDACTED,REDACTED,REDACTED,REDACTED,REDACTED,03/08/2012,13042,-150,REDACTED,REDACTED
Gloucester City Council,23UE,City Museum And Art Gallery,LM200,Printing,5300,WHATS ON GUIDE,01/08/2012,345709,512.5,NET,Severnprint Ltd
Gloucester City Council,23UE,Tic Rovercard Sales,LT101,Materials For Sale,5080,TICKET SALES PERIOD3,13/08/2012,347798,5411.63,NET,Stagecoach Services Ltd*
Gloucester City Council,23UE,Off Street Car Parks,PP110,Electricity Supply,3110,Eastgate a/c A3496654 July 12,29/08/2012,348385,2672.6,NET,British Gas
Gloucester City Council,23UE,Hkp Accomodation Review,RY163,Contract Payments,0020,GUARDIAN 2DRAWER FIRE FILE PROTECTION,03/09/2012,347959,2556,CAP,Simply Safes Ltd
Gloucester City Council,23UE,Civic Admin And Hospitality,RC210,Events,5952,DONATION FROM MAYORS CHARITY,01/10/2012,347819,800,NET,The Alzheimers Society
Gloucester City Council,23UE,Homelessness Prevention,CH122,Fees For Services Received,5350,,24/08/2012,348634,600,NET,Woodfield Lettings Ltd
Gloucester City Council,23UE,Council Streetcare Team,HI101,General Repair/Maint Buildings,3000,walk behind vacs,29/08/2012,347131,563.33,NET,Enterprise (Aol) Ltd
REDACTED,REDACTED,REDACTED,REDACTED,REDACTED,REDACTED,REDACTED,23/08/2012,348343,870,NET,REDACTED
REDACTED,REDACTED,REDACTED,REDACTED,REDACTED,REDACTED,REDACTED,24/08/2012,347973,3975,NET,REDACTED
Gloucester City Council,23UE,Utilities,PT502,Electricity Supply,3110,NORTH WAREHOUSE,20/09/2012,350020,1223.38,NET,West Mercia Energy
Gloucester City Council,23UE,Utilities,PT502,Electricity Supply,3110,CITY MUSEUM,20/09/2012,350002,1199.85,NET,West Mercia Energy
Gloucester City Council,23UE,Utilities,PT502,Gas Supply,3100,REF INV 1020792 FOLK MUSEUM,27/09/2012,350498,-181.72,NET,West Mercia Energy
Gloucester City Council,23UE,Utilities,PT502,Gas Supply,3100,OTC GAS AUG 2012,27/09/2012,350507,560.98,NET,West Mercia Energy
Gloucester City Council,23UE,Utilities,PT502,Gas Supply,3100,REF INV 1021065 FOLK MUSEUM,27/09/2012,350497,-26.85,NET,West Mercia Energy
Gloucester City Council,23UE,Dwelling Improvements,BY008,Contract Payments,0020,AUGUST 12 CAPITAL,01/10/2012,350113,324254.63,CAP,Gloucester City Homes
REDACTED,REDACTED,REDACTED,REDACTED,REDACTED,REDACTED,REDACTED,10/09/2012,349347,972,REDACTED,REDACTED
Gloucester City Council,23UE,Investment Property,RB500,General Repair/Maint Buildings,3000,credit for invoice 21085174-15,21/09/2012,350132,-1280.96,NET,Adt Fire & Security Plc
Gloucester City Council,23UE,Investment Property,RB500,General Repair/Maint Buildings,3000,credit for invoice 21617099-15,21/09/2012,350126,-236.42,NET,Adt Fire & Security Plc
Gloucester City Council,23UE,Investment Property,RB500,General Repair/Maint Buildings,3000,CREDIT FOR INVIOCE 20750748-15,21/09/2012,350124,-312.54,NET,Adt Fire & Security Plc
Gloucester City Council,23UE,Investment Property,RB500,General Repair/Maint Buildings,3000,CREDIT FOR INVOICE 21466794,21/09/2012,350136,-726.22,NET,Adt Fire & Security Plc
Gloucester City Council,23UE,Investment Property,RB500,General Repair/Maint Buildings,3000,HKP EMERGENCY LX MAINT 7/12-7/13,28/09/2012,346050,810.25,NET,Adt Fire & Security Plc
Gloucester City Council,23UE,Docks Office Works,RY165,Contract Payments,0020,HKP WAREHOUSE,18/09/2012,349096,1580,CAP,L Coward & Son Ltd
Gloucester City Council,23UE,Organisational Health,RC160,Fees For Services Received,5350,May 12 OH  service,20/09/2012,346397,1573.75,NET,Industrial Medical & Safety Services Ltd
Gloucester City Council,23UE,North Warehouse Works,RY154,Contract Payments,0020,PRV replacement works on chiller,28/09/2012,350539,2709.5,CAP,Cooltherm
Gloucester City Council,23UE,Council Streetcare Team,HI101,General Repair/Maint Buildings,3000,CUST SERVS STAFF W/E 31/08/12,18/09/2012,349289,666.36,NET,One To One Recruitment
REDACTED,REDACTED,REDACTED,REDACTED,REDACTED,REDACTED,REDACTED,04/09/2012,13078,1004.64,REDACTED,REDACTED
Gloucester City Council,23UE,Grants To Voluntary Sector,FG100,Funding Vol&Com Grps-Grants,7100C,COMMUNITY GRANT 2012-13,07/09/2012,348389,3219,NET,Gloucestershire Dance
Gloucester City Council,23UE,Guildhall Bar And Café,LA210,Catering Provisions -Liquor,5111,Guildhall 1/8/12,17/09/2012,347619,1299.77,NET,Cellar Supplies Cheltenham Ltd
REDACTED,REDACTED,REDACTED,REDACTED,REDACTED,REDACTED,REDACTED,REDACTED,REDACTED,500,REDACTED,REDACTED
Gloucester City Council,23UE,Blackfriars Priory,RY207,Contract Payments,0020,FLEECE HOTEL,24/09/2012,349067,800,CAP,Aecom
REDACTED,REDACTED,REDACTED,REDACTED,REDACTED,REDACTED,REDACTED,25/09/2012,349924,6463,REDACTED,REDACTED
Gloucester City Council,23UE,Grants To Voluntary Sector,FG100,Funding Vol&Com Grps-Grants,7100C,COMMUNITY GRANT,25/09/2012,350246,4920,NET,Over 50'S Club
Gloucester City Council,23UE,Pollution Control,HE300,Fees For Services Received,5350,PRIORY ROAD,13/09/2012,349278,605,NET,Anderson Civil Engineering Uk Ltd
Gloucester City Council,23UE,Pollution Control,HE300,Fees For Services Received,5350,Priory Rd pollution monitor,27/09/2012,350573,1038,NET,Anderson Civil Engineering Uk Ltd
Gloucester City Council,23UE,Director Resources,MR102,Fees For Services Received,5350,EMPLOYMENT ADVICE,19/09/2012,349877,4110,NET,Wragge & Co Llp
Gloucester City Council,23UE,Tic Coach Tickets,LT105,Materials For Sale,5080,BOOKING 15/09/12,06/09/2012,349124,661.98,NET,Superbreak Mini Holidays
REDACTED,REDACTED,REDACTED,REDACTED,REDACTED,REDACTED,REDACTED,26/09/2012,350286,1250,REDACTED,REDACTED
REDACTED,REDACTED,REDACTED,REDACTED,REDACTED,REDACTED,REDACTED,03/10/2012,350831,1080,REDACTED,REDACTED
Gloucester City Council,23UE,Asset Management,RS300,Computer Software <£5000,5425,CREDIT FOR INVOICE IN-013-000756,12/02/2013,352128,-4425,NET,Argus Software (Uk) Ltd
Gloucester City Council,23UE,Utilities,PT502,Electricity Supply,3110,DEPOT,19/10/2012,351788,1539.07,NET,West Mercia Energy
Gloucester City Council,23UE,Utilities,PT502,Electricity Supply,3110,REF INV 2208629 KIOSK 1 KINGS WALK,19/10/2012,351796,-5.78,NET,West Mercia Energy
Gloucester City Council,23UE,Docks Complex - Telephones,RB120,Telephones And Fax,5410,ACCT 510988001 HOBBS,26/10/2012,351915,-44,NET,Virgin Media Payments Ltd
Gloucester City Council,23UE,Docks Complex - Telephones,RB120,Telephones And Fax,5410,ACCT 505653401 FOLK MUSEUM,26/10/2012,351911,-47.6,NET,Virgin Media Payments Ltd
Gloucester City Council,23UE,Flooding And Drainage,HE306,Maint Of Grounds - General,3030,BISHOPS CASTLE WAY,11/10/2012,351193,630,NET,Rj Contracting
REDACTED,REDACTED,REDACTED,REDACTED,REDACTED,REDACTED,REDACTED,11/10/2012,351251,-3.33,REDACTED,REDACTED
Gloucester City Council,23UE,Improvement Grants,CY013,Disabled Facility Grants,0074,43 ARUNDEL CLOSE,10/10/2012,351198,7640,CAP,T & P Franklin & Sons Ltd
Gloucester City Council,23UE,Council Streetcare Team,HI101,General Repair/Maint Buildings,3000,CARD HANGER TAGS,24/10/2012,352139,1708,NET,Eurolabel
Gloucester City Council,23UE,Homelessness,CH120,Board And Lodging,5515,VARIOUS TENANTS,18/10/2012,351780,620.6,NET,Terrance Prictor (Longford Mews Guest House)
REDACTED,REDACTED,REDACTED,REDACTED,REDACTED,REDACTED,REDACTED,REDACTED,REDACTED,730.4,REDACTED,REDACTED
Gloucester City Council,23UE,Tic Theatre Ticket Sales,LT107,Sale Of Goods And Services,9230,DOUBLE ACT 05/10/12,19/10/2012,351896,-12.5,NET,Kings Theatre
Gloucester City Council,23UE,Tic Theatre Ticket Sales,LT107,Sale Of Goods And Services,9230,Habeus Corpus ticket sales,11/10/2012,351252,-13.5,NET,Kings Theatre
Gloucester City Council,23UE,Civica Admin Charges,RT105,Photocopying,5320,L9074200048,30/10/2012,352380,759.19,NET,Ricoh Uk Ltd
Gloucester City Council,23UE,Civica Admin Charges,RT105,Photocopying,5320,L9074200048,29/10/2012,345482,913.54,NET,Ricoh Uk Ltd
Gloucester City Council,23UE,Abbeydale Comnty Cntre Flood W,PY276,Contract Payments,0020,SNAPE CONSTRUCTION LTD,23/10/2012,352008,35005.92,CAP,Snape Construction Ltd
Gloucester City Council,23UE,Gloucester Guildhall,LA100,Maintenance Of Equipment,5030,TRAINING 09/10/12,03/10/2012,350838,525,NET,Local Authority Event Organisers Group
REDACTED,REDACTED,REDACTED,REDACTED,REDACTED,REDACTED,REDACTED,23/10/2012,352120,-23,REDACTED,REDACTED
Gloucester City Council,23UE,Cemeteries,HC300,Grave Indicators,5054,Created by invoice listener,29/10/2012,352394,649,NET,Arkell & Hurcombe
Gloucester City Council,23UE,Homelessness Prevention,CH122,Fees For Services Received,5350,SUBS 10/12-09/13,19/10/2012,351849,2226,NET,Thomson Reuters
Gloucester City Council,23UE,Business Support,PT250,Basic Pay -Admin /Prof Staff,2601,STAFF W/E 12/10/12,19/10/2012,351858,834.76,NET,One To One Recruitment
Gloucester City Council,23UE,Civica Admin Charges,RT105,Postages,5400,ACCT 0870585007 REVENUES,31/10/2012,351913,1132.71,NET,Royal Mail S.Wales & South West
Gloucester City Council,23UE,Civica Admin Charges,RT105,Postages,5400,ACCT 0870585007 REVENUES,30/10/2012,351074,1438.7,NET,Royal Mail S.Wales & South West
Gloucester City Council,23UE,Director Resources,MR102,Fees For Services Received,5350,POLICY MAN SYSTEM,15/10/2012,351535,3551,NET,Wragge & Co Llp
REDACTED,REDACTED,REDACTED,REDACTED,REDACTED,REDACTED,REDACTED,22/10/2012,351910,1250,REDACTED,REDACTED
Gloucester City Council,23UE,Gis Development Work,RY555,Contract Payments,0020,Created by invoice listener,15/10/2012,351413,1250,CAP,Badenoch & Clark
Gloucester City Council,23UE,Investment Property,RB500,General Repair/Maint Buildings,3000,GL1,26/10/2012,352281,1948.7,NET,Pickerings Europe Ltd*
REDACTED,REDACTED,REDACTED,REDACTED,REDACTED,REDACTED,REDACTED,18/10/2012,351402,792,REDACTED,REDACTED
Gloucester City Council,23UE,Fixed Electrical Inspections,RY209,Contract Payments,0020,Fixed wire inspection & testing,18/10/2012,351002,10626,CAP,Guardian Electrical Solutions Ltd
Gloucester City Council,23UE,Off Street Car Parks,PP110,Contracted Services,6970,September 2012 parking services,08/10/2012,351008,23922.61,NET,Apcoa Parking (Uk) Ltd
Gloucester City Council,23UE,Civil Parking Enforcement,PT741,Contracted Services,6970,September 2012 parking services,08/10/2012,351008,25887.85,NET,Apcoa Parking (Uk) Ltd
Gloucester City Council,23UE,Nms Contract,HI102,Additional Non-Tender Items,6973,ENTERPRISE AOL LTD,25/10/2012,351505,563.33,NET,Enterprise (Aol) Ltd
Gloucester City Council,23UE,Grants To Voluntary Sector,FG100,Funding Vol&Com Grps-Sust,7100F,Glosrec - JR by Kevin Johnson,09/10/2012,350939,3110,NET,Bevan Brittan
Gloucester City Council,23UE,Abbeydale Comnty Cntre Flood W,PY276,Contract Payments,0020,toilet refurb re-iumbursement,23/10/2012,352009,4178.38,CAP,Abbeydale Community Association
Gloucester City Council,23UE,Off Street Car Parks,PP110,Water Supply,3400,ACCT 4690096884,09/10/2012,351078,932.21,NET,Severn Trent Water
Gloucester City Council,23UE,Business Transformation & Tech,RT700,Operational Equipment <£5000,5012,HERBERT WAREHOUSE,16/11/2012,351197,524.8,NET,National Design Consultancy
Gloucester City Council,23UE,Tic Coach Tickets,LT105,Materials For Sale,5080,SALES OCT 12,07/11/2012,352720,14813.25,NET,National Express Ltd
Gloucester City Council,23UE,Gf Lifelinks,CH180,Fees For Services Received,5350,November 12 management fees,12/11/2012,353285,5270.83,NET,Gloucester City Homes
Gloucester City Council,23UE,Registration Of Electors,RS400,Printing,5300,pcc postal vote packs,12/11/2012,353009,5047.92,NET,Alpha Response Print & Mail Ltd
Gloucester City Council,23UE,Historic Buildings,PH100,Conservation Grants,7101,,09/01/2013,353749,-103,NET,Glos City Centre Community Partnership
Gloucester City Council,23UE,Kingsholm Kids At Play Sebert,LY131,Contract Payments,0020,SEBERT ST KINGSHOLM MAY-JUL12,27/11/2012,354214,2995,CAP,Play Gloucestershire
Gloucester City Council,23UE,The Fleece,RB530,Electricity Supply,3110,FLEECE HOTEL OCT12 ELECTRIC,26/02/2013,353777,-216.32,NET,Southern Electric
Gloucester City Council,23UE,Mortgage Rescue,CH128,Fees For Services Received,5350,STAFF W/E 03/11/12,12/11/2012,352963,773.76,NET,One To One Recruitment
Gloucester City Council,23UE,Asset Management,RS300,Advertising And Publicity,5702,ADVERTISING,14/11/2012,352297,770,NET,Reed Business Information
Gloucester City Council,23UE,Tic Coach Tickets,LT105,Materials For Sale,5080,Oct 12 sales,22/11/2012,353967,4845,NET,Marchants Coaches Ltd
Gloucester City Council,23UE,Grants To Voluntary Sector,FG100,Funding Vol&Com Grps-Grants,7100C,COMMUNITY GRANT 2012/13,23/11/2012,353827,3011.75,NET,Afro-Caribbean Association
Gloucester City Council,23UE,Crematorium,HC200,Repair/Maint Of Fixed Plant,3006,CREM CARBON REAGENT,27/11/2012,354189,1603.2,NET,Facultatieve Technologies Ltd
REDACTED,REDACTED,REDACTED,REDACTED,REDACTED,REDACTED,REDACTED,16/11/2012,353539,5797,REDACTED,REDACTED
Gloucester City Council,23UE,Business Transformation & Tech,RT700,Basic Pay - Temporary Staff,2751,OCT 2012,16/11/2012,353196,4788,NET,Vector Resourcing Ltd
Gloucester City Council,23UE,Tic Coach Tickets,LT105,Sale Of Goods And Services,9230,SIVIER 14/11/12,06/11/2012,352776,-8.75,NET,Superbreak Mini Holidays
REDACTED,REDACTED,REDACTED,REDACTED,REDACTED,REDACTED,REDACTED,20/11/2012,353663,1234.5,REDACTED,REDACTED
Gloucester City Council,23UE,Investment Property,RB500,General Repair/Maint Buildings,3000,CITY MUSEUM LIFT WORKS,30/11/2012,354339,555.7,NET,Pickerings Europe Ltd*
REDACTED,REDACTED,REDACTED,REDACTED,REDACTED,REDACTED,REDACTED,23/11/2012,353980,869,REDACTED,REDACTED
Gloucester City Council,23UE,Nms Contract,HI102,Contracted Services,6970,monthly management fee,21/11/2012,353804,524603.59,NET,Enterprise (Aol) Ltd
Gloucester City Council,23UE,Council Streetcare Team,HI101,Maint Of Grounds - General,3030,ENTERPRISE AOL LTD,07/11/2012,350944,1660.74,NET,Enterprise (Aol) Ltd
REDACTED,REDACTED,REDACTED,REDACTED,REDACTED,REDACTED,REDACTED,07/11/2012,352857,2175,REDACTED,REDACTED
Gloucester City Council,23UE,Homelessness Prevention,CH122,Fees For Services Received,5350,,31/12/2012,356072,500,NET,Countrywide Property Management
REDACTED,REDACTED,REDACTED,REDACTED,REDACTED,REDACTED,REDACTED,REDACTED,REDACTED,675.88,REDACTED,REDACTED
Gloucester City Council,23UE,Utilities,PT502,Electricity Supply,3110,DEPOT,19/12/2012,355691,3833.74,NET,West Mercia Energy
REDACTED,REDACTED,REDACTED,REDACTED,REDACTED,REDACTED,REDACTED,04/12/2012,13320,843.96,REDACTED,REDACTED
Gloucester City Council,23UE,Guildhall Works,RY155,Contract Payments,0020,Guildhall WC refurbishment,20/12/2012,355857,1585,CAP,Engineering Services Consultancy Ltd
REDACTED,REDACTED,REDACTED,REDACTED,REDACTED,REDACTED,REDACTED,14/12/2012,355444,750.5,REDACTED,REDACTED
REDACTED,REDACTED,REDACTED,REDACTED,REDACTED,REDACTED,REDACTED,17/12/2012,355604,500,REDACTED,REDACTED
Gloucester City Council,23UE,Oxstalls Tc Court Refrubishmen,LY132,Contract Payments,0020,OTC,19/12/2012,354439,16164,CAP,Seddon Property Services Ltd
REDACTED,REDACTED,REDACTED,REDACTED,REDACTED,REDACTED,REDACTED,11/12/2012,355070,550,REDACTED,REDACTED
Gloucester City Council,23UE,Ranger Centre/Netheridge Wks,RY167,Contract Payments,0020,RANGER CENTRE,12/12/2012,355098,1000,CAP,National Design Consultancy
Gloucester City Council,23UE,Gloucester Guildhall,LA100,Cleaning Materials,3600,GUILDHALL GOODS,02/01/2013,355987,529.3,NET,Gpp Hygiene
Gloucester City Council,23UE,Repairs - Eastgate Roof Car Pk,PY119,Contract Payments,0020,CAR PARK BARRIERS,04/12/2012,354445,2477.5,CAP,Mpl Wrought Iron Llp
Gloucester City Council,23UE,Director Regeneration,ME105,Basic Pay - Temporary Staff,2751,SOLACE ENTERPRISES,20/12/2012,355777,11625,NET,Solace Enterprises
Gloucester City Council,23UE,Hkp Accomodation Review,RY163,Contract Payments,0020,cooker hood installation,02/01/2013,355996,700,CAP,Ideal Catering Solutions
Gloucester City Council,23UE,Neighbourhood Partnerships,FP104,Fees For Services Received,5350,ADMIN GRANT 2012-13,19/12/2012,355776,1000,NET,Longlevens Neighbourhood Partnership
Gloucester City Council,23UE,City Museum Catering,LM202,Catering Provisions -Food,5110,REF INV 9227091163,08/01/2013,355797,-9.22,NET,Woodward Foodservice
Gloucester City Council,23UE,Off Street Car Parks,PP110,Rents,3200,RENT JAN-MAR 2013,05/12/2012,354593,63528.19,NET,Workman Llp Rent Account
Gloucester City Council,23UE,Homelessness Prevention,CH122,Fees For Services Received,5350,,17/12/2012,355607,600,NET,Dean Housing
REDACTED,REDACTED,REDACTED,REDACTED,REDACTED,REDACTED,REDACTED,17/12/2012,355606,600,REDACTED,REDACTED
REDACTED,REDACTED,REDACTED,REDACTED,REDACTED,REDACTED,REDACTED,17/12/2012,355606,572.32,REDACTED,REDACTED
Gloucester City Council,23UE,Corporate Policy/ Performance,RC500,Consultants Fees,5349,CIVICA/FOD CONTRACT,02/01/2013,356028,24777.3,NET,Wragge & Co Llp
Gloucester City Council,23UE,Business Planning & Performanc,RL500,Fees For Services Received,5350,LORNA ROBINSON QCF MGMT LEVEL 5,17/12/2012,355204,750,NET,Gloucestershire County Council
REDACTED,REDACTED,REDACTED,REDACTED,REDACTED,REDACTED,REDACTED,05/12/2012,354399,1234.5,REDACTED,REDACTED
Gloucester City Council,23UE,Tic Theatre Ticket Sales,LT107,Materials For Sale,5080,TICKET SALES,21/12/2012,355938,1172.5,NET,Mediaeval Baebes Ltd
REDACTED,REDACTED,REDACTED,REDACTED,REDACTED,REDACTED,REDACTED,11/12/2012,354765,825,REDACTED,REDACTED
Gloucester City Council,23UE,Tic Rovercard Sales,LT101,Sale Of Goods And Services,9230,PERIOD 7 SALES,12/12/2012,355089,-794.78,NET,Stagecoach Services Ltd*
Gloucester City Council,23UE,Financial Services,RT200,Basic Pay - Temporary Staff,2751,finance team support to 19/12/12,21/12/2012,355865,2503.1,NET,Cpfa Consultancy Ltd
Gloucester City Council,23UE,Utilities,PT502,Gas Supply,3100,GL1 GAS DEC 2012,22/01/2013,357068,20796.21,NET,West Mercia Energy
Gloucester City Council,23UE,Utilities,PT502,Electricity Supply,3110,CREM,22/01/2013,357091,1470.88,NET,West Mercia Energy
Gloucester City Council,23UE,Utilities,PT502,Gas Supply,3100,NORTH WAREHOUSE,22/01/2013,357064,1065.42,NET,West Mercia Energy
Gloucester City Council,23UE,Flooding And Drainage,HE306,Maint Of Grounds - General,3030,RIVER TWYVER,22/01/2013,357103,1675,NET,Rj Contracting
REDACTED,REDACTED,REDACTED,REDACTED,REDACTED,REDACTED,REDACTED,10/01/2013,13405,-4.21,REDACTED,REDACTED
REDACTED,REDACTED,REDACTED,REDACTED,REDACTED,REDACTED,REDACTED,17/01/2013,357003,1141,REDACTED,REDACTED
REDACTED,REDACTED,REDACTED,REDACTED,REDACTED,REDACTED,REDACTED,08/01/2013,356410,500,REDACTED,REDACTED
REDACTED,REDACTED,REDACTED,REDACTED,REDACTED,REDACTED,REDACTED,22/01/2013,357402,-456.92,REDACTED,REDACTED
Gloucester City Council,23UE,Hillfield Gardens Sensory Gard,LY146,Contract Payments,0020,,09/01/2013,356540,7010.52,CAP,D R Howse Services
Gloucester City Council,23UE,Improvement Grants,CY013,Disabled Facility Grants,0074,GRANT REF MDF4962,28/01/2013,357598,1474,CAP,Stroud Stairlifts
Gloucester City Council,23UE,Council Streetcare Team,HI101,Advertising And Publicity,5702,ADVERTS DEC 2012,17/01/2013,356127,900.02,NET,Local World Ltd
Gloucester City Council,23UE,Tic Theatre Ticket Sales,LT107,Sale Of Goods And Services,9230,XMAS CRACKER,11/01/2013,356627,-22,NET,Kings Theatre
REDACTED,REDACTED,REDACTED,REDACTED,REDACTED,REDACTED,REDACTED,01/02/2013,13452,-2.08,REDACTED,REDACTED
Gloucester City Council,23UE,Hkp Accomodation Review,RY163,Contract Payments,0020,KIMBERLEY WAREHOUSE,15/01/2013,355673,21518.83,CAP,Rf Gardiner Limited
Gloucester City Council,23UE,City Museum Catering,LM202,Catering Provisions -Food,5110,REF INV 9227130592,16/01/2013,356828,-15.68,NET,Woodward Foodservice
Gloucester City Council,23UE,City Centre Manager,PT310,Events,5952,LIGHTING,04/01/2013,356116,532,NET,Ru Electrical Services
Gloucester City Council,23UE,City Museum And Art Gallery,LM200,Advertising And Publicity,5702,ADVERTISING,30/01/2013,357679,535.5,NET,Soglos
Gloucester City Council,23UE,General Repair Fund,RY203,Contract Payments,0020,HAMPDEN WAY CAR PARK,30/01/2013,357677,500,CAP,Alder King*
Gloucester City Council,23UE,Guildhall Bar And Café,LA210,Catering Provisions -Liquor,5111,DRINK,01/02/2013,357840,2071.47,NET,Cellar Supplies Cheltenham Ltd
Gloucester City Council,23UE,Business Transformation & Tech,RT700,Computer Hardware <£5000,5420,CREDITED ON C039485,28/01/2013,357549,1980,NET,Qual Technology
Gloucester City Council,23UE,Ghurc Contribution,PT210,Fees For Services Received,5350,GRANT CLAIM Q4 FY13,04/02/2013,357702,25000,NET,Gloucester Heritage Urc
Gloucester City Council,23UE,Tic Coach Tickets,LT105,Sale Of Goods And Services,9230,POCKETT 18/03/13,16/01/2013,356930,-35.71,NET,Superbreak Mini Holidays
Gloucester City Council,23UE,Tic Coach Tickets,LT105,Sale Of Goods And Services,9230,COTTON 10/02/13,18/01/2013,357076,-2.08,NET,Superbreak Mini Holidays
Gloucester City Council,23UE,Legal Services,RS200,Charges For Services,9300,Land charges Q1 2012/13,31/01/2013,357769,940,NET,Gloucestershire County Council
REDACTED,REDACTED,REDACTED,REDACTED,REDACTED,REDACTED,REDACTED,03/01/2013,355940,1234.5,REDACTED,REDACTED
Gloucester City Council,23UE,Website Rebuild,RY573,Consultants Fees,0030,WORK,11/10/2012,351279,2475,CAP,Patzone It Solutions Ltd
REDACTED,REDACTED,REDACTED,REDACTED,REDACTED,REDACTED,REDACTED,03/10/2012,350881,540,REDACTED,REDACTED
Gloucester City Council,23UE,Homelessness Prevention,CH122,Fees For Services Received,5350,,24/10/2012,352158,600,NET,Surelet
Gloucester City Council,23UE,Tic Coach Tickets,LT105,Sale Of Goods And Services,9230,SEPT 2012 TKT SALES,09/10/2012,351062,-4.75,NET,Wetm Ltd
Gloucester City Council,23UE,Guildhall Bar And Café,LA210,Catering Provisions -Liquor,5111,Guildhall goods 26/9/12,17/10/2012,351515,1603.42,NET,Cellar Supplies Cheltenham Ltd
Gloucester City Council,23UE,Blackbridge Athletics Track,LY134,Contract Payments,0020,Blackbridge athletice track works,23/10/2012,351010,144580.33,CAP,Charles Lawrence Sports Surfaces Ltd
REDACTED,REDACTED,REDACTED,REDACTED,REDACTED,REDACTED,REDACTED,17/10/2012,351731,500,REDACTED,REDACTED
REDACTED,REDACTED,REDACTED,REDACTED,REDACTED,REDACTED,REDACTED,03/10/2012,350834,5624,REDACTED,REDACTED
REDACTED,REDACTED,REDACTED,REDACTED,REDACTED,REDACTED,REDACTED,15/10/2012,351481,5032,REDACTED,REDACTED
Gloucester City Council,23UE,Folk Museum Works,RY164,Contract Payments,0020,REF INV 90435008,12/02/2013,352091,-23.33,CAP,Mitie Pest Control Limited
Gloucester City Council,23UE,Folk Museum Works,RY164,Contract Payments,0020,REF INV 90455406,12/02/2013,352090,-23.33,CAP,Mitie Pest Control Limited
Gloucester City Council,23UE,Director Resources,MR102,Fees For Services Received,5350,EMPLOYMENT ADVICE,15/10/2012,351526,8141,NET,Wragge & Co Llp
Gloucester City Council,23UE,Off Street Car Parks,PP110,Water Supply,3400,ACCT 1240100171,09/10/2012,351079,1791.97,NET,Severn Trent Water
REDACTED,REDACTED,REDACTED,REDACTED,REDACTED,REDACTED,REDACTED,05/10/2012,350748,2175,REDACTED,REDACTED
Gloucester City Council,23UE,Utilities,PT502,Gas Supply,3100,OTC GAS SEPT 2012,13/11/2012,353058,660.95,NET,West Mercia Energy
Gloucester City Council,23UE,Utilities,PT502,Gas Supply,3100,REF INV 1024978 GUILDHALL,13/11/2012,353050,-375.35,NET,West Mercia Energy
Gloucester City Council,23UE,Utilities,PT502,Gas Supply,3100,REF INV 1026103 CITY MUSEUM,13/11/2012,353047,-1052.32,NET,West Mercia Energy
Gloucester City Council,23UE,Utilities,PT502,Electricity Supply,3110,HKP WAREHOUSE,22/11/2012,353952,8178.87,NET,West Mercia Energy
Gloucester City Council,23UE,Utilities,PT502,Electricity Supply,3110,WINDFALL WAY C/ROOMS,22/11/2012,353936,1468.02,NET,West Mercia Energy
Gloucester City Council,23UE,Utilities,PT502,Electricity Supply,3110,REF INV 9003591 FRIENDS MEETING HOUSE,22/11/2012,353919,-185.31,NET,West Mercia Energy
Gloucester City Council,23UE,Utilities,PT502,Electricity Supply,3110,REF INV 2360340 FRIENDS MEETING HOUSE,22/11/2012,353912,-186.56,NET,West Mercia Energy
REDACTED,REDACTED,REDACTED,REDACTED,REDACTED,REDACTED,REDACTED,13/11/2012,353381,500,REDACTED,REDACTED
REDACTED,REDACTED,REDACTED,REDACTED,REDACTED,REDACTED,REDACTED,07/11/2012,352016,1064,REDACTED,REDACTED
Gloucester City Council,23UE,Asbru - Other Funders,FP846,Other Minor Supplies Services,5590,SARAH DABBS W/E 9/11/12,21/11/2012,353789,534.65,NET,Travail Employment Ltd
REDACTED,REDACTED,REDACTED,REDACTED,REDACTED,REDACTED,REDACTED,REDACTED,REDACTED,1180.8,REDACTED,REDACTED
Gloucester City Council,23UE,External Communications,RC431,Publications,5060,CITY LIFE AUTUMN 12,28/11/2012,353989,9360,NET,Severnprint Ltd
Gloucester City Council,23UE,Cemeteries,HC300,Routine R And M - Vehicles,4011,Crem workshop sales,21/11/2012,353736,779.98,NET,Frank Sutton Ltd - Agric'L Engineer
REDACTED,REDACTED,REDACTED,REDACTED,REDACTED,REDACTED,REDACTED,07/11/2012,352860,550,REDACTED,REDACTED
REDACTED,REDACTED,REDACTED,REDACTED,REDACTED,REDACTED,REDACTED,12/11/2012,353187,667.8,REDACTED,REDACTED
REDACTED,REDACTED,REDACTED,REDACTED,REDACTED,REDACTED,REDACTED,27/11/2012,354208,664.38,REDACTED,REDACTED
REDACTED,REDACTED,REDACTED,REDACTED,REDACTED,REDACTED,REDACTED,03/12/2012,354459,1152.75,REDACTED,REDACTED
Gloucester City Council,23UE,Hkp Accomodation Review,RY163,Contract Payments,0020,fit new water heater in Kimberley w/h,08/11/2012,352538,3421.11,CAP,Rf Gardiner Limited
Gloucester City Council,23UE,Green Garden Waste,HI105,Fees For Services Received,5350,Garden Waste mailing 2012,06/11/2012,352576,7085.74,NET,Civica Uk Ltd
Gloucester City Council,23UE,Hempsted Market/Car Boot,HM234,Sewerage And Environ Charges,3402,Markets toilets Oct 12,16/11/2012,353693,540.2,NET,Abbey Loos Limited
Gloucester City Council,23UE,Homelessness,CH120,Board And Lodging,5515,,16/11/2012,353674,827.97,NET,Kalmwood Ltd (Mandy & Karen Woodhouse)
Gloucester City Council,23UE,Guildhall Bar And Café,LA210,Catering Provisions -Liquor,5111,Guildhall goods 24/10/12,08/11/2012,353002,1068.64,NET,Cellar Supplies Cheltenham Ltd
Gloucester City Council,23UE,Homelessness Prevention,CH122,Fees For Services Received,5350,,22/11/2012,354072,600,NET,Martin & Co
Gloucester City Council,23UE,Utilities,PT502,Electricity Supply,3110,CREM,19/12/2012,355550,1463.89,NET,West Mercia Energy
Gloucester City Council,23UE,Utilities,PT502,Electricity Supply,3110,FRIENDS MEETING HSE FLOODLIGHTS,11/12/2012,353962,-44.99,NET,West Mercia Energy
Gloucester City Council,23UE,Utilities,PT502,Electricity Supply,3110,EASTGATE MARKET,19/12/2012,355689,3240.44,NET,West Mercia Energy
Gloucester City Council,23UE,Utilities,PT502,Electricity Supply,3110,REF INV 1029924 ST MARYS STREET,19/12/2012,355539,-35.9,NET,West Mercia Energy
Gloucester City Council,23UE,Utilities,PT502,Gas Supply,3100,REF INV 1017432 TIC,11/12/2012,354843,-40.93,NET,West Mercia Energy
Gloucester City Council,23UE,Utilities,PT502,Gas Supply,3100,GL1 GAS OCT 2012,11/12/2012,354845,16423.92,NET,West Mercia Energy
Gloucester City Council,23UE,Utilities,PT502,Gas Supply,3100,CITY MUSEUM,13/12/2012,355081,2103.38,NET,West Mercia Energy
Gloucester City Council,23UE,Utilities,PT502,Gas Supply,3100,75-81 EASTGATE ST,13/12/2012,355091,899.72,NET,West Mercia Energy
Gloucester City Council,23UE,Pest Control,HD400,Fees For Services Received,5350,Nov12 pest control visits,13/12/2012,355323,1344.92,NET,Falconry Services Bird & Pest Control
Gloucester City Council,23UE,Corporate Reporting /Financing,RC504,Audit Fees,5383,GRANT CERTIFICATION WORK 2012/13 Q1&2,17/12/2012,355519,6720,NET,Kpmg
Gloucester City Council,23UE,Improvement Grants,CY013,Disabled Facility Grants,0074,12 COTTON CLOSE,14/12/2012,354761,3909,CAP,Pinetree (Gloucester) Ltd
Gloucester City Council,23UE,Business Transformation & Tech,RT700,Computer Hardware Maintenance,5426,MAINT 02/13-01/14,21/12/2012,354754,4891.5,NET,Psu Technology Group Limited
Gloucester City Council,23UE,Off Street Car Parks,PP110,General Repair/Maint Buildings,3000,LONGSMITH ST CAR PARK WORKS,12/12/2012,354380,1793,NET,Beard & Tandy
Gloucester City Council,23UE,Repairs - Eastgate Roof Car Pk,PY119,Contract Payments,0020,PAY & DISPLAY MACHINES,04/12/2012,352781,15413,CAP,Parkeon Ltd
Gloucester City Council,23UE,General Drainage Works,PY241,Contract Payments,0020,47 Randwick Road land drains,20/12/2012,355856,1965,CAP,Js Builders & Landscaping Services
REDACTED,REDACTED,REDACTED,REDACTED,REDACTED,REDACTED,REDACTED,05/12/2012,13346,1413.17,REDACTED,Mrs Esther Bettis
Gloucester City Council,23UE,Human Resources,EH100,Fees For Services Received,5350,Created by invoice listener,04/12/2012,354536,957.08,NET,Industrial Medical & Safety Services Ltd
REDACTED,REDACTED,REDACTED,REDACTED,REDACTED,REDACTED,REDACTED,13/12/2012,355326,521,REDACTED,REDACTED
Gloucester City Council,23UE,Oxstalls Tc Court Refrubishmen,LY132,Contract Payments,0020,OITC CDM coordination,06/12/2012,354746,500,CAP,Julian Stokes Management Ltd
Gloucester City Council,23UE,Aspire Admin Charges,LC105,Fees For Services Received,5350,OCTOBER 12 PAYROLL DEDUCTION,13/12/2012,355335,840,NET,Aspire Sports & Cultural Trust
Gloucester City Council,23UE,Mortgage Rescue,CH128,Fees For Services Received,5350,STAFF W/E 16/12/12,02/01/2013,355928,855.36,NET,One To One Recruitment
Gloucester City Council,23UE,Civica Admin Charges,RT105,Postages,5400,ACCT 0870585007 REVENUES,17/12/2012,355472,1741.24,NET,Royal Mail S.Wales & South West
Gloucester City Council,23UE,Network Upgrades,RY557,Contract Payments,0020,install 60 x data outlets & data cabinet,06/12/2012,354699,7940.25,CAP,Cablecom Networking Ltd
Gloucester City Council,23UE,Green Transport Policy,PJ130,Management Fees,6001,NOV12 DRIVING CHARGES,13/12/2012,355206,680.86,NET,Commonwheels Cic
Gloucester City Council,23UE,City Museum Catering,LM202,Catering Provisions -Food,5110,REF INV 9227058224,08/01/2013,355800,-13.99,NET,Woodward Foodservice
Gloucester City Council,23UE,Corporate Reporting /Financing,RC504,Fees For Services Received,5350,PENSION SCHEME ACTUARIAL FUNDING UPDATE,12/12/2012,354521,742.5,NET,Gloucestershire County Council
Gloucester City Council,23UE,3rd Floor North Warehouse,RY210,Contract Payments,0020,NORTH WAREHOUSE,02/01/2013,355344,1115.35,CAP,Scs Installations Ltd
Gloucester City Council,23UE,Forest Of Dean Cpe,PT744,Contracted Services,6970,Nov12 variable services,11/12/2012,355029,2926.56,NET,Apcoa Parking (Uk) Ltd
Gloucester City Council,23UE,Nms Contract,HI102,General Repair/Maint Buildings,3000,sports bookings with attendants,14/12/2012,350946,8834,NET,Enterprise (Aol) Ltd
Gloucester City Council,23UE,Council Streetcare Team,HI101,Fees For Services Received,5350,ENTERPRISE AOL LTD,11/12/2012,354545,-2046.12,NET,Enterprise (Aol) Ltd
Gloucester City Council,23UE,Parking Cctv,PT745,Contracted Services,6970,Oct12 notice processing services,11/12/2012,354692,2117.5,NET,Chipside Ltd
REDACTED,REDACTED,REDACTED,REDACTED,REDACTED,REDACTED,REDACTED,04/12/2012,354308,541.62,NET,REDACTED
REDACTED,REDACTED,REDACTED,REDACTED,REDACTED,REDACTED,REDACTED,11/12/2012,354305,3975,NET,REDACTED
REDACTED,REDACTED,REDACTED,REDACTED,REDACTED,REDACTED,REDACTED,19/12/2012,355770,688.5,NET,REDACTED
REDACTED,REDACTED,REDACTED,REDACTED,REDACTED,REDACTED,REDACTED,23/01/2013,357388,1125,NET,REDACTED
REDACTED,REDACTED,REDACTED,REDACTED,REDACTED,REDACTED,REDACTED,11/01/2013,356475,735,NET,REDACTED
Gloucester City Council,23UE,Utilities,PT502,Electricity Supply,3110,CITY MUSEUM,22/01/2013,357115,990.08,NET,West Mercia Energy
Gloucester City Council,23UE,Contact Centre,RB300,Subscriptions,5600,ICS servicemark assessment Nov/Dec12,18/01/2013,357000,1649.4,NET,Exemplas Ltd
Gloucester City Council,23UE,Blackfriars,LA609,Advertising And Publicity,5702,ADVERT,28/01/2013,356632,500,NET,Marketing Gloucester Ltd
Gloucester City Council,23UE,The Weighbridge,RB548,General Repair/Maint Buildings,3000,THE WEIGHBRIDGE,10/01/2013,356054,8437.07,NET,Snape Construction Ltd
Gloucester City Council,23UE,Off Street Car Parks,PP110,Fees For Services Received,5350,AIRTIME FEB 13,28/01/2013,357311,557.04,NET,Parkeon Ltd
REDACTED,REDACTED,REDACTED,REDACTED,REDACTED,REDACTED,REDACTED,REDACTED,REDACTED,506.05,REDACTED,REDACTED
Gloucester City Council,23UE,Utilities,PT502,Electricity Supply,3110,NETHERIDGE FARM,08/02/2013,356792,-1152.28,NET,Npower
Gloucester City Council,23UE,Business Transformation & Tech,RT700,Computer Software Maintenance,5427,AXXIA 2013,14/01/2013,356762,3522.08,NET,Lexis Nexis Ltd
Gloucester City Council,23UE,Business Support,PT250,Basic Pay - Temporary Staff,2751,STAFF W/E 18/01/13,28/01/2013,357539,829.4,NET,One To One Recruitment
Gloucester City Council,23UE,Mortgage Rescue,CH128,Fees For Services Received,5350,STAFF W/E 26/01/13,01/02/2013,357720,732.96,NET,One To One Recruitment
Gloucester City Council,23UE,Mortgage Rescue,CH128,Fees For Services Received,5350,STAFF W/E 23/12/12,07/01/2013,356093,753.36,NET,One To One Recruitment
Gloucester City Council,23UE,Civica Admin Charges,RT105,Postages,5400,ACCT 0870585007 REVENUES,18/01/2013,356245,1759.71,NET,Royal Mail S.Wales & South West
REDACTED,REDACTED,REDACTED,REDACTED,REDACTED,REDACTED,REDACTED,REDACTED,REDACTED,500,REDACTED,REDACTED
REDACTED,REDACTED,REDACTED,REDACTED,REDACTED,REDACTED,REDACTED,28/01/2013,357592,551,REDACTED,REDACTED
Gloucester City Council,23UE,Tic Rovercard Sales,LT101,Sale Of Goods And Services,9230,SALES PERIOD 8,16/01/2013,356931,-561.94,NET,Stagecoach Services Ltd*
Gloucester City Council,23UE,Docks Complex - Castlemeads Cp,RB210,Contracted Services,6970,DEC 2012,08/01/2013,356352,3588.15,NET,Apcoa Parking (Uk) Ltd
Gloucester City Council,23UE,Civil Parking Enforcement,PT741,Contracted Services,6970,DEC 2012,08/01/2013,356352,25297.7,NET,Apcoa Parking (Uk) Ltd
REDACTED,REDACTED,REDACTED,REDACTED,REDACTED,REDACTED,REDACTED,24/01/2013,357479,550,REDACTED,REDACTED
REDACTED,REDACTED,REDACTED,REDACTED,REDACTED,REDACTED,REDACTED,28/01/2013,357476,721.44,REDACTED,REDACTED
Gloucester City Council,23UE,Cemeteries,HC300,Trade Refuse Tipping Fees,6297,Green Waste skip exchange,07/01/2013,356255,540,NET,Allstone Sand & Gravel Aggregates Ltd
Gloucester City Council,23UE,Parking Cctv,PT745,Fees For Services Received,5350,BUS LANE PENALTIES,27/02/2013,359188,1077,NET,Patrol (Mcc-Patrol Bus)
Gloucester City Council,23UE,Gloucester Guildhall,LA100,General Repair/Maint Buildings,3000,Guildhall credit - various goods,25/02/2013,358941,-35.24,NET,B&Q Trade Account
Gloucester City Council,23UE,Council Streetcare Team,HI101,Advertising And Publicity,5702,LEAFLET DISTRIBUTION,04/02/2013,356788,689.21,NET,Smart Distribution Solutions Ltd
Gloucester City Council,23UE,Utilities,PT502,Gas Supply,3100,Depot gas Jan-Feb13,13/03/2013,358829,1609.92,NET,Corona Energy
Gloucester City Council,23UE,Stationery Services,RS150,Stationery,5302,PAPER,12/02/2013,358549,536.25,NET,Premier Paper Group Ltd
Gloucester City Council,23UE,Civica Admin Charges,RT105,Photocopying,5320,L9074200048,15/02/2013,356673,739.75,NET,Ricoh Uk Ltd
REDACTED,REDACTED,REDACTED,REDACTED,REDACTED,REDACTED,REDACTED,22/02/2013,359143,600,REDACTED,REDACTED
Gloucester City Council,23UE,Council Streetcare Team,HI101,General Repair/Maint Buildings,3000,credit for invoice GLO/359937,21/03/2013,358819,-67.63,NET,Buildbase Ltd*
Gloucester City Council,23UE,Folk Museum,LM210,Sale Of Goods And Services,9230,exhibition sales,07/02/2013,358214,-45,NET,Gloucestershire Lettering Arts
Gloucester City Council,23UE,Investment Property,RB500,Electricity Supply,3110,NETHERIDGE FARM,08/02/2013,358345,624.82,NET,Npower
Gloucester City Council,23UE,Investment Property,RB500,Electricity Supply,3110,NETHERIDGE FARM,08/02/2013,356784,1842.81,NET,Npower
Gloucester City Council,23UE,Aspire Admin Charges,LC105,Fees For Services Received,5350,November 12 payroll deduction,18/02/2013,358785,831,NET,Aspire Sports & Cultural Trust
Gloucester City Council,23UE,Business Transformation & Tech,RT700,Computer Software Maintenance,5427,E-Go recovery maintenance feb2013-14,20/02/2013,356835,1694,NET,Ash Information Systems Ltd
Gloucester City Council,23UE,Postal Services,RS120,Postages,5400,ACCT 0252446000 W/E 14/02/13,26/02/2013,359056,1391.03,NET,Royal Mail S.Wales & South West
Gloucester City Council,23UE,Civica Admin Charges,RT105,Postages,5400,ACCT 0870585007 REVENUES,08/02/2013,357230,1847.88,NET,Royal Mail S.Wales & South West
Gloucester City Council,23UE,Website Rebuild,RY573,Contract Payments,0020,project deposit,11/02/2013,358441,3168.75,CAP,Bright Starr Uk
REDACTED,REDACTED,REDACTED,REDACTED,REDACTED,REDACTED,REDACTED,22/02/2013,359131,829.91,REDACTED,REDACTED
REDACTED,REDACTED,REDACTED,REDACTED,REDACTED,REDACTED,REDACTED,06/02/2013,358079,1152.75,REDACTED,REDACTED
REDACTED,REDACTED,REDACTED,REDACTED,REDACTED,REDACTED,REDACTED,12/02/2013,358125,709.13,REDACTED,REDACTED
Gloucester City Council,23UE,Cctv Revenue Budget,FP501,Security Equipment Serv/Repair,3038,CCTV 859062742 Sep12-Sep13,13/02/2013,358534,3198,NET,Bt Redcare
REDACTED,REDACTED,REDACTED,REDACTED,REDACTED,REDACTED,REDACTED,12/02/2013,358554,3975,REDACTED,REDACTED
REDACTED,REDACTED,REDACTED,REDACTED,REDACTED,REDACTED,REDACTED,11/02/2013,356873,1305,REDACTED,REDACTED
Gloucester City Council,23UE,Financial Services,RT200,Basic Pay - Temporary Staff,2751,N BYRNE W/E 08/02/13,25/02/2013,358966,684,REDACTED,REDACTED
REDACTED,REDACTED,REDACTED,REDACTED,REDACTED,REDACTED,REDACTED,21/03/2013,21063,500,REDACTED,REDACTED
Gloucester City Council,23UE,Door Entry System,RY572,Contract Payments,0020,invoiced in error,21/03/2013,360443,2410.21,CAP,G4s Technology Ltd
REDACTED,REDACTED,REDACTED,REDACTED,REDACTED,REDACTED,REDACTED,25/03/2013,360829,500,REDACTED,REDACTED
Gloucester City Council,23UE,Human Resources,EH100,Employee Related Advertising,2920,annual subscription 2013/14,19/03/2013,360517,5000,NET,Jgp Resourcing Ltd (Jobs Go Public)
Gloucester City Council,23UE,Utilities,PT502,Gas Supply,3100,GAS MARCH 2013,20/03/2013,360506,28714.81,NET,West Mercia Energy
Gloucester City Council,23UE,Docks Complex - Telephones,RB120,Telephones And Fax,5410,credit re GA0967122,22/03/2013,360761,-6.39,NET,Gamma Business Communications
Gloucester City Council,23UE,Docks Complex - Telephones,RB120,Telephones And Fax,5410,call charges to 31 Dec 12,22/03/2013,360764,2058.82,NET,Gamma Business Communications
Gloucester City Council,23UE,General Drainage Works,PY241,Contract Payments,0020,POPLAR CLOSE,27/03/2013,360941,725,CAP,Rj Contracting
REDACTED,REDACTED,REDACTED,REDACTED,REDACTED,REDACTED,REDACTED,22/03/2013,360812,-550,REDACTED,REDACTED
Gloucester City Council,23UE,Postal Services,RS120,Postages,5400,ACCT 0252446000 W/E 07/03/13,20/03/2013,360273,1240.45,NET,Royal Mail S.Wales & South West
Gloucester City Council,23UE,Postal Services,RS120,Postages,5400,ACCT 0074842000 W/E 16/02/13,08/03/2013,359733,901.02,NET,Royal Mail S.Wales & South West
REDACTED,REDACTED,REDACTED,REDACTED,REDACTED,REDACTED,REDACTED,08/03/2013,359925,655,REDACTED,REDACTED
REDACTED,REDACTED,REDACTED,REDACTED,REDACTED,REDACTED,REDACTED,20/03/2013,360583,500,REDACTED,REDACTED
REDACTED,REDACTED,REDACTED,REDACTED,REDACTED,REDACTED,REDACTED,13/03/2013,359728,1162.75,REDACTED,REDACTED
REDACTED,REDACTED,REDACTED,REDACTED,REDACTED,REDACTED,REDACTED,26/03/2013,360710,547.2,REDACTED,REDACTED
REDACTED,REDACTED,REDACTED,REDACTED,REDACTED,REDACTED,REDACTED,26/03/2013,360698,1215.56,REDACTED,REDACTED
Gloucester City Council,23UE,Business Transformation & Tech,RT700,Computer Software Maintenance,5427,Chris21 maintenance 2013,04/03/2013,355871,13838.41,NET,Frontier Software Plc
Gloucester City Council,23UE,Client Revs & Bens Contract,RT240,Contracted Services,6970,PENSIONS JAN 2013,11/03/2013,357707,10933.1,NET,Civica Uk Ltd
Gloucester City Council,23UE,Business Transformation & Tech,RT700,Computer Software Maintenance,5427,LHA anniversary charges,27/03/2013,361021,12669.05,NET,Civica Uk Ltd
Gloucester City Council,23UE,Guildhall Bar And Café,LA210,Catering Provisions -Liquor,5111,Guildhall drinks,15/03/2013,360371,992.25,NET,Cellar Supplies Cheltenham Ltd
Gloucester City Council,23UE,Off Street Car Parks,PP110,General Repair/Maint Buildings,3000,Created by invoice listener,27/03/2013,361016,560,NET,Abcas (Uk) Ltd
Gloucester City Council,23UE,3rd Floor North Warehouse,RY210,Contract Payments,0020,NORTH WAREHOUSE,05/03/2013,359190,2238.5,CAP,Scs Installations Ltd
Gloucester City Council,23UE,Civil Parking Enforcement,PT741,Contracted Services,6970,Feb13 variable services,11/03/2013,359830,24635.02,NET,Apcoa Parking (Uk) Ltd
Gloucester City Council,23UE,Off Street Car Parks,PP110,Water Supply,3400,ACCT 7890105225,20/03/2013,358480,3038.88,NET,Severn Trent Water
Gloucester City Council,23UE,Council Streetcare Team,HI101,Water Supply,3400,ACCT 7890105225,20/03/2013,358480,981.81,NET,Severn Trent Water
Gloucester City Council,23UE,75/81 Eastgate Street,RB501,Water Supply,3400,ACCT 7890105225,20/03/2013,358480,989.47,NET,Severn Trent Water
Gloucester City Council,23UE,Docks Complex - Catering Servs,RB110,Catering Provisions -Food,5110,credit re inv 556737,27/03/2013,361069,-0.3,NET,J & M Provisions Ltd
REDACTED,REDACTED,REDACTED,REDACTED,REDACTED,REDACTED,REDACTED,15/03/2013,360198,4770,REDACTED,REDACTED
REDACTED,REDACTED,REDACTED,REDACTED,REDACTED,REDACTED,REDACTED,07/03/2013,359732,1430,REDACTED,REDACTED
REDACTED,REDACTED,REDACTED,REDACTED,REDACTED,REDACTED,REDACTED,19/03/2013,360500,1144,REDACTED,REDACTED
REDACTED,REDACTED,REDACTED,REDACTED,REDACTED,REDACTED,REDACTED,20/03/2013,13541,510,REDACTED,REDACTED
Gloucester City Council,23UE,Utilities,PT502,Gas Supply,3100,HKP MAR 2012,25/04/2012,341200,3244.67,NET,West Mercia Energy
Gloucester City Council,23UE,Utilities,PT502,Gas Supply,3100,HKP MARCH 2012,25/04/2012,341247,3244.67,NET,West Mercia Energy
Gloucester City Council,23UE,Utilities,PT502,Gas Supply,3100,OTC MAR 2012,25/04/2012,341245,1227.27,NET,West Mercia Energy
Gloucester City Council,23UE,Utilities,PT502,Gas Supply,3100,Depot Feb12-Mar12 revised,13/03/2013,339439,1445.82,NET,Corona Energy
Gloucester City Council,23UE,Utilities,PT502,Gas Supply,3100,credit for Jan-Feb 12,13/03/2013,341012,-1359.94,NET,Corona Energy
Gloucester City Council,23UE,Aspire Admin Charges,LC105,Contracted Services,6970,MANAGEMENT FEE APR 2012,18/04/2012,340794,90868.92,NET,Aspire Sports & Cultural Trust
Gloucester City Council,23UE,Building Control,PT400,Conference/Meeting Expenses,5510,LABC SERVICE FEE 12/13,17/04/2012,339642,1925.57,NET,District Surveyors Association Ltd T/A Labc
Gloucester City Council,23UE,Bus Station,RB400,Sewerage And Environ Charges,3402,ACCT 3850375949,20/04/2012,340626,886.07,NET,Severn Trent Water Ltd
Gloucester City Council,23UE,Civica Admin Charges,RT105,Postages,5400,ACCT 0870585007 REVENUES,25/04/2012,340082,1177.01,NET,Royal Mail S.Wales & South West
Gloucester City Council,23UE,Postal Services,RS120,Postages,5400,ACCT 0252446000 W/E 19/04/12,30/04/2012,341729,1310.99,NET,Royal Mail S.Wales & South West
REDACTED,REDACTED,REDACTED,REDACTED,REDACTED,REDACTED,REDACTED,27/04/2012,341378,1105.64,REDACTED,REDACTED
Gloucester City Council,23UE,Drivers Budget,RL501,Fees For Services Received,5350,staff event 2012,03/04/2012,338662,790,NET,Gloucester Cathedral
REDACTED,REDACTED,REDACTED,REDACTED,REDACTED,REDACTED,REDACTED,16/04/2012,340680,3477.5,REDACTED,REDACTED
Gloucester City Council,23UE,Director Resources,MR102,Fees For Services Received,5350,EMPLOYMENT ADVICE,16/04/2012,340887,6706.5,NET,Wragge & Co Llp
REDACTED,REDACTED,REDACTED,REDACTED,REDACTED,REDACTED,REDACTED,16/04/2012,340861,1250,REDACTED,REDACTED
REDACTED,REDACTED,REDACTED,REDACTED,REDACTED,REDACTED,REDACTED,02/05/2012,341935,500,REDACTED,REDACTED
Gloucester City Council,23UE,Homelessness,CH120,Board And Lodging,5515,VARIOUS TENANTS,04/05/2012,342075,1319.6,NET,Carbrey Housing Ltd
REDACTED,REDACTED,REDACTED,REDACTED,REDACTED,REDACTED,REDACTED,22/05/2012,342717,3851.06,REDACTED,REDACTED
Gloucester City Council,23UE,Waterwells Sports Ground Dev,LY090,Contract Payments,0020,WATERWELLS COSTS,01/07/2012,342157,40000,CAP,Tewkesbury Borough Council
Gloucester City Council,23UE,Refurb Of Crem Toilets,HY046,Contract Payments,0020,toilet cubicles,17/05/2012,342164,7205,CAP,Bristol Panel Formers Ltd
Gloucester City Council,23UE,Asset Management,RS300,Basic Pay -Admin /Prof Staff,2601,April 2012 consultancy services,11/05/2012,342438,4975,NET,Ardley Associates
REDACTED,REDACTED,REDACTED,REDACTED,REDACTED,REDACTED,REDACTED,31/05/2012,12893,890,REDACTED,REDACTED
REDACTED,REDACTED,REDACTED,REDACTED,REDACTED,REDACTED,REDACTED,30/05/2012,343507,1454.4,REDACTED,REDACTED
REDACTED,REDACTED,REDACTED,REDACTED,REDACTED,REDACTED,REDACTED,11/05/2012,342189,4672.5,REDACTED,REDACTED
Gloucester City Council,23UE,Registration Of Electors,RS400,Printing,5300,2012 postal vote packs,10/05/2012,342165,4018,NET,Alpha Response Print & Mail Ltd
Gloucester City Council,23UE,Crematorium,HC200,Licences,5703,Pollution Prevention & Control Permit,22/05/2012,343016,739,NET,Gloucester City Council
Gloucester City Council,23UE,Docks Complex - Catering Servs,RB110,Catering Provisions -Food,5110,DOCKS GOODS 29/5/12,31/05/2012,343468,688.4,NET,3663
Gloucester City Council,23UE,Wake Room,HC501,Catering Provisions -Food,5110,REF INV 26819743,10/05/2012,341719,-100.87,NET,3663
REDACTED,REDACTED,REDACTED,REDACTED,REDACTED,REDACTED,REDACTED,21/05/2012,342978,-500,REDACTED,REDACTED
Gloucester City Council,23UE,Anti Nesting Bird Net Ghall,RY202,Contract Payments,0020,BIRD CONTROL,10/05/2012,341878,4917.34,CAP,Rentokil Pest Control*
Gloucester City Council,23UE,Perennial Planting Enterprise,LY133,Contract Payments,0020,SEED MIXES,09/05/2012,341399,817.2,CAP,Maxwell Amenity Ltd
Gloucester City Council,23UE,Parking Cctv,PT745,Contracted Services,6970,april 2012 variable services,09/05/2012,342160,1029.7,NET,Apcoa Parking (Uk) Ltd
Gloucester City Council,23UE,Statutory Testing,RS310,Legionella,3018,ad hoc orders,11/05/2012,342335,618.37,NET,Enterprise (Aol) Ltd
Gloucester City Council,23UE,Gloucester Guildhall,LA100,Water Supply,3400,ACCT 8310161420 GU,03/05/2012,341723,579.58,NET,Severn Trent Water
Gloucester City Council,23UE,Off Street Car Parks,PP110,Water Supply,3400,ACCT 2800075788 KINGS SQ CAR PARK,02/05/2012,341720,1975.52,NET,Severn Trent Water
Gloucester City Council,23UE,75/81 Eastgate Street,RB501,Water Supply,3400,ACCT 1520340577 75-81 EASTGATE ST,23/05/2012,341751,762.25,NET,Severn Trent Water
Gloucester City Council,23UE,Building Control,PT400,Publications,5060,BSI SUBSCRIBING MEMBERSHIP 2012/13,02/05/2012,336857,684,NET,Bsi Business Information
Gloucester City Council,23UE,Hempsted Market/Car Boot,HM234,Fees For Services Received,5350,GOODS FOR EASTGATE MARKET WORKS,08/06/2012,343821,650,NET,Ermin Plant Hire & Services Ltd
Gloucester City Council,23UE,Utilities,PT502,Gas Supply,3100,Guildhall Gas April 12,18/06/2012,343619,1001.93,NET,West Mercia Energy
Gloucester City Council,23UE,Homelessness Prevention,CH122,Fees For Services Received,5350,A STAMPS,20/06/2012,344556,600,NET,Your Property People
REDACTED,REDACTED,REDACTED,REDACTED,REDACTED,REDACTED,REDACTED,REDACTED,REDACTED,1349,REDACTED,REDACTED
REDACTED,REDACTED,REDACTED,REDACTED,REDACTED,REDACTED,REDACTED,REDACTED,REDACTED,692.3,REDACTED,REDACTED
Gloucester City Council,23UE,Tic Theatre Ticket Sales,LT107,Sale Of Goods And Services,9230,SEE HOW THEY RUN SALES,21/06/2012,344368,-46.67,NET,Kings Theatre
Gloucester City Council,23UE,Docks Complex - Telephones,RB120,Mobile Phones,5409,ACCT 683678256,14/11/2012,344633,-175.57,NET,Vodafone Ltd
Gloucester City Council,23UE,Abbeydale Comnty Cntre Flood W,PY276,Contract Payments,0020,abbeydale Comm ctr flood prev work,19/06/2012,344123,643.67,CAP,Roger Dean Builders Ltd
Gloucester City Council,23UE,Photocopying,RS130,Hire Of Equipment,5020,J7040300429,28/06/2012,343998,619.79,NET,Ricoh Uk Ltd
REDACTED,REDACTED,REDACTED,REDACTED,REDACTED,REDACTED,REDACTED,22/06/2012,344422,4462.5,REDACTED,REDACTED
Gloucester City Council,23UE,Dwelling Improvements,BY008,Contract Payments,0020,2012/13 capital fees May 12,02/07/2012,344833,42812.33,CAP,Gloucester City Homes
REDACTED,REDACTED,REDACTED,REDACTED,REDACTED,REDACTED,REDACTED,25/06/2012,344768,810,REDACTED,REDACTED
Gloucester City Council,23UE,Business Transformation & Tech,RT700,Licences,5703,acrobat pro 10,25/06/2012,344852,893.4,NET,Civica Services Ltd
Gloucester City Council,23UE,Investment Property,RB500,General Repair/Maint Buildings,3000,repairs to AHU's & Weatherite Units,11/06/2012,343851,1787,NET,Eaton-Wiiliams Group Ltd
Gloucester City Council,23UE,Blackbridge Athletics Track,LY134,Contract Payments,0020,Created by invoice listener,14/06/2012,344191,500,CAP,Julian Stokes Management Ltd
Gloucester City Council,23UE,Green Transport Policy,PJ130,Management Fees,6001,Car Club leaflets,25/02/2013,359214,2641.17,NET,Commonwheels Cic
Gloucester City Council,23UE,3rd Floor North Warehouse,RY210,Contract Payments,0020,NORTH WAREHOUSE,01/03/2013,359325,5427.83,CAP,The Design Works Group Ltd
Gloucester City Council,23UE,3rd Floor North Warehouse,RY210,Contract Payments,0020,storage & delivery to N Warehouse,21/02/2013,359039,1283.4,CAP,Kjs National Movers
Gloucester City Council,23UE,Homelessness,CH120,Board And Lodging,5515,VARIOUS TENANTS,08/02/2013,358347,2079.24,NET,James Legge Property (Ltd)
REDACTED,REDACTED,REDACTED,REDACTED,REDACTED,REDACTED,REDACTED,20/02/2013,358957,534.26,REDACTED,REDACTED
Gloucester City Council,23UE,Tic Coach Tickets,LT105,Sale Of Goods And Services,9230,SIMMONS 08/04/13,06/02/2013,358067,-24.49,NET,Superbreak Mini Holidays
Gloucester City Council,23UE,Dwelling Acquisitions,BY006,Purchase Cost -Buildings,0010,,26/02/2013,359255,6000,CAP,Tayntons Llp Solicitors
Gloucester City Council,23UE,Off Street Car Parks,PP110,Electricity Supply,3110,credit re acct A3496789 Longsmith St,13/02/2013,358046,-769.19,NET,British Gas
Gloucester City Council,23UE,Homelessness Prevention,CH122,Fees For Services Received,5350,V OGBANUFE,05/02/2013,358141,500,NET,Michael Tuck Lettings
Gloucester City Council,23UE,Folk Museum,LM210,Water Supply,3400,ACCT 3850427956,15/02/2013,357320,676.26,NET,Severn Trent Water
Gloucester City Council,23UE,Cctv Revenue Budget,FP501,Security Equipment Serv/Repair,3038,credit re invoice 20017268,13/02/2013,358518,-10905.31,NET,Bt Redcare
Gloucester City Council,23UE,Cctv Revenue Budget,FP501,Security Equipment Serv/Repair,3038,credit re invoice 20017708,13/02/2013,358519,-445.61,NET,Bt Redcare
REDACTED,REDACTED,REDACTED,REDACTED,REDACTED,REDACTED,REDACTED,21/03/2013,360482,538.26,REDACTED,REDACTED
Gloucester City Council,23UE,Mortgage Rescue,CH128,Fees For Services Received,5350,104 WATERMINT DRIVE,27/03/2013,361154,-608.82,NET,Leeds Building Society
REDACTED,REDACTED,REDACTED,REDACTED,REDACTED,REDACTED,REDACTED,28/03/2013,361204,733.84,REDACTED,REDACTED
Gloucester City Council,23UE,Active Space At Abbeydale,LY149,Contract Payments,0020,litter bins,20/03/2013,360511,1005.95,CAP,Broxap Ltd
Gloucester City Council,23UE,Hillfield Gardens S106,LY112,Contract Payments,0020,litter bins,22/03/2013,360330,716.85,CAP,Broxap Ltd
Gloucester City Council,23UE,Training Schemes,ET100,Fees For Services Received,5350,APPRENTICESHIPS 2010/11,19/03/2013,360520,30680,NET,Skills Funding Agency
Gloucester City Council,23UE,Improvement Grants,CY013,Disabled Facility Grants,0074,,13/03/2013,360171,7079.19,CAP,Care & Repair
Gloucester City Council,23UE,Business Transformation & Tech,RT700,Computer Network Maintenance,5443,professional services,19/03/2013,358781,4252.5,NET,Computerworld
Gloucester City Council,23UE,Contact Centre,RB300,Printing,5300,1/4 page display advert,14/03/2013,358834,1253,NET,Bt Directories
Gloucester City Council,23UE,Door Entry System,RY572,Contract Payments,0020,Fire alarm works re door entry system,19/03/2013,360433,875,CAP,Adt Fire & Security Plc
Gloucester City Council,23UE,Matson & Robinswood Play S106,LY151,Contract Payments,0020,PLANNING FOR PLAY,22/03/2013,358011,3988,CAP,Play Gloucestershire
Gloucester City Council,23UE,Utilities,PT502,Electricity Supply,3110,33 LONDON ROAD,13/03/2013,359779,-1096.39,NET,Southern Electric
Gloucester City Council,23UE,Off Street Car Parks,PP110,General Repair/Maint Buildings,3000,Kings Walk additional works,26/03/2013,360934,577.04,NET,Eesi Group Services
Gloucester City Council,23UE,Homelessness,CH120,Board And Lodging,5515,VARIOUS TENANTS,08/03/2013,359801,3388.33,NET,James Legge Property (Ltd)
Gloucester City Council,23UE,Homelessness,CH120,Board And Lodging,5515,credit re invoice 1800263183,27/03/2013,360924,-103.8,NET,Gloucestershire County Council
REDACTED,REDACTED,REDACTED,REDACTED,REDACTED,REDACTED,REDACTED,12/03/2013,360006,1250,REDACTED,REDACTED
Gloucester City Council,23UE,Cemeteries,HC300,Oper. Leases -Vehs/M. Plant,4054,Vehicle & equipment rental 2013/14,12/03/2013,360002,12725.82,NET,Chrystal Consulting
Gloucester City Council,23UE,Hackney Carriages,HL100,Fees For Services Received,5350,feb13 CRB checks,12/03/2013,359773,587,NET,Disclosure And Barring Service
REDACTED,REDACTED,REDACTED,REDACTED,REDACTED,REDACTED,REDACTED,25/03/2013,13559,-198.64,REDACTED,REDACTED
Gloucester City Council,23UE,Tic Rovercard Sales,LT101,Sale Of Goods And Services,9230,PERIOD 10 SALES,13/03/2013,360193,-566.03,NET,Stagecoach Services Ltd*
Gloucester City Council,23UE,Tic Rovercard Sales,LT101,Sale Of Goods And Services,9230,SALES PERIOD 9,21/03/2013,360592,-716.92,NET,Stagecoach Services Ltd*
Gloucester City Council,23UE,Tic Rovercard Sales,LT101,Materials For Sale,5080,SALES PERIOD 9,21/03/2013,360592,8603,NET,Stagecoach Services Ltd*
REDACTED,REDACTED,REDACTED,REDACTED,REDACTED,REDACTED,REDACTED,14/03/2013,360274,500,REDACTED,REDACTED
Gloucester City Council,23UE,General Drainage Works,PY241,Contract Payments,0020,PORCHESTER RD,25/03/2013,360814,2394,CAP,Rab Consultants
Gloucester City Council,23UE,Blackfriars Inn,RY191,Contract Payments,0020,BLACKFRIARS INN WORKS,14/03/2013,360017,36639.6,CAP,King Builders (Gloucester) Ltd
Gloucester City Council,23UE,Utilities,PT502,Electricity Supply,3110,FOLK MUSEUM FEB/MAR 2012,25/04/2012,341131,1344.2,NET,West Mercia Energy
Gloucester City Council,23UE,Utilities,PT502,Gas Supply,3100,GL1 MARCH 2012,25/04/2012,341226,14042.73,NET,West Mercia Energy
Gloucester City Council,23UE,Utilities,PT502,Electricity Supply,3110,CATTLE MARKET TOILETS,01/05/2012,341675,660.16,NET,West Mercia Energy
Gloucester City Council,23UE,Utilities,PT502,Electricity Supply,3110,CATTLE MARKET TOILETS,01/05/2012,341674,658.81,NET,West Mercia Energy
Gloucester City Council,23UE,Utilities,PT502,Electricity Supply,3110,BUS STATION INV 2360336,01/05/2012,341668,-1520.36,NET,West Mercia Energy
Gloucester City Council,23UE,Utilities,PT502,Electricity Supply,3110,BUS STATION TOILETS,01/05/2012,341665,1943.12,NET,West Mercia Energy
REDACTED,REDACTED,REDACTED,REDACTED,REDACTED,REDACTED,REDACTED,16/04/2012,340876,2100,REDACTED,REDACTED
Gloucester City Council,23UE,Off Street Car Parks,PP110,General Repair/Maint Buildings,3000,Longsmith St car park lighting repairs,25/04/2012,341160,2110,NET,Beard & Tandy
REDACTED,REDACTED,REDACTED,REDACTED,REDACTED,REDACTED,REDACTED,12/04/2012,340611,520.2,REDACTED,REDACTED
Gloucester City Council,23UE,All Main Buildings Voltage Mas,RY180,Contract Payments,0020,voltage optimisation quotations,19/04/2012,341169,850,CAP,King Cathery Partnership Ltd
Gloucester City Council,23UE,Grants To Voluntary Sector,FG100,Funding Vol&Com Grps-Sla'S,7100B,COMMUNITY GRANT 2011-12,03/04/2012,334248,10000,NET,Third Sector Services
Gloucester City Council,23UE,Council Streetcare Team,HI101,General Repair/Maint Buildings,3000,replacement agripa panels for vehicles,12/04/2012,339861,2392.5,NET,Agripa Solutions Ltd
REDACTED,REDACTED,REDACTED,REDACTED,REDACTED,REDACTED,REDACTED,12/04/2012,340379,1250,REDACTED,REDACTED
REDACTED,REDACTED,REDACTED,REDACTED,REDACTED,REDACTED,REDACTED,16/04/2012,340474,688.5,REDACTED,REDACTED
Gloucester City Council,23UE,Off Street Car Parks,PP110,Electricity Supply,3110,Eastgate car park 2 - Mar-Apr12 electric,27/04/2012,341390,1136.93,NET,British Gas
Gloucester City Council,23UE,North Warehouse Works,RY154,Contract Payments,0020,HKP LIGHTING,23/04/2012,340705,2055.46,CAP,Scs Installations Ltd
Gloucester City Council,23UE,Civil Parking Enforcement,PT741,Contracted Services,6970,March 2012 services,10/04/2012,340462,26474.72,NET,Apcoa Parking (Uk) Ltd
Gloucester City Council,23UE,Council Streetcare Team,HI101,Contracted Services,6970,mecahnical sweeper,10/04/2012,337005,10837.1,NET,Enterprise (Aol) Ltd
Gloucester City Council,23UE,Tourism Marketing,LT100,Trade Refuse Sacks,5040,tic trade waste services,17/04/2012,340967,1848.8,NET,Enterprise (Aol) Ltd
Gloucester City Council,23UE,Off Street Car Parks,PP110,Fees For Services Received,5350,credit for invoice CS120610,10/04/2012,340383,-209.42,NET,Chipside Ltd
Gloucester City Council,23UE,Off Street Car Parks,PP110,Water Supply,3400,ACCT 8220041249,27/04/2012,340617,519.59,NET,Severn Trent Water
Gloucester City Council,23UE,Business Transformation & Tech,RT700,Basic Pay - Temporary Staff,2751,w/e 11/5/12 consultancy,17/05/2012,342706,1125,NET,Ffox Software Ltd
REDACTED,REDACTED,REDACTED,REDACTED,REDACTED,REDACTED,REDACTED,13/06/2012,343626,733.84,REDACTED,REDACTED
Gloucester City Council,23UE,Summer Festival,LT300,Operational Equipment <£5000,5012,radio hire,30/05/2012,343346,8713.6,NET,2cl Communications Ltd
Gloucester City Council,23UE,Civic Admin And Hospitality,RC210,Gifts And Prizes,7150,MAYORS CHAINS,04/05/2012,341881,1527.87,NET,Thomas Fattorini Ltd
Gloucester City Council,23UE,City Museum,RY153,Contract Payments,0020,legionella remedial works City Museum,03/05/2012,341803,4316.38,CAP,Ilec Ltd
Gloucester City Council,23UE,Eastgate Viewing Chamber,LY100,Contract Payments,0020,EASTGATE VIEWING CANOPY,10/05/2012,341880,735,CAP,Mg Scaffolding (Oxford) Limited
Gloucester City Council,23UE,Mortgage Rescue,CH128,Fees For Services Received,5350,B FISHER W/E 28/04/12,03/05/2012,341982,520,NET,One To One Recruitment
Gloucester City Council,23UE,Homelessness,CH120,Board And Lodging,5515,VARIOUS TENANTS,04/05/2012,342076,925.3,NET,Kalmwood Ltd (Mandy & Karen Woodhouse)
REDACTED,REDACTED,REDACTED,REDACTED,REDACTED,REDACTED,REDACTED,10/05/2012,342227,5100,REDACTED,REDACTED
Gloucester City Council,23UE,Guildhall Bar And Café,LA210,Catering Provisions -Liquor,5111,Guildhall order 16/5/12,25/05/2012,343274,903.75,NET,Cellar Supplies Cheltenham Ltd
Gloucester City Council,23UE,Guildhall Bar And Café,LA210,Catering Provisions -Liquor,5111,Guildhall 21/4/12,14/05/2012,342552,1097.95,NET,Cellar Supplies Cheltenham Ltd
REDACTED,REDACTED,REDACTED,REDACTED,REDACTED,REDACTED,REDACTED,10/05/2012,342317,5101.5,REDACTED,REDACTED
REDACTED,REDACTED,REDACTED,REDACTED,REDACTED,REDACTED,REDACTED,02/05/2012,341750,589.5,REDACTED,REDACTED
REDACTED,REDACTED,REDACTED,REDACTED,REDACTED,REDACTED,REDACTED,23/05/2012,342477,652.5,REDACTED,REDACTED
Gloucester City Council,23UE,Hillfield Gardens S106,LY112,Contract Payments,0020,HILLFIELD GARDENS,16/05/2012,341050,1940.37,CAP,Tree Maintenance Ltd
Gloucester City Council,23UE,Council Streetcare Team,HI101,Contracted Services,6970,REFUSE SACKS,09/05/2012,341401,903,NET,Polystar Plastics Ltd
Gloucester City Council,23UE,Docks Complex - Telephones,RB120,Telephones And Fax,5410,leased line charges May/June 12,25/06/2012,344597,2514.2,NET,Gamma Business Communications
REDACTED,REDACTED,REDACTED,REDACTED,REDACTED,REDACTED,REDACTED,19/06/2012,344518,500,REDACTED,REDACTED
Gloucester City Council,23UE,Off Street Car Parks,PP110,General Repair/Maint Buildings,3000,KINGS WALK CAR PARK WORKS,07/06/2012,343749,1793,NET,Beard & Tandy
REDACTED,REDACTED,REDACTED,REDACTED,REDACTED,REDACTED,REDACTED,26/06/2012,345013,550,REDACTED,REDACTED
Gloucester City Council,23UE,Wind Turbine,PY134,Contract Payments,0020,alney island ground investigation,29/06/2012,345168,1600,CAP,Core Geotechnics Ltd
Gloucester City Council,23UE,Business Transformation & Tech,RT700,Internet Service Provider Fees,5429,GSi Convergence Framework Apr12,19/06/2012,342813,999,NET,Vodafone
Gloucester City Council,23UE,Homelessness,CH120,Board And Lodging,5515,,27/06/2012,345045,781.24,NET,Carbrey Housing Ltd
Gloucester City Council,23UE,Youth Grant 2011/12,FP107,Funding Vol&Com Grps-Grants,7100C,youth grant 2012-13,29/06/2012,344984,2500,NET,Ts Gloucester Sea Cadets
Gloucester City Council,23UE,Cctv Revenue Budget,FP501,Security Equipment Serv/Repair,3038,ANPR CAMERA MAINTENANCE CONTRIBUTION,13/06/2012,343855,5000,NET,"Police & Crime Commissioner, Gloucestershire"
REDACTED,REDACTED,REDACTED,REDACTED,REDACTED,REDACTED,REDACTED,26/06/2012,344973,500,REDACTED,REDACTED
Gloucester City Council,23UE,Waterwells Sports Ground Dev,LY090,Contract Payments,0020,WATERWELLS COSTS,01/07/2012,345263,-40000,CAP,Tewkesbury Borough Council
Gloucester City Council,23UE,Tourism Marketing,LT100,Rents,3200,28 SOUTHGATE ST,15/06/2012,343794,5725,NET,P W Fido & Associates
Gloucester City Council,23UE,Civica Admin Charges,RT105,Postages,5400,ACCT 0870585007 REVENUES,15/06/2012,340679,913.39,NET,Royal Mail S.Wales & South West
Gloucester City Council,23UE,Crematorium,HC200,Repair/Maint Of Fixed Plant,3006,Crem carbon reagent May 12,15/06/2012,344250,559.4,NET,Facultatieve Technologies Ltd
Gloucester City Council,23UE,City Museum And Art Gallery,LM200,Exhibits And Collections,5038,50% AUTOMATA EXHIBITION RENTAL FEE,14/06/2012,343920,3145,NET,Cabaret Mechanical Theatre
Gloucester City Council,23UE,Development Management,PT200,Employee Related Advertising,2920,Planning & Regeneration May 2012,15/06/2012,342710,1727,NET,Haymarket Business Media
REDACTED,REDACTED,REDACTED,REDACTED,REDACTED,REDACTED,REDACTED,26/06/2012,344446,2050.4,REDACTED,REDACTED
Gloucester City Council,23UE,Neighbourhood Partnerships,FP104,Fees For Services Received,5350,ADMIN COSTS 2012/13,20/06/2012,344441,1000,NET,Three Bridges Partnership
Gloucester City Council,23UE,Treasury Management,VR110,Brokerage Fees,5951,MARTIN BROKERS (UK) PLC,15/06/2012,342336,746.58,NET,Martin Brokers (Uk) Plc
Gloucester City Council,23UE,Ghurc Contribution,PT210,Fees For Services Received,5350,GLOUCESTER HERITAGE URC,25/06/2012,344868,50000,NET,Gloucester Heritage Urc
REDACTED,REDACTED,REDACTED,REDACTED,REDACTED,REDACTED,REDACTED,11/06/2012,343931,650,REDACTED,REDACTED
Gloucester City Council,23UE,Business Transformation & Tech,RT700,Basic Pay - Temporary Staff,2751,D WHAYMAN FEB 2012,18/06/2012,344005,960.68,NET,Pearson In Practice Ata Ltd
REDACTED,REDACTED,REDACTED,REDACTED,REDACTED,REDACTED,REDACTED,21/06/2012,344714,500,REDACTED,REDACTED
REDACTED,REDACTED,REDACTED,REDACTED,REDACTED,REDACTED,REDACTED,26/06/2012,344880,-7.12,REDACTED,REDACTED
REDACTED,REDACTED,REDACTED,REDACTED,REDACTED,REDACTED,REDACTED,07/06/2012,343270,-31.32,REDACTED,REDACTED
Gloucester City Council,23UE,Business Planning & Performanc,RL500,Fees For Services Received,5350,MAIDEN PARTNERSHIP 12/13 CONTRIBUTION,29/06/2012,343748,10000,NET,Gloucestershire County Council
REDACTED,REDACTED,REDACTED,REDACTED,REDACTED,REDACTED,REDACTED,12/06/2012,12914,502.32,REDACTED,REDACTED
Gloucester City Council,23UE,Client Revs & Bens Contract,RT240,Court Fees,5358,legal services re prosecutions,26/06/2012,342137,840,NET,Cotswold District Council
Gloucester City Council,23UE,Tic Rovercard Sales,LT101,Materials For Sale,5080,PERIOD 1 2012/13,20/06/2012,344580,8052.3,NET,Stagecoach Services Ltd*
Gloucester City Council,23UE,Tic Rovercard Sales,LT101,Materials For Sale,5080,TIC COMMISSION APR/MAY 12,08/06/2012,343485,8626.3,NET,Stagecoach Services Ltd*
Gloucester City Council,23UE,Youth Grant 2011/12,FP107,Funding Vol&Com Grps-Grants,7100C,youth grant 2012-13,29/06/2012,345173,1500,NET,Navy Training Corps T.S. Bulldog
REDACTED,REDACTED,REDACTED,REDACTED,REDACTED,REDACTED,REDACTED,14/06/2012,344198,500,REDACTED,REDACTED
Gloucester City Council,23UE,Forest Of Dean Cpe,PT744,Contracted Services,6970,MAY 12 PARKING SERVICES,12/06/2012,343745,2800.92,NET,Apcoa Parking (Uk) Ltd
Gloucester City Council,23UE,Off Street Car Parks,PP110,Contracted Services,6970,MAY 12 PARKING SERVICES,12/06/2012,343745,24007.4,NET,Apcoa Parking (Uk) Ltd
Gloucester City Council,23UE,Council Streetcare Team,HI101,Mobile Phones,5409,monthly management fee,25/06/2012,344296,524603.59,NET,Enterprise (Aol) Ltd
REDACTED,REDACTED,REDACTED,REDACTED,REDACTED,REDACTED,REDACTED,02/07/2012,345208,1830,REDACTED,REDACTED
Gloucester City Council,23UE,Civic Admin And Hospitality,RC210,Events,5952,,13/07/2012,345901,2414,NET,St John Ambulance*
Gloucester City Council,23UE,Tic Theatre Ticket Sales,LT107,Sale Of Goods And Services,9230,Midsummer Night's Dream,12/07/2012,345738,-13.17,NET,Kings Theatre
Gloucester City Council,23UE,Blackfriars Inn,RY191,Contract Payments,0020,Blackfriars Inn asbestos survey,27/07/2012,346245,695,CAP,Esg Asbestos Ltd
Gloucester City Council,23UE,Investment Property,RB500,Gas Supply,3100,depot flat credit Jun-Jul10,17/07/2012,345933,-22.25,NET,Corona Energy
Gloucester City Council,23UE,Group Mgr Cult Ser & Tourism,GR102,Events,5952,credit against invoice 1,15/10/2012,346964,-20000,NET,Marketing Gloucester Ltd
REDACTED,REDACTED,REDACTED,REDACTED,REDACTED,REDACTED,REDACTED,12/07/2012,345661,972,REDACTED,REDACTED
REDACTED,REDACTED,REDACTED,REDACTED,REDACTED,REDACTED,REDACTED,23/07/2012,346227,508.16,REDACTED,REDACTED
Gloucester City Council,23UE,Postal Services,RS120,Postages,5400,9039347758/07/12,20/07/2012,345979,1038.41,NET,Royal Mail S.Wales & South West
Gloucester City Council,23UE,Procurement Management,RP100,Vocational Training,2970,supply chain mgmt NVQ4 D Mumford,06/07/2012,345436,1800,NET,Commercial Skills
Gloucester City Council,23UE,Cctv Revenue Budget,FP501,Security Equipment Serv/Repair,3038,acc: 87580006,19/07/2012,346286,1127.63,NET,Npower Ltd
REDACTED,REDACTED,REDACTED,REDACTED,REDACTED,REDACTED,REDACTED,25/07/2012,346751,778.4,REDACTED,REDACTED
Gloucester City Council,23UE,Business Transformation & Tech,RT700,Basic Pay - Temporary Staff,2751,daniel whayman w/c 16/4/12-30/4/12,03/07/2012,345194,720.51,NET,Pearson In Practice Ata Ltd
Gloucester City Council,23UE,Utilities,PT502,Gas Supply,3100,REF INV 1014840 75-81 EASTGATE ST,23/08/2012,347952,-242.05,NET,West Mercia Energy
Gloucester City Council,23UE,Utilities,PT502,Electricity Supply,3110,GUILDHALL,23/08/2012,347903,1590.63,NET,West Mercia Energy
Gloucester City Council,23UE,Utilities,PT502,Electricity Supply,3110,OTC ELECTRICITY JULY 2012,23/08/2012,347802,2272.86,NET,West Mercia Energy
Gloucester City Council,23UE,Utilities,PT502,Electricity Supply,3110,LADYBELLEGATE HOUSE INV 1008217,28/08/2012,348431,-56.31,NET,West Mercia Energy
Gloucester City Council,23UE,Utilities,PT502,Electricity Supply,3110,ROBINSWOOD HILL REF INV 1013206,28/08/2012,348445,-53.7,NET,West Mercia Energy
Gloucester City Council,23UE,Pest Control,HD400,Fees For Services Received,5350,HKP external rodent bait stations,14/08/2012,347875,500,NET,Falconry Services Bird & Pest Control
Gloucester City Council,23UE,Pest Control,HD400,Fees For Services Received,5350,Pest Control up to 9/7/12,14/08/2012,347877,997.29,NET,Falconry Services Bird & Pest Control
REDACTED,REDACTED,REDACTED,REDACTED,REDACTED,REDACTED,REDACTED,21/08/2012,348316,750,REDACTED,REDACTED
Gloucester City Council,23UE,General Drainage Works,PY241,Contract Payments,0020,"HIGHFIELD RD, METALGUARDS",03/08/2012,347229,660,CAP,Rj Contracting
Gloucester City Council,23UE,Off Street Car Parks,PP110,Service Charges,3020,9A EASTGATE SHOPPING CTR,29/08/2012,348192,-125.03,NET,Workman Llp Service Charge Account
Gloucester City Council,23UE,Homelessness Prevention,CH122,Basic Pay -Admin /Prof Staff,2601,J BURNETT-PITT W/E 29/7/12,15/08/2012,347501,704.75,NET,Building Recruitment Company Ltd
REDACTED,REDACTED,REDACTED,REDACTED,REDACTED,REDACTED,REDACTED,30/08/2012,348850,733.84,REDACTED,REDACTED
Gloucester City Council,23UE,Investment Property,RB500,General Repair/Maint Buildings,3000,credit for invoice 20854053-15,19/09/2012,348780,-62.12,NET,Adt Fire & Security Plc
REDACTED,REDACTED,REDACTED,REDACTED,REDACTED,REDACTED,REDACTED,14/08/2012,347746,500,REDACTED,REDACTED
Gloucester City Council,23UE,Docks Complex - Telephones,RB120,Mobile Phones,5409,catalist tarriff 1 with care jul-aug,03/09/2012,347157,-4,NET,Orange Payment Processing
Gloucester City Council,23UE,The Fleece,RB530,Electricity Supply,3110,REF INV 201478448/0027,09/08/2012,347549,-75.22,NET,Southern Electric
Gloucester City Council,23UE,Youth Grant 2011/12,FP107,Funding Vol&Com Grps-Grants,7100C,YOUTH GRANT 2012-13,08/08/2012,346704,2500,NET,Gymnation
Gloucester City Council,23UE,Financial Services,RT200,Fees For Services Received,5350,Gloucestershire Airport asset valuation,02/08/2012,347169,15000,NET,Gva Grimley
Gloucester City Council,23UE,Postal Services,RS120,Postages,5400,ACCT 0074842000 W/E 30/06/12,01/08/2012,346285,3440.52,NET,Royal Mail S.Wales & South West
Gloucester City Council,23UE,Civica Admin Charges,RT105,Postages,5400,ACCT 0870585007 REVENUES,23/08/2012,347733,1386.88,NET,Royal Mail S.Wales & South West
Gloucester City Council,23UE,Crematorium,HC200,Repair/Maint Of Fixed Plant,3006,crem 9 monthly service visit,30/08/2012,348830,949.24,NET,Facultatieve Technologies Ltd
Gloucester City Council,23UE,Youth Grant 2011/12,FP107,Funding Vol&Com Grps-Grants,7100C,youth grant 2012-13,08/08/2012,347056,500,NET,Hucclecote Guides & Brownies Parent Support
Gloucester City Council,23UE,Homelessness,CH120,Board And Lodging,5515,,23/08/2012,348525,1108.63,NET,Dorchester House Trust
Gloucester City Council,23UE,Homelessness,CH120,Board And Lodging,5515,,23/08/2012,348528,748.14,NET,Kalmwood Ltd (Mandy & Karen Woodhouse)
Gloucester City Council,23UE,The Fleece,RB530,General Repair/Maint Buildings,3000,"FIRST FLOOR ROOM, FLEECE HOTEL, LIC",16/08/2012,348143,3275,NET,Wring Group Ltd
Gloucester City Council,23UE,Forest Of Dean Off Street,PT742,Contracted Services,6970,July 2012 variable services,14/08/2012,347821,2555.24,NET,Apcoa Parking (Uk) Ltd
Gloucester City Council,23UE,Off Street Car Parks,PP110,Contracted Services,6970,July 2012 variable services,14/08/2012,347821,24140.43,NET,Apcoa Parking (Uk) Ltd
Gloucester City Council,23UE,Parking Cctv,PT745,Contracted Services,6970,balance of invoice CS120903,24/08/2012,348633,2200,NET,Chipside Ltd
REDACTED,REDACTED,REDACTED,REDACTED,REDACTED,REDACTED,REDACTED,03/08/2012,347233,805,REDACTED,REDACTED
REDACTED,REDACTED,REDACTED,REDACTED,REDACTED,REDACTED,REDACTED,20/08/2012,348259,1250,REDACTED,REDACTED
Gloucester City Council,23UE,Docks Complex - Services,RB100,Service Charges,3020,"TOILET , ST OSWALDS RD GLOS",03/08/2012,347101,758.45,NET,Severn Trent Water
Gloucester City Council,23UE,Business Transformation & Tech,RT700,Basic Pay - Temporary Staff,2751,Chris Watkins w/e 14/09/12,19/09/2012,349811,645,NET,Ffox Software Ltd
Gloucester City Council,23UE,Business Transformation & Tech,RT700,Basic Pay - Temporary Staff,2751,C Watkins w/e 7/9/12,18/09/2012,349536,1125,NET,Ffox Software Ltd
Gloucester City Council,23UE,Utilities,PT502,Electricity Supply,3110,75-81 EASTGATE ST,20/09/2012,349968,1722.28,NET,West Mercia Energy
Gloucester City Council,23UE,Utilities,PT502,Electricity Supply,3110,OTC ELECTRIC AUG 2012,20/09/2012,350000,2465.7,NET,West Mercia Energy
Gloucester City Council,23UE,Utilities,PT502,Electricity Supply,3110,UNIT 2 SOUTHAGTE ST REF INV 1001410,20/09/2012,350013,-100.82,NET,West Mercia Energy
Gloucester City Council,23UE,Wake Room,HC501,Catering Provisions -Food,5110,FOOD,21/09/2012,349850,-3.5,NET,Total Produce Gloucester
Gloucester City Council,23UE,Business Support,PT250,Basic Pay -Admin /Prof Staff,2601,L ELLWAY/M CONSTANTINOU W/E 02/09/12,10/09/2012,349290,609.18,NET,One To One Recruitment
Gloucester City Council,23UE,Council Streetcare Team,HI101,General Repair/Maint Buildings,3000,STAFF W/E 14/09/12,25/09/2012,350220,1135.28,NET,One To One Recruitment
Gloucester City Council,23UE,Business Transformation & Tech,RT700,Computer Consumables,5422,REF INV I2144202,10/09/2012,349157,-29.5,NET,Rocom
Gloucester City Council,23UE,Postal Services,RS120,Postages,5400,ACCT 0074842000 W/E 25/08/12,18/09/2012,349373,924.64,NET,Royal Mail S.Wales & South West
REDACTED,REDACTED,REDACTED,REDACTED,REDACTED,REDACTED,REDACTED,20/09/2012,349927,1152.75,REDACTED,REDACTED
REDACTED,REDACTED,REDACTED,REDACTED,REDACTED,REDACTED,REDACTED,20/09/2012,349798,808.25,REDACTED,REDACTED
REDACTED,REDACTED,REDACTED,REDACTED,REDACTED,REDACTED,REDACTED,04/09/2012,349100,500,REDACTED,REDACTED
REDACTED,REDACTED,REDACTED,REDACTED,REDACTED,REDACTED,REDACTED,04/09/2012,349038,500,REDACTED,REDACTED
Gloucester City Council,23UE,Guildhall Bar And Café,LA210,Catering Provisions -Liquor,5111,GUILDHALL GOODS 4/9/12,13/09/2012,349526,619.21,NET,Cellar Supplies Cheltenham Ltd
REDACTED,REDACTED,REDACTED,REDACTED,REDACTED,REDACTED,REDACTED,06/09/2012,349169,500,REDACTED,REDACTED
Gloucester City Council,23UE,Tic Coach Tickets,LT105,Materials For Sale,5080,CANCELLED BOOKING,06/09/2012,349118,-67.9,NET,Superbreak Mini Holidays
Gloucester City Council,23UE,Improvement Grants,CY013,Disabled Facility Grants,0074,GRANT REF MDF4880,04/09/2012,349040,5485.02,CAP,Mears Home Improvement Ltd
Gloucester City Council,23UE,Utilities,PT502,Electricity Supply,3110,REF INV 2229338 KIOSK 1 KINGS WALK,19/10/2012,351798,-3.33,NET,West Mercia Energy
Gloucester City Council,23UE,Flooding And Drainage,HE306,Maint Of Grounds - General,3030,MERLIN DRIVE,11/10/2012,351188,585,NET,Rj Contracting
Gloucester City Council,23UE,Plock Ct Surface Water,PY271,Contract Payments,0020,PLOCK COURT,11/10/2012,351191,1350,CAP,Rj Contracting
Gloucester City Council,23UE,Corporate Reporting /Financing,RC504,Audit Fees,5383,2011/12 NNDR Grant Audit,15/10/2012,351519,1580,NET,Kpmg
Gloucester City Council,23UE,Projects & Maintenance,PT500,Basic Pay -Admin /Prof Staff,2601,credit for invoice 100291,07/11/2012,352011,-1254,NET,Find The Engineer Recruitment Ltd*
REDACTED,REDACTED,REDACTED,REDACTED,REDACTED,REDACTED,REDACTED,18/10/2012,350570,978.5,REDACTED,REDACTED
Gloucester City Council,23UE,Business Transformation & Tech,RT700,Internet Service Provider Fees,5429,july-sept 2012 GSi Convergence Framework,08/10/2012,351011,2472.09,NET,Vodafone
Gloucester City Council,23UE,Kings Quarter Redevelopment,RB600,Fees For Services Received,5350,Created by invoice listener,09/10/2012,351131,1657.5,NET,Cb Richard Ellis Ltd
Gloucester City Council,23UE,Docks Complex - Telephones,RB120,Lease Lines,5411,ACCT 912669 LEASED LINE,12/02/2013,340536,3876,NET,Virgin Media Business
Gloucester City Council,23UE,Investment Property,RB500,General Repair/Maint Buildings,3000,North Warehouse boiler service,23/10/2012,351558,816,NET,Hewer Facilities Mgt Ltd
Gloucester City Council,23UE,Improvement Grants,CY013,Disabled Facility Grants,0074,16 TWEENBROOK AVE,10/10/2012,351229,4487.8,CAP,Seddon Property Services Ltd
Gloucester City Council,23UE,Council Streetcare Team,HI101,General Repair/Maint Buildings,3000,STAFF W/E 28/09/12,10/10/2012,351234,2351.51,NET,One To One Recruitment
Gloucester City Council,23UE,Summer Festival,LT300,General Repair/Maint Buildings,3000,Festival Music Day toilet hire,15/10/2012,351135,860,NET,B & W Hire Ltd
Gloucester City Council,23UE,Postal Services,RS120,Postages,5400,ACCT 0252446000 W/E 20/09/12,01/10/2012,350564,1163.67,NET,Royal Mail S.Wales & South West
REDACTED,REDACTED,REDACTED,REDACTED,REDACTED,REDACTED,REDACTED,22/10/2012,351544,1166.63,REDACTED,REDACTED
REDACTED,REDACTED,REDACTED,REDACTED,REDACTED,REDACTED,REDACTED,11/10/2012,351259,924.67,REDACTED,REDACTED
Gloucester City Council,23UE,Crematorium,HC200,Repair/Maint Of Monuments,3004,SANCTUM 2000S,17/10/2012,351697,1280,NET,The Columbaria Company
Gloucester City Council,23UE,Homelessness,CH120,Board And Lodging,5515,VARIOUS TENANTS,17/10/2012,351732,2398.04,NET,James Legge Property (Ltd)
Gloucester City Council,23UE,Improvement Grants,CY013,Disabled Facility Grants,0074,GRANT REF MDF4905,12/10/2012,351348,1280,CAP,Tpg Disableaids
REDACTED,REDACTED,REDACTED,REDACTED,REDACTED,REDACTED,REDACTED,29/10/2012,352198,1234.5,REDACTED,REDACTED
REDACTED,REDACTED,REDACTED,REDACTED,REDACTED,REDACTED,REDACTED,29/10/2012,352320,1250,REDACTED,REDACTED
Gloucester City Council,23UE,Tic Rovercard Sales,LT101,Sale Of Goods And Services,9230,PERIOD 6 SALES,29/10/2012,352385,-791.17,NET,Stagecoach Services Ltd*
Gloucester City Council,23UE,Financial Services,RT200,Basic Pay - Temporary Staff,2751,SERVICES TO 23/10/12,24/10/2012,352193,4000,NET,Cpfa Consultancy Ltd
Gloucester City Council,23UE,Business Transformation & Tech,RT700,Basic Pay - Temporary Staff,2751,w/e 13/7/12 consultancy,20/07/2012,346425,1005,NET,Ffox Software Ltd
Gloucester City Council,23UE,General Drainage Works,PY241,Contract Payments,0020,BARN CLOSE BRIDGE WORKS,04/07/2012,345297,5750,CAP,Abc Bridges
Gloucester City Council,23UE,Utilities,PT502,Electricity Supply,3110,REF INV 2392642 38 THE FORUM,13/07/2012,344516,-115.9,NET,West Mercia Energy
Gloucester City Council,23UE,Flooding And Drainage,HE306,Maint Of Grounds - General,3030,STUARTS MILL LANE,18/07/2012,345495,1950,NET,Rj Contracting
Gloucester City Council,23UE,Gloucester Partnership,FP106,Sports Grants,7114,BOXING SESSIONS,13/07/2012,346011,3250,NET,Kingsholm C Of E Primary School
Gloucester City Council,23UE,Decent Homes Loans,CY042,Housing Loans,0064,,10/07/2012,345848,4920,CAP,Pinetree (Gloucester) Ltd
REDACTED,REDACTED,REDACTED,REDACTED,REDACTED,REDACTED,REDACTED,27/07/2012,345942,589,REDACTED,REDACTED
